Ref No,Fund Type,Dept,Cost Centre Description    ,Description    ,Creditor Name    ,GL Code Net Amount,Payment date        
2,Revenue,CAHD,Central - Commissioned Services,Permanent Residential,1 St Georges House,13333.52, 09-Feb-2021
3,Revenue,CAHD,EARLY YEARS DISABILITY  ACCES FUND,Preventative Assistance,100 Acre Wood Day Nursery,615.00, 02-Feb-2021
4,Revenue,CAHD,CSC - LAC Housing Support Grants,Grants to Voluntary Bodies,1625 Independent People,3343.00, 22-Feb-2021
5,Revenue,CAHD,Supporting People Programme,Grants to Voluntary Bodies,1625 Independent People,15167.00, 01-Feb-2021
6,Revenue,CAHD,CSC - Care Leavers Independent Living,Independent Living,16Pluscare Support Solutions,29244.00, 09-Feb-2021
7,Revenue,CAHD,South - Commissioned Services,Permanent Residential,2Nd Floor Building,5630.76, 09-Feb-2021
8,Revenue,CAHD,South - Commissioned Services,Permanent Residential,2Nd Floor Building,2806.12, 09-Feb-2021
9,Revenue,CAHD,Central - Commissioned Services,Other Small Contracts,3 Trees Community Support Ltd,5130.85, 10-Feb-2021
10,Revenue,CAHD,Central - Commissioned Services,Supported Living,3 Trees Community Support Ltd,5168.59, 10-Feb-2021
11,Revenue,CAHD,Central - Commissioned Services,Other Small Contracts,3 Trees Community Support Ltd,5266.30, 10-Feb-2021
12,Revenue,CAHD,Central - Commissioned Services,Supported Living,3 Trees Community Support Ltd,5162.20, 10-Feb-2021
13,Revenue,CAHD,Central - Commissioned Services,Other Small Contracts,3 Trees Community Support Ltd,5113.41, 10-Feb-2021
14,Revenue,CAHD,Central - Commissioned Services,Supported Living,3 Trees Community Support Ltd,5177.14, 10-Feb-2021
15,Revenue,CAHD,Central - Commissioned Services,Other Small Contracts,3 Trees Community Support Ltd,5261.30, 10-Feb-2021
16,Revenue,CAHD,Central - Commissioned Services,Supported Living,3 Trees Community Support Ltd,5107.21, 10-Feb-2021
17,Revenue,CAHD,Central - Commissioned Services,Other Small Contracts,3 Trees Community Support Ltd,5124.38, 10-Feb-2021
18,Revenue,CAHD,Central - Commissioned Services,Supported Living,3 Trees Community Support Ltd,5168.61, 10-Feb-2021
19,Revenue,CAHD,Central - Commissioned Services,Other Small Contracts,3 Trees Community Support Ltd,5267.29, 26-Feb-2021
20,Revenue,CAHD,Central - Commissioned Services,Supported Living,3 Trees Community Support Ltd,5177.14, 26-Feb-2021
21,Revenue,CAHD,Central - Commissioned Services,Other Small Contracts,3 Trees Community Support Ltd,5118.35, 26-Feb-2021
22,Revenue,CAHD,Central - Commissioned Services,Supported Living,3 Trees Community Support Ltd,5184.24, 26-Feb-2021
23,Revenue,CAHD,South - Commissioned Services,Permanent Nursing,3Rd Floor  The Aspect,3593.88, 09-Feb-2021
24,Revenue,CAHD,North - Community based support,Permanent Nursing,3Rd Floor  The Aspect,3234.72, 09-Feb-2021
25,Revenue,CAHD,Covid 19- Spend on behalf of NHS,Respite Planned - Residential,3Rd Floor  The Aspect,571.43, 09-Feb-2021
26,Revenue,CAHD,South - Commissioned Services,Permanent Nursing,3Rd Floor  The Aspect,2287.36, 09-Feb-2021
27,Revenue,CAHD,Central - Commissioned Services,Permanent Residential,5Th Floor Harlech Court,15254.92, 09-Feb-2021
28,Revenue,CAHD,18-25 Year Olds,Permanent Residential,5Th Floor Harlech Court,18219.32, 09-Feb-2021
29,Revenue,CAHD,South - Commissioned Services,Permanent Residential,5Th Floor Harlech Court,17000.48, 09-Feb-2021
30,Revenue,CAHD,South - Commissioned Services,Permanent Residential,5Th Floor Harlech Court,10627.92, 09-Feb-2021
31,Revenue,CAHD,S28A cases,Permanent Residential,5Th Floor Harlech Court,11122.76, 09-Feb-2021
32,Revenue,CAHD,South - Commissioned Services,Permanent Residential,5Th Floor Harlech Court,11665.12, 09-Feb-2021
33,Revenue,CAHD,Covid - ASC - Infection Control,Grants to Voluntary Bodies,5Th Floor Harlech Court,3832.73, 12-Feb-2021
34,Revenue,CAHD,ASC Rapid Testing Fund,Grants to Voluntary Bodies,5Th Floor Harlech Court,2952.33, 11-Feb-2021
35,Revenue,CAHD,North - Community based support,Permanent Residential,5Th Floor Harlech Court,6249.28, 09-Feb-2021
36,Revenue,CAHD,North - Community based support,Permanent Residential,5Th Floor Harlech Court,6249.28, 09-Feb-2021
37,Revenue,CAHD,North - Community based support,Permanent Residential,5Th Floor Harlech Court,10537.24, 09-Feb-2021
38,Revenue,CAHD,North - Community based support,Permanent Residential,5Th Floor Harlech Court,9071.12, 09-Feb-2021
39,Revenue,CAHD,CSC - Vinney Green Secure Unit,R & M by Departments,A E Horder (Contracting) Limited,3915.83, 25-Feb-2021
40,Revenue,CAHD,18-25 Year Olds,Day Care / Social Activities,A+bility Ltd,820.00, 15-Feb-2021
41,Revenue,CAHD,Early Years Inclusion Fund,Other Public Bodies,Abbeywood Tots Day Nursery Ltd,2050.00, 15-Feb-2021
42,Revenue,CAHD,School Improvement and Support,Training Expenses,ABC Does Limited,1000.00, 16-Feb-2021
43,Revenue,CAHD,South - Commissioned Services,Permanent Nursing,Acacia House,2996.00, 09-Feb-2021
44,Revenue,CAHD,Post 16 High Needs Placements,Other Private Contractors,Access To Music Ltd,3841.36, 16-Feb-2021
45,Revenue,CAHD,Post 16 High Needs Placements,Other Private Contractors,Access To Music Ltd,3841.36, 16-Feb-2021
46,Revenue,CAHD,Jointly Funded H&SC Packages,Permanent Residential,Acorn Care Providers,2310.92, 09-Feb-2021
47,Revenue,CAHD,Section 117 Placements MH Younger,Permanent Residential,Acorn Care Providers,5481.28, 09-Feb-2021
48,Revenue,CAHD,North - S117,Permanent Residential,Acorn Care Providers,3978.00, 09-Feb-2021
49,Revenue,CAHD,Jointly Funded H&SC Packages,Permanent Residential,Acorn Care Providers,2142.00, 09-Feb-2021
50,Revenue,CAHD,MH Purchasing - Younger,Permanent Residential,Acorn Care Providers,6382.04, 09-Feb-2021
51,Revenue,CAHD,Jointly Funded H&SC Packages,Permanent Residential,Acorn Care Providers,3436.48, 09-Feb-2021
52,Revenue,CAHD,MH Purchasing - Younger,Permanent Residential,Acorn Care Providers,6266.88, 09-Feb-2021
53,Revenue,CAHD,ASC Rapid Testing Fund,Grants to Voluntary Bodies,Acorn Care Providers,1610.36, 11-Feb-2021
54,Revenue,CAHD,ASC Rapid Testing Fund,Grants to Voluntary Bodies,Acorn Care Providers,536.79, 11-Feb-2021
55,Revenue,CAHD,Training - Adult Services,Training Expenses,Acorn Health & Safety Limited,2480.00, 04-Feb-2021
56,Revenue,CAHD,Training - Adult Services,Training Expenses,Acorn Health & Safety Limited,477.00, 18-Feb-2021
57,Revenue,CAHD,Training - Adult Services,Training Expenses,Acorn Health & Safety Limited,660.00, 25-Feb-2021
58,Revenue,CAHD,Training - Adult Services,Training Expenses,Acorn Health & Safety Limited,477.00, 24-Feb-2021
59,Revenue,CAHD,CSC - Agency Fostering,Foster Parent Allowances,Action for Children,3897.01, 19-Feb-2021
60,Revenue,CAHD,South Glos Users in South Glos Homes,Permanent Nursing,Administration And Revenue Centre,3039.51, 09-Feb-2021
61,Revenue,CAHD,North - Community based support,Respite Planned - Residential,Administration And Revenue Centre,950.00, 09-Feb-2021
62,Revenue,CAHD,North - Community based support,Respite Planned - Residential,Administration And Revenue Centre,950.00, 09-Feb-2021
63,Revenue,CAHD,ASC Rapid Testing Fund,Grants to Voluntary Bodies,Administration And Revenue Centre,17714.01, 05-Feb-2021
64,Revenue,CAHD,South - Commissioned Services,Fees & Charges Income - General,Administration And Revenue Centre,4994.94, 09-Feb-2021
65,Revenue,CAHD,South - Commissioned Services,Permanent Nursing,Administration And Revenue Centre,2445.96, 09-Feb-2021
66,Revenue,CAHD,South - Commissioned Services,Permanent Nursing,Administration And Revenue Centre,2445.96, 09-Feb-2021
67,Revenue,CAHD,South Glos Users in South Glos Homes,Permanent Nursing,Administration And Revenue Centre,735.68, 09-Feb-2021
68,Revenue,CAHD,South - Commissioned Services,Permanent Nursing,Administration And Revenue Centre,9326.57, 09-Feb-2021
69,Revenue,CAHD,South - Commissioned Services,Permanent Residential,Administration And Revenue Centre,2511.80, 09-Feb-2021
70,Revenue,CAHD,South Glos Users in South Glos Homes,Permanent Nursing,Administration And Revenue Centre,735.68, 09-Feb-2021
71,Revenue,CAHD,South - Commissioned Services,Permanent Nursing,Administration And Revenue Centre,2949.60, 09-Feb-2021
72,Revenue,CAHD,South Glos Users in South Glos Homes,Permanent Nursing,Administration And Revenue Centre,735.68, 09-Feb-2021
73,Revenue,CAHD,South Glos Users in South Glos Homes,Permanent Nursing,Administration And Revenue Centre,735.68, 09-Feb-2021
74,Revenue,CAHD,South - Commissioned Services,Fees & Charges Income - General,Administration And Revenue Centre,2540.78, 09-Feb-2021
75,Revenue,CAHD,South Glos Users in South Glos Homes,Permanent Nursing,Administration And Revenue Centre,3284.29, 09-Feb-2021
76,Revenue,CAHD,South - Commissioned Services,Fees & Charges Income - General,Administration And Revenue Centre,2879.64, 09-Feb-2021
77,Revenue,CAHD,South Glos Users in South Glos Homes,Permanent Nursing,Administration And Revenue Centre,735.68, 09-Feb-2021
78,Revenue,CAHD,South - Commissioned Services,Permanent Residential,Administration And Revenue Centre,3366.00, 09-Feb-2021
79,Revenue,CAHD,South - Commissioned Services,Permanent Nursing,Administration And Revenue Centre,2924.56, 09-Feb-2021
80,Revenue,CAHD,South - Commissioned Services,Permanent Residential,Administration And Revenue Centre,3200.00, 09-Feb-2021
81,Revenue,CAHD,South - Commissioned Services,Permanent Nursing,Administration And Revenue Centre,2511.80, 09-Feb-2021
82,Revenue,CAHD,South Glos Users in South Glos Homes,Permanent Nursing,Administration And Revenue Centre,735.68, 09-Feb-2021
83,Revenue,CAHD,South - Commissioned Services,Permanent Nursing,Administration And Revenue Centre,2445.96, 09-Feb-2021
84,Revenue,CAHD,South Glos Users in South Glos Homes,Permanent Nursing,Administration And Revenue Centre,735.68, 09-Feb-2021
85,Revenue,CAHD,South - Commissioned Services,Permanent Nursing,Administration And Revenue Centre,2445.96, 09-Feb-2021
86,Revenue,CAHD,South Glos Users in South Glos Homes,Permanent Nursing,Administration And Revenue Centre,735.68, 09-Feb-2021
87,Revenue,CAHD,South - Commissioned Services,Permanent Residential,Administration And Revenue Centre,3190.56, 09-Feb-2021
88,Revenue,CAHD,South - Commissioned Services,Permanent Nursing,Administration And Revenue Centre,2445.96, 09-Feb-2021
89,Revenue,CAHD,South Glos Users in South Glos Homes,Permanent Nursing,Administration And Revenue Centre,735.68, 09-Feb-2021
90,Revenue,CAHD,South - Commissioned Services,Respite Emergency - Residential,Administration And Revenue Centre,6000.00, 09-Feb-2021
91,Revenue,CAHD,South - Commissioned Services,Permanent Residential,Administration And Revenue Centre,2949.60, 09-Feb-2021
92,Revenue,CAHD,South Glos Users in South Glos Homes,Permanent Nursing,Administration And Revenue Centre,735.68, 09-Feb-2021
93,Revenue,CAHD,Central - Commissioned Services,Permanent Nursing,Administration And Revenue Centre,13235.71, 09-Feb-2021
94,Revenue,CAHD,Central - Commissioned Services,Permanent Nursing,Administration And Revenue Centre,3400.00, 09-Feb-2021
95,Revenue,CAHD,Central - Commissioned Services,Fees & Charges Income - General,Administration And Revenue Centre,1778.41, 09-Feb-2021
96,Revenue,CAHD,North - Community based support,Respite Planned - Residential,Administration And Revenue Centre,7657.14, 09-Feb-2021
97,Revenue,CAHD,North - Community based support,Permanent Nursing,Administration And Revenue Centre,2857.14, 09-Feb-2021
98,Revenue,CAHD,North - Community based support,Fees & Charges Income - General,Administration And Revenue Centre,3178.57, 09-Feb-2021
99,Revenue,CAHD,South - Commissioned Services,Respite Planned - Residential,Administration And Revenue Centre,21857.14, 09-Feb-2021
100,Revenue,CAHD,South - Commissioned Services,Other Small Contracts,Advantedge Commercial Finance Limited,1180.98, 24-Feb-2021
101,Revenue,CAHD,South - Commissioned Services,Other Small Contracts,Advantedge Commercial Finance Limited,680.40, 24-Feb-2021
102,Revenue,CAHD,South - Commissioned Services,Other Small Contracts,Advantedge Commercial Finance Limited,670.68, 24-Feb-2021
103,Revenue,CAHD,South - Commissioned Services,Other Small Contracts,Advantedge Commercial Finance Limited,972.00, 24-Feb-2021
104,Revenue,CAHD,South - Commissioned Services,Other Small Contracts,Advantedge Commercial Finance Limited,753.30, 24-Feb-2021
105,Revenue,CAHD,South - Commissioned Services,Other Small Contracts,Advantedge Commercial Finance Limited,544.32, 24-Feb-2021
106,Revenue,CAHD,South - Commissioned Services,Other Small Contracts,Advantedge Commercial Finance Limited,831.06, 24-Feb-2021
107,Revenue,CAHD,South - Commissioned Services,Day Care / Social Activities,Age Concern,634.08, 09-Feb-2021
108,Revenue,CAHD,Central - Commissioned Services,Day Care / Social Activities,Age Concern,546.72, 09-Feb-2021
109,Revenue,CAHD,Central - Commissioned Services,Day Care / Social Activities,Age Concern,546.72, 09-Feb-2021
110,Revenue,CAHD,South - Commissioned Services,Other Small Contracts,Agincare UK Limited,1096.41, 05-Feb-2021
111,Revenue,CAHD,Younger MH non-res purchasing,Other Small Contracts,Agincare UK Limited,154.56, 05-Feb-2021
112,Revenue,CAHD,South - Commissioned Services,Other Small Contracts,Agincare UK Limited,1077.09, 10-Feb-2021
113,Revenue,CAHD,Younger MH non-res purchasing,Other Small Contracts,Agincare UK Limited,154.56, 10-Feb-2021
114,Revenue,CAHD,South - Commissioned Services,Other Small Contracts,Agincare UK Limited,1149.54, 26-Feb-2021
115,Revenue,CAHD,Younger MH non-res purchasing,Other Small Contracts,Agincare UK Limited,115.92, 26-Feb-2021
116,Revenue,CAHD,South - Commissioned Services,Other Small Contracts,Agincare UK Limited,1207.50, 26-Feb-2021
117,Revenue,CAHD,Extra Care Housing,Private & Voluntary Home Care,Agincare UK Limited,24448.84, 01-Feb-2021
118,Revenue,CAHD,Extra Care Housing,Private & Voluntary Home Care,Agincare UK Limited,11763.39, 01-Feb-2021
119,Revenue,CAHD,Extra Care Housing,Private & Voluntary Home Care,Agincare UK Limited,29078.70, 04-Feb-2021
120,Revenue,CAHD,Extra Care Housing,Private & Voluntary Home Care,Agincare UK Limited,2036.99, 10-Feb-2021
121,Revenue,CAHD,Extra Care Housing,Private & Voluntary Home Care,Agincare UK Limited,879.27, 10-Feb-2021
122,Revenue,CAHD,Extra Care Housing,Private & Voluntary Home Care,Agincare UK Limited,1255.31, 10-Feb-2021
123,Revenue,CAHD,Extra Care Housing,Private & Voluntary Home Care,Agincare UK Limited,1094.94, 10-Feb-2021
124,Revenue,CAHD,Extra Care Housing,Private & Voluntary Home Care,Agincare UK Limited,989.87, 09-Feb-2021
125,Revenue,CAHD,Prison Assessments & Costs,Other Supplies & Services,Agincare UK Limited,2580.00, 12-Feb-2021
126,Revenue,CAHD,Statemented Support Payments to OLAs,Other L.A.s - General,Air Balloon Hill Primary After school Holiday Club,801.92, 23-Feb-2021
127,Revenue,CAHD,CSC - Vinney Green Secure Unit,R & M by Departments,AJ Products,1250.00, 16-Feb-2021
128,Revenue,CAHD,Management & Support costs,Legal Fees,Individual,875.00, 25-Feb-2021
129,Revenue,CAHD,Central - Commissioned Services,Permanent Residential,Alexander House,38129.52, 09-Feb-2021
130,Revenue,CAHD,Central - Commissioned Services,Fees & Charges Income - General,Alexander House,1374.75, 09-Feb-2021
131,Revenue,CAHD,CSC - Adoption Support Fund,Post Adoption,Individual,686.25, 05-Feb-2021
132,Revenue,CAHD,CSC - Adoption Support Fund,Post Adoption,Individual,506.00, 05-Feb-2021
133,Revenue,CAHD,Covid 19 -Adult Social Care,Other Small Contracts,AliMo Care Ltd,9.56, 02-Feb-2021
134,Revenue,CAHD,South - Commissioned Services,Other Small Contracts,AliMo Care Ltd,965.56, 02-Feb-2021
135,Revenue,CAHD,North - Community based support,Other Small Contracts,AliMo Care Ltd,133.84, 02-Feb-2021
136,Revenue,CAHD,Covid 19 -Adult Social Care,Other Small Contracts,AliMo Care Ltd,4.78, 12-Feb-2021
137,Revenue,CAHD,South - Commissioned Services,Other Small Contracts,AliMo Care Ltd,793.48, 12-Feb-2021
138,Revenue,CAHD,North - Community based support,Other Small Contracts,AliMo Care Ltd,119.50, 12-Feb-2021
139,Revenue,CAHD,Covid 19 -Adult Social Care,Other Small Contracts,AliMo Care Ltd,9.56, 26-Feb-2021
140,Revenue,CAHD,South - Commissioned Services,Other Small Contracts,AliMo Care Ltd,630.96, 26-Feb-2021
141,Revenue,CAHD,North - Community based support,Other Small Contracts,AliMo Care Ltd,124.28, 26-Feb-2021
142,Revenue,CAHD,Covid 19 -Adult Social Care,Other Small Contracts,AliMo Care Ltd,9.56, 26-Feb-2021
143,Revenue,CAHD,South - Commissioned Services,Other Small Contracts,AliMo Care Ltd,597.50, 26-Feb-2021
144,Revenue,CAHD,North - Community based support,Other Small Contracts,AliMo Care Ltd,119.50, 26-Feb-2021
145,Revenue,CAHD,CSC - Care Leavers Independent Living,Training Expenses,Individual,670.00, 26-Feb-2021
146,Revenue,CAHD,Mental Capacity Act / DOLS,Legal Fees,Individual,1125.00, 09-Feb-2021
147,Revenue,CAHD,CSC - Vinney Green Secure Unit,Service Contracts (Premises),Allday Time Systems Limited,1052.00, 12-Feb-2021
148,Revenue,CAHD,CSC - Vinney Green Secure Unit,R & M by Departments,Allium Environmental Ltd,475.00, 17-Feb-2021
149,Revenue,CAHD,Covid Winter Grant Funding,Other Supplies & Services,Allpay Limited - Trust Fund,50000.00, 16-Feb-2021
150,Revenue,CAHD,Central - Commissioned Services,Permanent Residential,Alvony House Residential Care Home,3000.00, 09-Feb-2021
151,Revenue,CAHD,CSC - Section 17 SOUTH,Mentoring,Always Precious Ltd,1210.00, 01-Feb-2021
152,Revenue,CAHD,CSC - Residential Placements,Permanent Residential,Amberleigh Care Ltd,17439.71, 08-Feb-2021
153,Revenue,CAHD,CSC - Residential Placements,Permanent Residential,Amberleigh Care Ltd,17439.71, 08-Feb-2021
154,Revenue,CAHD,CSC - Residential Placements,Permanent Residential,Amberleigh Care Ltd,15752.00, 25-Feb-2021
155,Revenue,CAHD,Schools Specific Grant Income,Other Public Bodies,Amberleigh Care Ltd,630.00, 25-Feb-2021
156,Revenue,CAHD,CSC - Residential Placements,Permanent Residential,Ambito Care and Education,19920.87, 08-Feb-2021
157,Revenue,CAHD,CSC - Residential Placements,Permanent Residential,Ambito Care and Education,19930.88, 08-Feb-2021
158,Revenue,CAHD,North - Community based support,Permanent Nursing,Amerind Grove Nursing Home,10825.28, 09-Feb-2021
159,Revenue,CAHD,CSC - Agency Fostering,Foster Parent Allowances,Amicus Foster Care Ltd,4879.00, 03-Feb-2021
160,Revenue,CAHD,CSC - Agency Fostering,Foster Parent Allowances,Amicus Foster Care Ltd,4796.44, 03-Feb-2021
161,Revenue,CAHD,Supporting People Programme,Grants to Voluntary Bodies,Anchor Hanover Group,1039.00, 01-Feb-2021
162,Revenue,CAHD,Supporting People Programme,Grants to Voluntary Bodies,Anchor Hanover Group,847.00, 01-Feb-2021
163,Revenue,CAHD,Early Years Inclusion Fund,Other Public Bodies,Apple Tree Pre-School,1650.00, 05-Feb-2021
164,Revenue,CAHD,Early Years Inclusion Fund,Other Public Bodies,Apple Tree Pre-School,1650.00, 12-Feb-2021
165,Revenue,CAHD,Independent Special Placements - Pre 16,Other Private Contractors,Appleford School,7120.00, 03-Feb-2021
166,Revenue,CAHD,Younger MH non-res purchasing,Supported Living,Arch Care Rehab Services Ltd,586.52, 19-Feb-2021
167,Revenue,CAHD,Younger MH non-res purchasing,Supported Living,Arch Care Rehab Services Ltd,671.66, 18-Feb-2021
168,Revenue,CAHD,Younger MH non-res purchasing,Supported Living,Arch Care Rehab Services Ltd,747.34, 18-Feb-2021
169,Revenue,CAHD,Younger MH non-res purchasing,Supported Living,Arch Care Rehab Services Ltd,756.80, 18-Feb-2021
170,Revenue,CAHD,Younger MH non-res purchasing,Supported Living,Arch Care Rehab Services Ltd,737.88, 18-Feb-2021
171,Revenue,CAHD,Younger MH non-res purchasing,Supported Living,Arch Care Rehab Services Ltd,718.96, 18-Feb-2021
172,Revenue,CAHD,Younger MH non-res purchasing,Supported Living,Archcare Rehab Limited,1957.40, 09-Feb-2021
173,Revenue,CAHD,North - Community based support,Permanent Nursing,Argentum Lodge,4000.00, 09-Feb-2021
174,Revenue,CAHD,South - Commissioned Services,Permanent Residential,Ash View House,5529.44, 09-Feb-2021
175,Revenue,CAHD,Jointly Funded H&SC Packages,Permanent Residential,Ash View House,1133.64, 09-Feb-2021
176,Revenue,CAHD,S117 Placements PCT,Permanent Residential,Ash View House,7707.44, 09-Feb-2021
177,Revenue,CAHD,North - Community based support,Permanent Residential,Ash View House,7099.52, 09-Feb-2021
178,Revenue,CAHD,North - Community based support,Permanent Residential,Ash View House,7120.00, 09-Feb-2021
179,Revenue,CAHD,Section 117 Placements MH Younger,Permanent Residential,Ash View House,5022.60, 09-Feb-2021
180,Revenue,CAHD,Jointly Funded H&SC Packages,Permanent Residential,Ash View House,2152.60, 09-Feb-2021
181,Revenue,CAHD,South - S117,Permanent Residential,Ash View House,6826.64, 09-Feb-2021
182,Revenue,CAHD,South - Commissioned Services,Permanent Residential,Ash View House,6747.84, 09-Feb-2021
183,Revenue,CAHD,Covid - ASC - Infection Control,Grants to Voluntary Bodies,Ash View House,5923.30, 05-Feb-2021
184,Revenue,CAHD,ASC Rapid Testing Fund,Grants to Voluntary Bodies,Ash View House,4562.70, 05-Feb-2021
185,Revenue,CAHD,Supporting People Programme,Grants to Voluntary Bodies,Aspects and Milestones Trust,3441.00, 01-Feb-2021
186,Revenue,CAHD,Supporting People Programme,Grants to Voluntary Bodies,Aspects and Milestones Trust,1725.00, 01-Feb-2021
187,Revenue,CAHD,Covid - ASC - Infection Control,Grants to Voluntary Bodies,Aspirations Support Bristol Limited,1450.30, 26-Feb-2021
188,Revenue,CAHD,CSC - Care Leavers Independent Living,Adults - Family Support,Aspirations Support Bristol Limited,15419.68, 01-Feb-2021
189,Revenue,CAHD,South - Commissioned Services,Adults - Family Support,Ategi Limited,1496.94, 05-Feb-2021
190,Revenue,CAHD,South - Commissioned Services,Adults - Family Support,Ategi Limited,1940.49, 05-Feb-2021
191,Revenue,CAHD,South - Commissioned Services,Adults - Family Support,Ategi Limited,17773.52, 03-Feb-2021
192,Revenue,CAHD,South - Commissioned Services,Permanent Residential,Autism Specialised Care Homes,6506.88, 09-Feb-2021
193,Revenue,CAHD,South - Commissioned Services,Permanent Nursing,Avon Lodge Care Centre,4341.36, 09-Feb-2021
194,Revenue,CAHD,South Glos Users in South Glos Homes,Permanent Nursing,Avon Lodge Care Centre,735.68, 09-Feb-2021
195,Revenue,CAHD,South Glos Users in South Glos Homes,Permanent Nursing,Avon Lodge Care Centre,735.68, 09-Feb-2021
196,Revenue,CAHD,South - Commissioned Services,Permanent Nursing,Avon Lodge Care Centre,4311.16, 09-Feb-2021
197,Revenue,CAHD,South Glos Users in South Glos Homes,Permanent Nursing,Avon Lodge Care Centre,735.68, 09-Feb-2021
198,Revenue,CAHD,South Glos Users in South Glos Homes,Permanent Nursing,Avon Lodge Care Centre,735.68, 09-Feb-2021
199,Revenue,CAHD,South - Commissioned Services,Permanent Nursing,Avon Lodge Care Centre,4537.76, 09-Feb-2021
200,Revenue,CAHD,South Glos Users in South Glos Homes,Permanent Nursing,Avon Lodge Care Centre,735.68, 09-Feb-2021
201,Revenue,CAHD,South Glos Users in South Glos Homes,Permanent Nursing,Avon Lodge Care Centre,735.68, 09-Feb-2021
202,Revenue,CAHD,South - Commissioned Services,Permanent Nursing,Avon Lodge Care Centre,8509.71, 09-Feb-2021
203,Revenue,CAHD,South - Commissioned Services,Permanent Nursing,Avon Lodge Care Centre,3264.00, 09-Feb-2021
204,Revenue,CAHD,South Glos Users in South Glos Homes,Permanent Nursing,Avon Lodge Care Centre,735.68, 09-Feb-2021
205,Revenue,CAHD,South - Commissioned Services,Permanent Nursing,Avon Lodge Care Centre,3448.20, 09-Feb-2021
206,Revenue,CAHD,South Glos Users in South Glos Homes,Permanent Nursing,Avon Lodge Care Centre,735.68, 09-Feb-2021
207,Revenue,CAHD,South - Commissioned Services,Permanent Nursing,Avon Lodge Care Centre,4311.16, 09-Feb-2021
208,Revenue,CAHD,South Glos Users in South Glos Homes,Permanent Nursing,Avon Lodge Care Centre,735.68, 09-Feb-2021
209,Revenue,CAHD,Covid 19- Spend on behalf of NHS,Respite Planned - Nursing,Avon Lodge Care Centre,6805.17, 09-Feb-2021
210,Revenue,CAHD,South - Commissioned Services,Permanent Nursing,Avon Lodge Care Centre,22671.09, 09-Feb-2021
211,Revenue,CAHD,South - Commissioned Services,Permanent Nursing,Avon Lodge Care Centre,4347.88, 09-Feb-2021
212,Revenue,CAHD,South Glos Users in South Glos Homes,Permanent Nursing,Avon Lodge Care Centre,735.68, 09-Feb-2021
213,Revenue,CAHD,South - Commissioned Services,Fees & Charges Income - General,Avon Lodge Care Centre,6780.61, 09-Feb-2021
214,Revenue,CAHD,South Glos Users in South Glos Homes,Permanent Nursing,Avon Lodge Care Centre,735.68, 09-Feb-2021
215,Revenue,CAHD,South Glos Users in South Glos Homes,Permanent Nursing,Avon Lodge Care Centre,735.68, 09-Feb-2021
216,Revenue,CAHD,Covid 19- Spend on behalf of NHS,Respite Planned - Nursing,Avon Lodge Care Centre,3800.00, 09-Feb-2021
217,Revenue,CAHD,Covid 19- Spend on behalf of NHS,Respite Planned - Nursing,Avon Lodge Care Centre,2442.86, 09-Feb-2021
218,Revenue,CAHD,South - Commissioned Services,Permanent Nursing,Avon Lodge Care Centre,4403.84, 09-Feb-2021
219,Revenue,CAHD,South Glos Users in South Glos Homes,Permanent Nursing,Avon Lodge Care Centre,735.68, 09-Feb-2021
220,Revenue,CAHD,South - Commissioned Services,Respite Planned - Nursing,Avon Lodge Care Centre,1606.43, 09-Feb-2021
221,Revenue,CAHD,South - Commissioned Services,Permanent Nursing,Avon Lodge Care Centre,4311.16, 09-Feb-2021
222,Revenue,CAHD,South Glos Users in South Glos Homes,Permanent Nursing,Avon Lodge Care Centre,735.68, 09-Feb-2021
223,Revenue,CAHD,Covid 19- Spend on behalf of NHS,Respite Planned - Nursing,Avon Lodge Care Centre,3800.00, 09-Feb-2021
224,Revenue,CAHD,Covid 19- Spend on behalf of NHS,Respite Planned - Nursing,Avon Lodge Care Centre,1492.86, 09-Feb-2021
225,Revenue,CAHD,Covid 19- Spend on behalf of NHS,Respite Planned - Nursing,Avon Lodge Care Centre,3800.00, 09-Feb-2021
226,Revenue,CAHD,Covid 19- Spend on behalf of NHS,Respite Planned - Nursing,Avon Lodge Care Centre,2850.00, 09-Feb-2021
227,Revenue,CAHD,Covid 19- Spend on behalf of NHS,Respite Planned - Nursing,Avon Lodge Care Centre,3500.00, 09-Feb-2021
228,Revenue,CAHD,South Glos Users in South Glos Homes,Permanent Nursing,Avon Lodge Care Centre,735.68, 09-Feb-2021
229,Revenue,CAHD,Central - Commissioned Services,Permanent Nursing,Avon Lodge Care Centre,3884.80, 09-Feb-2021
230,Revenue,CAHD,South Glos Users in South Glos Homes,Permanent Nursing,Avon Lodge Care Centre,735.68, 09-Feb-2021
231,Revenue,CAHD,Central - Commissioned Services,Permanent Residential,Avon Lodge Care Centre,3400.00, 09-Feb-2021
232,Revenue,CAHD,Central - Commissioned Services,Permanent Nursing,Avon Lodge Care Centre,3400.00, 09-Feb-2021
233,Revenue,CAHD,Covid 19- Spend on behalf of NHS,Respite Planned - Nursing,Avon Lodge Care Centre,4885.71, 09-Feb-2021
234,Revenue,CAHD,Covid 19- Spend on behalf of NHS,Respite Planned - Nursing,Avon Lodge Care Centre,3600.00, 09-Feb-2021
235,Revenue,CAHD,North - Community based support,Permanent Nursing,Avon Lodge Care Centre,3060.00, 09-Feb-2021
236,Revenue,CAHD,South - Commissioned Services,Respite Planned - Nursing,Avon Lodge Care Centre,8773.57, 09-Feb-2021
237,Revenue,CAHD,Covid 19- Spend on behalf of NHS,Respite Planned - Nursing,Avon Lodge Care Centre,3460.00, 09-Feb-2021
238,Revenue,CAHD,Covid 19- Spend on behalf of NHS,Respite Planned - Nursing,Avon Lodge Care Centre,2842.14, 09-Feb-2021
239,Revenue,CAHD,South - Commissioned Services,Respite Planned - Nursing,Avon Lodge Care Centre,1730.00, 09-Feb-2021
240,Revenue,CAHD,Covid 19- Spend on behalf of NHS,Respite Planned - Nursing,Avon Lodge Care Centre,4478.57, 09-Feb-2021
241,Revenue,CAHD,Covid 19- Spend on behalf of NHS,Respite Planned - Nursing,Avon Lodge Care Centre,3800.00, 09-Feb-2021
242,Revenue,CAHD,North - Community based support,Permanent Residential,Avon Lodge Care Centre,3460.00, 09-Feb-2021
243,Revenue,CAHD,Covid 19- Spend on behalf of NHS,Respite Planned - Nursing,Avon Lodge Care Centre,1950.00, 09-Feb-2021
244,Revenue,CAHD,South - Commissioned Services,Permanent Nursing,Avon Lodge Care Centre,4530.04, 09-Feb-2021
245,Revenue,CAHD,South Glos Users in South Glos Homes,Permanent Nursing,Avon Lodge Care Centre,735.68, 09-Feb-2021
246,Revenue,CAHD,South - S117,Permanent Nursing,Avon Lodge Care Centre,3885.48, 09-Feb-2021
247,Revenue,CAHD,South Glos Users in South Glos Homes,Permanent Nursing,Avon Lodge Care Centre,735.68, 09-Feb-2021
248,Revenue,CAHD,North - Community based support,Respite Planned - Nursing,Avon Lodge Care Centre,2471.43, 09-Feb-2021
249,Revenue,CAHD,North - Community based support,Respite Planned - Nursing,Avon Lodge Care Centre,1606.43, 09-Feb-2021
250,Revenue,CAHD,South - Commissioned Services,Permanent Residential,Avon Lodge Care Centre,3060.00, 09-Feb-2021
251,Revenue,CAHD,South Glos Users in South Glos Homes,Permanent Nursing,Avon Lodge Care Centre,735.68, 09-Feb-2021
252,Revenue,CAHD,South Glos Users in South Glos Homes,Permanent Nursing,Avon Lodge Care Centre,735.68, 09-Feb-2021
253,Revenue,CAHD,ASC Rapid Testing Fund,Grants to Voluntary Bodies,Avon Lodge Care Centre,16640.43, 11-Feb-2021
254,Revenue,CAHD,South - Commissioned Services,Permanent Residential,Avon Valley Care Home,4000.00, 09-Feb-2021
255,Revenue,CAHD,South - Commissioned Services,Permanent Residential,Avon Valley Care Home,4800.00, 09-Feb-2021
256,Revenue,CAHD,South - Commissioned Services,Permanent Residential,Avon Valley Care Home,3960.00, 09-Feb-2021
257,Revenue,CAHD,South - Commissioned Services,Permanent Residential,Avon Valley Care Home,3960.00, 09-Feb-2021
258,Revenue,CAHD,South - Commissioned Services,Permanent Residential,Avon Valley Care Home,4000.00, 09-Feb-2021
259,Revenue,CAHD,South - Commissioned Services,Permanent Residential,Avon Valley Care Home,4800.00, 09-Feb-2021
260,Revenue,CAHD,South - Commissioned Services,Permanent Residential,Avon Valley Care Home,3960.00, 09-Feb-2021
261,Revenue,CAHD,South - Commissioned Services,Permanent Residential,Avon Valley Care Home,6285.71, 09-Feb-2021
262,Revenue,CAHD,South - Commissioned Services,Permanent Residential,Avon Valley Care Home,4000.00, 09-Feb-2021
263,Revenue,CAHD,South - Commissioned Services,Fees & Charges Income - General,Avon Valley Care Home,667.50, 09-Feb-2021
264,Revenue,CAHD,South - Commissioned Services,Permanent Residential,Avon Valley Care Home,4000.00, 09-Feb-2021
265,Revenue,CAHD,North - Community based support,Permanent Residential,Avon Valley Care Home,3600.00, 09-Feb-2021
266,Revenue,CAHD,Central - Commissioned Services,Permanent Residential,Avon Valley Care Home,4000.00, 09-Feb-2021
267,Revenue,CAHD,South - Commissioned Services,Respite Emergency - Residential,Avon Valley Care Home,4000.00, 09-Feb-2021
268,Revenue,CAHD,ASC Rapid Testing Fund,Grants to Voluntary Bodies,Avon Valley Care Home,20934.74, 26-Feb-2021
269,Revenue,CAHD,North - Community based support,Permanent Residential,Avonmere Care Home,4680.00, 09-Feb-2021
270,Revenue,CAHD,South - Commissioned Services,Respite Emergency - Residential,Avonmere Care Home,1571.43, 09-Feb-2021
271,Revenue,CAHD,South - Commissioned Services,Respite Planned - Residential,Avonmere Care Home,2000.00, 09-Feb-2021
272,Revenue,CAHD,North - Community based support,Permanent Residential,Avonmere Care Home,4892.00, 09-Feb-2021
273,Revenue,CAHD,Covid 19 -Adult Social Care,Respite Planned - Residential,Avonmere Care Home,4400.00, 09-Feb-2021
274,Revenue,CAHD,North - Community based support,Permanent Residential,Avonmere Care Home,4420.00, 09-Feb-2021
275,Revenue,CAHD,South - Commissioned Services,Respite Emergency - Residential,Avonmere Care Home,4114.29, 09-Feb-2021
276,Revenue,CAHD,South - Commissioned Services,Respite Emergency - Residential,Avonmere Care Home,685.71, 09-Feb-2021
277,Revenue,CAHD,North - Community based support,Permanent Residential,Avonmere Care Home,4600.00, 09-Feb-2021
278,Revenue,CAHD,North - Community based support,Permanent Residential,Avonmere Care Home,4892.00, 09-Feb-2021
279,Revenue,CAHD,Covid 19- Spend on behalf of NHS,Respite Planned - Residential,Avonmere Care Home,4400.00, 09-Feb-2021
280,Revenue,CAHD,ASC Rapid Testing Fund,Grants to Voluntary Bodies,Avonmere Care Home,20397.95, 26-Feb-2021
281,Revenue,CAHD,Covid 19- Spend on behalf of NHS,Respite Planned - Residential,Badminton Place,3942.86, 09-Feb-2021
282,Revenue,CAHD,Covid 19- Spend on behalf of NHS,Respite Planned - Nursing,Badminton Place,3771.43, 09-Feb-2021
283,Revenue,CAHD,Covid 19- Spend on behalf of NHS,Respite Planned - Residential,Badminton Place,7200.00, 09-Feb-2021
284,Revenue,CAHD,Covid 19- Spend on behalf of NHS,Respite Planned - Residential,Badminton Place,6000.00, 09-Feb-2021
285,Revenue,CAHD,Covid 19- Spend on behalf of NHS,Respite Planned - Residential,Badminton Place,514.29, 09-Feb-2021
286,Revenue,CAHD,Covid 19- Spend on behalf of NHS,Respite Planned - Nursing,Badminton Place,5828.57, 09-Feb-2021
287,Revenue,CAHD,Covid 19- Spend on behalf of NHS,Respite Planned - Nursing,Badminton Place,1885.71, 09-Feb-2021
288,Revenue,CAHD,Covid 19- Spend on behalf of NHS,Respite Planned - Nursing,Badminton Place,4642.86, 09-Feb-2021
289,Revenue,CAHD,Covid 19- Spend on behalf of NHS,Respite Planned - Nursing,Badminton Place,2057.14, 09-Feb-2021
290,Revenue,CAHD,Covid - ASC - Infection Control,Grants to Voluntary Bodies,Badminton Place,25086.93, 05-Feb-2021
291,Revenue,CAHD,Covid 19- Spend on behalf of NHS,Respite Emergency - Residential,Badminton Place,58971.43, 09-Feb-2021
292,Revenue,CAHD,ASC Rapid Testing Fund,Grants to Voluntary Bodies,Badminton Place,19324.37, 05-Feb-2021
293,Revenue,CAHD,Childrens - Safeguarding Board,Training Expenses,Barnardo Services Limited,450.00, 18-Feb-2021
294,Revenue,CAHD,Pensions - Non DSG,Annual Pension,Bath & North East Somerset Council,103502.37, 09-Feb-2021
295,Revenue,CAHD,South Glos Users in South Glos Homes,Permanent Nursing,Beaufort Grange Care Home,735.68, 09-Feb-2021
296,Revenue,CAHD,South Glos Users in South Glos Homes,Permanent Nursing,Beaufort Grange Care Home,735.68, 09-Feb-2021
297,Revenue,CAHD,South Glos Users in South Glos Homes,Permanent Nursing,Beaufort Grange Care Home,735.68, 09-Feb-2021
298,Revenue,CAHD,South Glos Users in South Glos Homes,Permanent Nursing,Beaufort Grange Care Home,735.68, 09-Feb-2021
299,Revenue,CAHD,Covid 19- Spend on behalf of NHS,Respite Planned - Nursing,Beaufort Grange Care Home,16132.14, 09-Feb-2021
300,Revenue,CAHD,South Glos Users in South Glos Homes,Permanent Nursing,Beaufort Grange Care Home,735.68, 09-Feb-2021
301,Revenue,CAHD,South Glos Users in South Glos Homes,Permanent Nursing,Beaufort Grange Care Home,735.68, 09-Feb-2021
302,Revenue,CAHD,South Glos Users in South Glos Homes,Permanent Nursing,Beaufort Grange Care Home,735.68, 09-Feb-2021
303,Revenue,CAHD,South Glos Users in South Glos Homes,Permanent Nursing,Beaufort Grange Care Home,735.68, 09-Feb-2021
304,Revenue,CAHD,North - S117,Permanent Nursing,Beaufort Grange Care Home,4877.04, 09-Feb-2021
305,Revenue,CAHD,South Glos Users in South Glos Homes,Permanent Nursing,Beaufort Grange Care Home,735.68, 09-Feb-2021
306,Revenue,CAHD,South Glos Users in South Glos Homes,Permanent Nursing,Beaufort Grange Care Home,735.68, 09-Feb-2021
307,Revenue,CAHD,South Glos Users in South Glos Homes,Permanent Nursing,Beaufort Grange Care Home,735.68, 09-Feb-2021
308,Revenue,CAHD,Central - Commissioned Services,Permanent Nursing,Beaufort Grange Care Home,11784.00, 09-Feb-2021
309,Revenue,CAHD,South Glos Users in South Glos Homes,Permanent Nursing,Beaufort Grange Care Home,735.68, 09-Feb-2021
310,Revenue,CAHD,South Glos Users in South Glos Homes,Permanent Nursing,Beaufort Grange Care Home,735.68, 09-Feb-2021
311,Revenue,CAHD,South Glos Users in South Glos Homes,Permanent Nursing,Beaufort Grange Care Home,735.68, 09-Feb-2021
312,Revenue,CAHD,Covid 19- Spend on behalf of NHS,Respite Planned - Nursing,Beaufort Grange Care Home,14006.14, 09-Feb-2021
313,Revenue,CAHD,South Glos Users in South Glos Homes,Permanent Nursing,Beaufort Grange Care Home,735.68, 09-Feb-2021
314,Revenue,CAHD,South Glos Users in South Glos Homes,Permanent Nursing,Beaufort Grange Care Home,735.68, 09-Feb-2021
315,Revenue,CAHD,South Glos Users in South Glos Homes,Permanent Nursing,Beaufort Grange Care Home,735.68, 09-Feb-2021
316,Revenue,CAHD,South Glos Users in South Glos Homes,Permanent Nursing,Beaufort Grange Care Home,735.68, 09-Feb-2021
317,Revenue,CAHD,South Glos Users in South Glos Homes,Permanent Nursing,Beaufort Grange Care Home,735.68, 09-Feb-2021
318,Revenue,CAHD,South Glos Users in South Glos Homes,Permanent Nursing,Beaufort Grange Care Home,735.68, 09-Feb-2021
319,Revenue,CAHD,South Glos Users in South Glos Homes,Permanent Nursing,Beaufort Grange Care Home,735.68, 09-Feb-2021
320,Revenue,CAHD,South Glos Users in South Glos Homes,Permanent Nursing,Beaufort Grange Care Home,735.68, 09-Feb-2021
321,Revenue,CAHD,South Glos Users in South Glos Homes,Permanent Nursing,Beaufort Grange Care Home,735.68, 09-Feb-2021
322,Revenue,CAHD,South Glos Users in South Glos Homes,Permanent Nursing,Beaufort Grange Care Home,735.68, 09-Feb-2021
323,Revenue,CAHD,South Glos Users in South Glos Homes,Permanent Nursing,Beaufort Grange Care Home,735.68, 09-Feb-2021
324,Revenue,CAHD,South Glos Users in South Glos Homes,Permanent Nursing,Beaufort Grange Care Home,735.68, 09-Feb-2021
325,Revenue,CAHD,Central - Commissioned Services,Permanent Nursing,Beaufort Grange Care Home,5500.00, 09-Feb-2021
326,Revenue,CAHD,South Glos Users in South Glos Homes,Permanent Nursing,Beaufort Grange Care Home,735.68, 09-Feb-2021
327,Revenue,CAHD,South Glos Users in South Glos Homes,Permanent Nursing,Beaufort Grange Care Home,735.68, 09-Feb-2021
328,Revenue,CAHD,South Glos Users in South Glos Homes,Permanent Nursing,Beaufort Grange Care Home,735.68, 09-Feb-2021
329,Revenue,CAHD,Covid 19- Spend on behalf of NHS,Respite Planned - Nursing,Beaufort Grange Care Home,7000.00, 09-Feb-2021
330,Revenue,CAHD,South Glos Users in South Glos Homes,Permanent Nursing,Beaufort Grange Care Home,735.68, 09-Feb-2021
331,Revenue,CAHD,South Glos Users in South Glos Homes,Permanent Nursing,Beaufort Grange Care Home,735.68, 09-Feb-2021
332,Revenue,CAHD,South Glos Users in South Glos Homes,Permanent Nursing,Beaufort Grange Care Home,735.68, 09-Feb-2021
333,Revenue,CAHD,South Glos Users in South Glos Homes,Permanent Nursing,Beaufort Grange Care Home,735.68, 09-Feb-2021
334,Revenue,CAHD,South Glos Users in South Glos Homes,Permanent Nursing,Beaufort Grange Care Home,735.68, 09-Feb-2021
335,Revenue,CAHD,South Glos Users in South Glos Homes,Permanent Nursing,Beaufort Grange Care Home,735.68, 09-Feb-2021
336,Revenue,CAHD,South Glos Users in South Glos Homes,Permanent Nursing,Beaufort Grange Care Home,735.68, 09-Feb-2021
337,Revenue,CAHD,South Glos Users in South Glos Homes,Permanent Nursing,Beaufort Grange Care Home,735.68, 09-Feb-2021
338,Revenue,CAHD,South Glos Users in South Glos Homes,Permanent Nursing,Beaufort Grange Care Home,735.68, 09-Feb-2021
339,Revenue,CAHD,South Glos Users in South Glos Homes,Permanent Nursing,Beaufort Grange Care Home,735.68, 09-Feb-2021
340,Revenue,CAHD,South Glos Users in South Glos Homes,Permanent Nursing,Beaufort Grange Care Home,735.68, 09-Feb-2021
341,Revenue,CAHD,South Glos Users in South Glos Homes,Permanent Nursing,Beaufort Grange Care Home,735.68, 09-Feb-2021
342,Revenue,CAHD,South Glos Users in South Glos Homes,Permanent Nursing,Beaufort Grange Care Home,735.68, 09-Feb-2021
343,Revenue,CAHD,South Glos Users in South Glos Homes,Permanent Nursing,Beaufort Grange Care Home,735.68, 09-Feb-2021
344,Revenue,CAHD,Central - Commissioned Services,Permanent Residential,Beaufort House,2924.56, 09-Feb-2021
345,Revenue,CAHD,Central - Commissioned Services,Permanent Residential,Beaufort House,2831.12, 09-Feb-2021
346,Revenue,CAHD,North - Community based support,Permanent Residential,Beaufort House,2622.84, 09-Feb-2021
347,Revenue,CAHD,South - Commissioned Services,Permanent Residential,Beaufort House,2587.56, 09-Feb-2021
348,Revenue,CAHD,Central - Commissioned Services,Permanent Residential,Beaufort House,3800.00, 09-Feb-2021
349,Revenue,CAHD,Central - Commissioned Services,Fees & Charges Income - General,Beaufort House,1552.29, 09-Feb-2021
350,Revenue,CAHD,Central - Commissioned Services,Fees & Charges Income - General,Beaufort House,1929.29, 09-Feb-2021
351,Revenue,CAHD,North - Community based support,Permanent Residential,Beaufort House,4000.00, 09-Feb-2021
352,Revenue,CAHD,North - Community based support,Permanent Residential,Beaufort House,2753.92, 09-Feb-2021
353,Revenue,CAHD,Covid 19- Spend on behalf of NHS,Respite Planned - Residential,Beaufort House,3314.29, 09-Feb-2021
354,Revenue,CAHD,Central - Commissioned Services,Permanent Residential,Beaufort House,3600.00, 09-Feb-2021
355,Revenue,CAHD,Central - Commissioned Services,Permanent Residential,Beaufort House,3200.00, 09-Feb-2021
356,Revenue,CAHD,Central - Commissioned Services,Permanent Residential,Beaufort House,3600.00, 09-Feb-2021
357,Revenue,CAHD,Central - Commissioned Services,Permanent Residential,Beaufort House,3600.00, 09-Feb-2021
358,Revenue,CAHD,Central - Bed Purchasing and Direct Payments,Permanent Residential,Beaufort House,3400.00, 09-Feb-2021
359,Revenue,CAHD,ASC Rapid Testing Fund,Grants to Voluntary Bodies,Beaufort House,7515.03, 11-Feb-2021
360,Revenue,CAHD,South - Commissioned Services,Permanent Residential,Beech House,3018.84, 09-Feb-2021
361,Revenue,CAHD,South Glos Users in South Glos Homes,Permanent Nursing,Beech House,735.68, 09-Feb-2021
362,Revenue,CAHD,North - Community based support,Permanent Nursing,Beech House,4365.60, 09-Feb-2021
363,Revenue,CAHD,South Glos Users in South Glos Homes,Permanent Nursing,Beech House,735.68, 09-Feb-2021
364,Revenue,CAHD,North - Community based support,Fees & Charges Income - General,Beech House,13059.01, 09-Feb-2021
365,Revenue,CAHD,Bed Purchasing - Southmead Hospital,Permanent Residential,Beech House,4280.00, 09-Feb-2021
366,Revenue,CAHD,South Glos Users in South Glos Homes,Permanent Nursing,Beech House,735.68, 09-Feb-2021
367,Revenue,CAHD,South Glos Users in South Glos Homes,Permanent Nursing,Beech House,735.68, 09-Feb-2021
368,Revenue,CAHD,South Glos Users in South Glos Homes,Permanent Nursing,Beech House,735.68, 09-Feb-2021
369,Revenue,CAHD,South Glos Users in South Glos Homes,Permanent Nursing,Beech House,735.68, 09-Feb-2021
370,Revenue,CAHD,South Glos Users in South Glos Homes,Permanent Nursing,Beech House,735.68, 09-Feb-2021
371,Revenue,CAHD,South Glos Users in South Glos Homes,Permanent Nursing,Beech House,735.68, 09-Feb-2021
372,Revenue,CAHD,North - Community based support,Permanent Nursing,Beech House,4280.00, 09-Feb-2021
373,Revenue,CAHD,South Glos Users in South Glos Homes,Permanent Nursing,Beech House,735.68, 09-Feb-2021
374,Revenue,CAHD,Covid 19- Spend on behalf of NHS,Respite Planned - Nursing,Beech House,4827.14, 09-Feb-2021
375,Revenue,CAHD,North - Community based support,Permanent Nursing,Beech House,4280.00, 09-Feb-2021
376,Revenue,CAHD,South Glos Users in South Glos Homes,Permanent Nursing,Beech House,735.68, 09-Feb-2021
377,Revenue,CAHD,Covid 19- Spend on behalf of NHS,Respite Planned - Residential,Beech House,1401.43, 09-Feb-2021
378,Revenue,CAHD,North - Community based support,Permanent Nursing,Beech House,10700.00, 09-Feb-2021
379,Revenue,CAHD,North - Community based support,Permanent Nursing,Beech House,4280.00, 09-Feb-2021
380,Revenue,CAHD,South Glos Users in South Glos Homes,Permanent Nursing,Beech House,735.68, 09-Feb-2021
381,Revenue,CAHD,North - Community based support,Permanent Nursing,Beech House,4308.04, 09-Feb-2021
382,Revenue,CAHD,South Glos Users in South Glos Homes,Permanent Nursing,Beech House,735.68, 09-Feb-2021
383,Revenue,CAHD,South Glos Users in South Glos Homes,Permanent Nursing,Beech House,735.68, 09-Feb-2021
384,Revenue,CAHD,Bed Purchasing - Southmead Hospital,Permanent Nursing,Beech House,4360.00, 09-Feb-2021
385,Revenue,CAHD,Covid 19- Spend on behalf of NHS,Respite Planned - Residential,Beech House,2491.43, 09-Feb-2021
386,Revenue,CAHD,South Glos Users in South Glos Homes,Permanent Nursing,Beech House,735.68, 09-Feb-2021
387,Revenue,CAHD,South Glos Users in South Glos Homes,Permanent Nursing,Beech House,735.68, 09-Feb-2021
388,Revenue,CAHD,South Glos Users in South Glos Homes,Permanent Nursing,Beech House,735.68, 09-Feb-2021
389,Revenue,CAHD,North - Community based support,Permanent Residential,Beech House,25692.86, 09-Feb-2021
390,Revenue,CAHD,North - Community based support,Permanent Residential,Beech House,4360.00, 09-Feb-2021
391,Revenue,CAHD,Covid 19- Spend on behalf of NHS,Respite Planned - Nursing,Beech House,2647.14, 09-Feb-2021
392,Revenue,CAHD,ASC Rapid Testing Fund,Grants to Voluntary Bodies,Beech House,14761.67, 05-Feb-2021
393,Revenue,CAHD,South Glos Users in South Glos Homes,Permanent Nursing,Beechwood Care Home,1044.00, 09-Feb-2021
394,Revenue,CAHD,Schools Specific Grant Income,Other Public Bodies,Begbrook Primary Academy,630.00, 16-Feb-2021
395,Revenue,CAHD,Schools Specific Grant Income,Other Public Bodies,Begbrook Primary Academy,630.00, 16-Feb-2021
396,Revenue,CAHD,Schools Specific Grant Income,Other Public Bodies,Begbrook Primary Academy,630.00, 16-Feb-2021
397,Revenue,CAHD,South - S117,Permanent Residential,Bidna House,3692.64, 09-Feb-2021
398,Revenue,CAHD,Placements OLA Special Schools and RB,Other L.A.s - General,Blaise High School,754.08, 23-Feb-2021
399,Revenue,CAHD,Statemented Support Payments to OLAs,Other L.A.s - General,Blaise High School,907.83, 23-Feb-2021
400,Revenue,CAHD,Schools Specific Grant Income,Other Public Bodies,Blaise High School,630.00, 16-Feb-2021
401,Revenue,CAHD,Covid 19 -Adult Social Care,Other Small Contracts,Blakehill Healthcare Ltd,18.75, 10-Feb-2021
402,Revenue,CAHD,Central - Commissioned Services,Other Small Contracts,Blakehill Healthcare Ltd,3406.25, 10-Feb-2021
403,Revenue,CAHD,South - Commissioned Services,Other Small Contracts,Blakehill Healthcare Ltd,4401.18, 10-Feb-2021
404,Revenue,CAHD,North - Community based support,Other Small Contracts,Blakehill Healthcare Ltd,693.75, 10-Feb-2021
405,Revenue,CAHD,Covid 19 -Adult Social Care,Other Small Contracts,Blakehill Healthcare Ltd,18.75, 10-Feb-2021
406,Revenue,CAHD,Central - Commissioned Services,Other Small Contracts,Blakehill Healthcare Ltd,3387.50, 10-Feb-2021
407,Revenue,CAHD,South - Commissioned Services,Other Small Contracts,Blakehill Healthcare Ltd,4382.43, 10-Feb-2021
408,Revenue,CAHD,North - Community based support,Other Small Contracts,Blakehill Healthcare Ltd,675.00, 10-Feb-2021
409,Revenue,CAHD,Covid 19 -Adult Social Care,Other Small Contracts,Blakehill Healthcare Ltd,18.75, 10-Feb-2021
410,Revenue,CAHD,Central - Commissioned Services,Other Small Contracts,Blakehill Healthcare Ltd,3493.75, 10-Feb-2021
411,Revenue,CAHD,South - Commissioned Services,Other Small Contracts,Blakehill Healthcare Ltd,4338.68, 10-Feb-2021
412,Revenue,CAHD,North - Community based support,Other Small Contracts,Blakehill Healthcare Ltd,718.75, 10-Feb-2021
413,Revenue,CAHD,Pathway 1 - Re-Ablement Home Care,Other Small Contracts,Blakehill Healthcare Ltd,537.50, 05-Feb-2021
414,Revenue,CAHD,Pathway 1 - Re-Ablement Home Care,Other Small Contracts,Blakehill Healthcare Ltd,4825.00, 05-Feb-2021
415,Revenue,CAHD,Central - Commissioned Services,Other Small Contracts,Blakehill Healthcare Ltd,3443.83, 09-Feb-2021
416,Revenue,CAHD,North - Community based support,Permanent Nursing,Blossom Fields Nursing Home,13848.69, 09-Feb-2021
417,Revenue,CAHD,South Glos Users in South Glos Homes,Permanent Nursing,Blossom Fields Nursing Home,735.68, 09-Feb-2021
418,Revenue,CAHD,South Glos Users in South Glos Homes,Permanent Nursing,Blossom Fields Nursing Home,735.68, 09-Feb-2021
419,Revenue,CAHD,North - Community based support,Permanent Nursing,Blossom Fields Nursing Home,4770.40, 09-Feb-2021
420,Revenue,CAHD,South Glos Users in South Glos Homes,Permanent Nursing,Blossom Fields Nursing Home,735.68, 09-Feb-2021
421,Revenue,CAHD,North - Community based support,Permanent Nursing,Blossom Fields Nursing Home,4352.80, 09-Feb-2021
422,Revenue,CAHD,South Glos Users in South Glos Homes,Permanent Nursing,Blossom Fields Nursing Home,735.68, 09-Feb-2021
423,Revenue,CAHD,South Glos Users in South Glos Homes,Permanent Nursing,Blossom Fields Nursing Home,735.68, 09-Feb-2021
424,Revenue,CAHD,Covid 19- Spend on behalf of NHS,Respite Planned - Nursing,Blossom Fields Nursing Home,2162.14, 09-Feb-2021
425,Revenue,CAHD,South - Commissioned Services,Permanent Nursing,Blossom Fields Nursing Home,4501.36, 09-Feb-2021
426,Revenue,CAHD,South Glos Users in South Glos Homes,Permanent Nursing,Blossom Fields Nursing Home,735.68, 09-Feb-2021
427,Revenue,CAHD,South Glos Users in South Glos Homes,Permanent Nursing,Blossom Fields Nursing Home,735.68, 09-Feb-2021
428,Revenue,CAHD,North - Community based support,Permanent Nursing,Blossom Fields Nursing Home,4799.88, 09-Feb-2021
429,Revenue,CAHD,South Glos Users in South Glos Homes,Permanent Nursing,Blossom Fields Nursing Home,735.68, 09-Feb-2021
430,Revenue,CAHD,South Glos Users in South Glos Homes,Permanent Nursing,Blossom Fields Nursing Home,735.68, 09-Feb-2021
431,Revenue,CAHD,South Glos Users in South Glos Homes,Permanent Nursing,Blossom Fields Nursing Home,735.68, 09-Feb-2021
432,Revenue,CAHD,North - Community based support,Permanent Nursing,Blossom Fields Nursing Home,4800.00, 09-Feb-2021
433,Revenue,CAHD,South Glos Users in South Glos Homes,Permanent Nursing,Blossom Fields Nursing Home,735.68, 09-Feb-2021
434,Revenue,CAHD,South Glos Users in South Glos Homes,Permanent Nursing,Blossom Fields Nursing Home,735.68, 09-Feb-2021
435,Revenue,CAHD,South Glos Users in South Glos Homes,Permanent Nursing,Blossom Fields Nursing Home,735.68, 09-Feb-2021
436,Revenue,CAHD,South - Commissioned Services,Fees & Charges Income - General,Blossom Fields Nursing Home,944.32, 09-Feb-2021
437,Revenue,CAHD,South Glos Users in South Glos Homes,Permanent Nursing,Blossom Fields Nursing Home,735.68, 09-Feb-2021
438,Revenue,CAHD,South Glos Users in South Glos Homes,Permanent Nursing,Blossom Fields Nursing Home,735.68, 09-Feb-2021
439,Revenue,CAHD,Central - Commissioned Services,Permanent Nursing,Blossom Fields Nursing Home,4039.20, 09-Feb-2021
440,Revenue,CAHD,South Glos Users in South Glos Homes,Permanent Nursing,Blossom Fields Nursing Home,735.68, 09-Feb-2021
441,Revenue,CAHD,South Glos Users in South Glos Homes,Permanent Nursing,Blossom Fields Nursing Home,735.68, 09-Feb-2021
442,Revenue,CAHD,South Glos Users in South Glos Homes,Permanent Nursing,Blossom Fields Nursing Home,735.68, 09-Feb-2021
443,Revenue,CAHD,South Glos Users in South Glos Homes,Permanent Nursing,Blossom Fields Nursing Home,735.68, 09-Feb-2021
444,Revenue,CAHD,North - Community based support,Permanent Nursing,Blossom Fields Nursing Home,18176.40, 09-Feb-2021
445,Revenue,CAHD,North - Community based support,Permanent Nursing,Blossom Fields Nursing Home,4039.20, 09-Feb-2021
446,Revenue,CAHD,North - Community based support,Fees & Charges Income - General,Blossom Fields Nursing Home,4257.96, 09-Feb-2021
447,Revenue,CAHD,South Glos Users in South Glos Homes,Permanent Nursing,Blossom Fields Nursing Home,735.68, 09-Feb-2021
448,Revenue,CAHD,Central - Commissioned Services,Fees & Charges Income - General,Blossom Fields Nursing Home,622.29, 09-Feb-2021
449,Revenue,CAHD,North - Community based support,Permanent Nursing,Blossom Fields Nursing Home,4039.20, 09-Feb-2021
450,Revenue,CAHD,South Glos Users in South Glos Homes,Permanent Nursing,Blossom Fields Nursing Home,735.68, 09-Feb-2021
451,Revenue,CAHD,South Glos Users in South Glos Homes,Permanent Nursing,Blossom Fields Nursing Home,735.68, 09-Feb-2021
452,Revenue,CAHD,South Glos Users in South Glos Homes,Permanent Nursing,Blossom Fields Nursing Home,735.68, 09-Feb-2021
453,Revenue,CAHD,North - Community based support,Permanent Nursing,Blossom Fields Nursing Home,3707.64, 09-Feb-2021
454,Revenue,CAHD,South Glos Users in South Glos Homes,Permanent Nursing,Blossom Fields Nursing Home,735.68, 09-Feb-2021
455,Revenue,CAHD,ASC Rapid Testing Fund,Grants to Voluntary Bodies,Blossom Fields Nursing Home,11540.94, 11-Feb-2021
456,Revenue,CAHD,South Glos Users in South Glos Homes,Permanent Nursing,Blossom Fields Nursing Home,2522.33, 09-Feb-2021
457,Revenue,CAHD,South - bed purchasing and direct  payments,Permanent Nursing,Blossom Fields Nursing Home,4039.20, 09-Feb-2021
458,Revenue,CAHD,South Glos Users in South Glos Homes,Permanent Nursing,Blossom Fields Nursing Home,735.68, 09-Feb-2021
459,Revenue,CAHD,North - Community based support,Permanent Nursing,Blossom Fields Nursing Home,4800.00, 09-Feb-2021
460,Revenue,CAHD,South Glos Users in South Glos Homes,Permanent Nursing,Blossom Fields Nursing Home,735.68, 09-Feb-2021
461,Revenue,CAHD,South Glos Users in South Glos Homes,Permanent Nursing,Blossom Fields Nursing Home,735.68, 09-Feb-2021
462,Revenue,CAHD,Central - Commissioned Services,Permanent Nursing,Blossom Fields Nursing Home,4039.20, 09-Feb-2021
463,Revenue,CAHD,South Glos Users in South Glos Homes,Permanent Nursing,Blossom Fields Nursing Home,735.68, 09-Feb-2021
464,Revenue,CAHD,South Glos Users in South Glos Homes,Permanent Nursing,Blossom Fields Nursing Home,735.68, 09-Feb-2021
465,Revenue,CAHD,Central - Commissioned Services,Permanent Residential,Blossom Fields Nursing Home,4039.20, 09-Feb-2021
466,Revenue,CAHD,South - Commissioned Services,Permanent Nursing,Blossom Fields Nursing Home,4683.04, 09-Feb-2021
467,Revenue,CAHD,South Glos Users in South Glos Homes,Permanent Nursing,Blossom Fields Nursing Home,735.68, 09-Feb-2021
468,Revenue,CAHD,Central - Commissioned Services,Permanent Nursing,Blossom Fields Nursing Home,5008.60, 09-Feb-2021
469,Revenue,CAHD,South Glos Users in South Glos Homes,Permanent Nursing,Blossom Fields Nursing Home,735.68, 09-Feb-2021
470,Revenue,CAHD,Central - Commissioned Services,Permanent Nursing,Blossom Fields Nursing Home,4039.20, 09-Feb-2021
471,Revenue,CAHD,South - Commissioned Services,Permanent Nursing,Blossom Fields Nursing Home,3854.40, 09-Feb-2021
472,Revenue,CAHD,South Glos Users in South Glos Homes,Permanent Nursing,Blossom Fields Nursing Home,735.68, 09-Feb-2021
473,Revenue,CAHD,South - Commissioned Services,Permanent Nursing,Blossom Fields Nursing Home,4039.20, 09-Feb-2021
474,Revenue,CAHD,South Glos Users in South Glos Homes,Permanent Nursing,Blossom Fields Nursing Home,735.68, 09-Feb-2021
475,Revenue,CAHD,Central - Commissioned Services,Permanent Nursing,Blossom Fields Nursing Home,4039.20, 09-Feb-2021
476,Revenue,CAHD,South Glos Users in South Glos Homes,Permanent Nursing,Blossom Fields Nursing Home,735.68, 09-Feb-2021
477,Revenue,CAHD,North - Community based support,Permanent Nursing,Blossom Fields Nursing Home,4039.20, 09-Feb-2021
478,Revenue,CAHD,South Glos Users in South Glos Homes,Permanent Nursing,Blossom Fields Nursing Home,735.68, 09-Feb-2021
479,Revenue,CAHD,Central - Commissioned Services,Respite Emergency - Residential,Blossom Fields Nursing Home,20931.43, 09-Feb-2021
480,Revenue,CAHD,Central - Commissioned Services,Permanent Nursing,Blossom Fields Nursing Home,4039.20, 09-Feb-2021
481,Revenue,CAHD,Central - Commissioned Services,Respite Emergency - Residential,Blossom Fields Nursing Home,2545.71, 09-Feb-2021
482,Revenue,CAHD,South Glos Users in South Glos Homes,Permanent Nursing,Blossom Fields Nursing Home,735.68, 09-Feb-2021
483,Revenue,CAHD,South Glos Users in South Glos Homes,Permanent Nursing,Blossom Fields Nursing Home,735.68, 09-Feb-2021
484,Revenue,CAHD,Central - Commissioned Services,Permanent Nursing,Blossom Fields Nursing Home,4683.04, 09-Feb-2021
485,Revenue,CAHD,South Glos Users in South Glos Homes,Permanent Nursing,Blossom Fields Nursing Home,735.68, 09-Feb-2021
486,Revenue,CAHD,Central - Commissioned Services,Permanent Nursing,Blossom Fields Nursing Home,4800.00, 09-Feb-2021
487,Revenue,CAHD,South Glos Users in South Glos Homes,Permanent Nursing,Blossom Fields Nursing Home,735.68, 09-Feb-2021
488,Revenue,CAHD,South - Commissioned Services,Permanent Residential,Blossom Fields Nursing Home,714.29, 09-Feb-2021
489,Revenue,CAHD,South Glos Users in South Glos Homes,Permanent Nursing,Blossom Fields Nursing Home,735.68, 09-Feb-2021
490,Revenue,CAHD,Central - Commissioned Services,Permanent Nursing,Blossom Fields Nursing Home,4675.44, 09-Feb-2021
491,Revenue,CAHD,South Glos Users in South Glos Homes,Permanent Nursing,Blossom Fields Nursing Home,735.68, 09-Feb-2021
492,Revenue,CAHD,North - Community based support,Permanent Nursing,Blossom Fields Nursing Home,5200.00, 09-Feb-2021
493,Revenue,CAHD,South Glos Users in South Glos Homes,Permanent Nursing,Blossom Fields Nursing Home,735.68, 09-Feb-2021
494,Revenue,CAHD,South Glos Users in South Glos Homes,Permanent Nursing,Blossom Fields Nursing Home,1261.17, 09-Feb-2021
495,Revenue,CAHD,South Glos Users in South Glos Homes,Permanent Nursing,Blossom Fields Nursing Home,735.68, 09-Feb-2021
496,Revenue,CAHD,South Glos Users in South Glos Homes,Permanent Nursing,Blossom Fields Nursing Home,735.68, 09-Feb-2021
497,Revenue,CAHD,South Glos Users in South Glos Homes,Permanent Nursing,Blossom Fields Nursing Home,735.68, 09-Feb-2021
498,Revenue,CAHD,North - S117,Permanent Residential,Blossom Fields Nursing Home,4800.00, 09-Feb-2021
499,Revenue,CAHD,South Glos Users in South Glos Homes,Permanent Nursing,Blossom Fields Nursing Home,735.68, 09-Feb-2021
500,Revenue,CAHD,South Glos Users in South Glos Homes,Permanent Nursing,Blossom Fields Nursing Home,735.68, 09-Feb-2021
501,Revenue,CAHD,South Glos Users in South Glos Homes,Permanent Nursing,Blossom Fields Nursing Home,735.68, 09-Feb-2021
502,Revenue,CAHD,North - S117,Permanent Residential,Blossom Fields Nursing Home,5000.00, 09-Feb-2021
503,Revenue,CAHD,South Glos Users in South Glos Homes,Permanent Nursing,Blossom Fields Nursing Home,735.68, 09-Feb-2021
504,Revenue,CAHD,South Glos Users in South Glos Homes,Permanent Nursing,Blossom Fields Nursing Home,735.68, 09-Feb-2021
505,Revenue,CAHD,Central - Commissioned Services,Permanent Nursing,Blossom Fields Nursing Home,4710.40, 09-Feb-2021
506,Revenue,CAHD,South Glos Users in South Glos Homes,Permanent Nursing,Blossom Fields Nursing Home,735.68, 09-Feb-2021
507,Revenue,CAHD,South Glos Users in South Glos Homes,Permanent Nursing,Blossom Fields Nursing Home,735.68, 09-Feb-2021
508,Revenue,CAHD,Central - Commissioned Services,Permanent Nursing,Blossom Fields Nursing Home,7068.60, 09-Feb-2021
509,Revenue,CAHD,Central - Commissioned Services,Permanent Nursing,Blossom Fields Nursing Home,4039.20, 09-Feb-2021
510,Revenue,CAHD,South Glos Users in South Glos Homes,Permanent Nursing,Blossom Fields Nursing Home,1287.44, 09-Feb-2021
511,Revenue,CAHD,South Glos Users in South Glos Homes,Permanent Nursing,Blossom Fields Nursing Home,735.68, 09-Feb-2021
512,Revenue,CAHD,South Glos Users in South Glos Homes,Permanent Nursing,Blossom Fields Nursing Home,735.68, 09-Feb-2021
513,Revenue,CAHD,South Glos Users in South Glos Homes,Permanent Nursing,Blossom Fields Nursing Home,735.68, 09-Feb-2021
514,Revenue,CAHD,South Glos Users in South Glos Homes,Permanent Nursing,Blossom Fields Nursing Home,735.68, 09-Feb-2021
515,Revenue,CAHD,South Glos Users in South Glos Homes,Permanent Nursing,Blossom Fields Nursing Home,735.68, 09-Feb-2021
516,Revenue,CAHD,South Glos Users in South Glos Homes,Permanent Nursing,Blossom Fields Nursing Home,735.68, 09-Feb-2021
517,Revenue,CAHD,South Glos Users in South Glos Homes,Permanent Nursing,Blossom Fields Nursing Home,2679.98, 09-Feb-2021
518,Revenue,CAHD,South Glos Users in South Glos Homes,Permanent Nursing,Blossom Fields Nursing Home,735.68, 09-Feb-2021
519,Revenue,CAHD,Covid 19- Spend on behalf of NHS,Respite Planned - Nursing,Blossom Fields Nursing Home,4039.20, 09-Feb-2021
520,Revenue,CAHD,South Glos Users in South Glos Homes,Permanent Nursing,Blossom Fields Nursing Home,1234.89, 09-Feb-2021
521,Revenue,CAHD,South Glos Users in South Glos Homes,Permanent Nursing,Blossom Fields Nursing Home,735.68, 09-Feb-2021
522,Revenue,CAHD,South Glos Users in South Glos Homes,Permanent Nursing,Blossom Fields Nursing Home,735.68, 09-Feb-2021
523,Revenue,CAHD,Central - Commissioned Services,Permanent Nursing,Blossom Fields Nursing Home,15147.00, 09-Feb-2021
524,Revenue,CAHD,Central - Commissioned Services,Permanent Nursing,Blossom Fields Nursing Home,4039.20, 09-Feb-2021
525,Revenue,CAHD,South Glos Users in South Glos Homes,Permanent Nursing,Blossom Fields Nursing Home,735.68, 09-Feb-2021
526,Revenue,CAHD,Central - Commissioned Services,Fees & Charges Income - General,Blossom Fields Nursing Home,2211.49, 09-Feb-2021
527,Revenue,CAHD,South - S117,Permanent Nursing,Blossom Fields Nursing Home,4386.80, 09-Feb-2021
528,Revenue,CAHD,South Glos Users in South Glos Homes,Permanent Nursing,Blossom Fields Nursing Home,735.68, 09-Feb-2021
529,Revenue,CAHD,South Glos Users in South Glos Homes,Permanent Nursing,Blossom Fields Nursing Home,735.68, 09-Feb-2021
530,Revenue,CAHD,Central - Commissioned Services,Permanent Nursing,Blossom Fields Nursing Home,5000.00, 09-Feb-2021
531,Revenue,CAHD,South Glos Users in South Glos Homes,Permanent Nursing,Blossom Fields Nursing Home,735.68, 09-Feb-2021
532,Revenue,CAHD,South - Commissioned Services,Permanent Nursing,Blossom Fields Nursing Home,4022.92, 09-Feb-2021
533,Revenue,CAHD,South Glos Users in South Glos Homes,Permanent Nursing,Blossom Fields Nursing Home,735.68, 09-Feb-2021
534,Revenue,CAHD,Central - Commissioned Services,Permanent Nursing,Blossom Fields Nursing Home,4039.20, 09-Feb-2021
535,Revenue,CAHD,South Glos Users in South Glos Homes,Permanent Nursing,Blossom Fields Nursing Home,735.68, 09-Feb-2021
536,Revenue,CAHD,South Glos Users in South Glos Homes,Permanent Nursing,Blossom Fields Nursing Home,735.68, 09-Feb-2021
537,Revenue,CAHD,North - Community based support,Permanent Nursing,Blossom Fields Nursing Home,4683.00, 09-Feb-2021
538,Revenue,CAHD,South Glos Users in South Glos Homes,Permanent Nursing,Blossom Fields Nursing Home,735.68, 09-Feb-2021
539,Revenue,CAHD,ASC Rapid Testing Fund,Grants to Voluntary Bodies,Blossom Fields Nursing Home,17445.61, 11-Feb-2021
540,Revenue,CAHD,Statemented Support Payments to OLAs,Other L.A.s - General,Blue Coat CE VA Primary School,837.09, 23-Feb-2021
541,Revenue,CAHD,Statemented Support Payments to OLAs,Other L.A.s - General,Blue Coat CE VA Primary School,1292.50, 23-Feb-2021
542,Revenue,CAHD,North - Community based support,Permanent Residential,Bluebells,3699.60, 09-Feb-2021
543,Revenue,CAHD,Early Years Inclusion Fund,Other Public Bodies,Bluebells Pre School,2000.00, 05-Feb-2021
544,Revenue,CAHD,Early Years Inclusion Fund,Other Public Bodies,Bluebells Pre School,2000.00, 08-Feb-2021
545,Revenue,CAHD,Central - Commissioned Services,Other Small Contracts,Bluebird Care (South Gloucestershire),15798.68, 02-Feb-2021
546,Revenue,CAHD,South - Commissioned Services,Other Small Contracts,Bluebird Care (South Gloucestershire),3144.34, 02-Feb-2021
547,Revenue,CAHD,North - Community based support,Other Small Contracts,Bluebird Care (South Gloucestershire),5187.13, 02-Feb-2021
548,Revenue,CAHD,Resilience Team,Other Small Contracts,Bluebird Care (South Gloucestershire),120.80, 02-Feb-2021
549,Revenue,CAHD,Central - Commissioned Services,Other Small Contracts,Bluebird Care (South Gloucestershire),16610.73, 10-Feb-2021
550,Revenue,CAHD,South - Commissioned Services,Other Small Contracts,Bluebird Care (South Gloucestershire),3114.14, 10-Feb-2021
551,Revenue,CAHD,North - Community based support,Other Small Contracts,Bluebird Care (South Gloucestershire),5579.38, 10-Feb-2021
552,Revenue,CAHD,Resilience Team,Other Small Contracts,Bluebird Care (South Gloucestershire),105.70, 10-Feb-2021
553,Revenue,CAHD,Central - Commissioned Services,Other Small Contracts,Bluebird Care (South Gloucestershire),16682.33, 15-Feb-2021
554,Revenue,CAHD,South - Commissioned Services,Other Small Contracts,Bluebird Care (South Gloucestershire),3295.34, 15-Feb-2021
555,Revenue,CAHD,North - Community based support,Other Small Contracts,Bluebird Care (South Gloucestershire),5525.33, 15-Feb-2021
556,Revenue,CAHD,Resilience Team,Other Small Contracts,Bluebird Care (South Gloucestershire),113.25, 15-Feb-2021
557,Revenue,CAHD,Central - Commissioned Services,Other Small Contracts,Bluebird Care (South Gloucestershire),16511.37, 26-Feb-2021
558,Revenue,CAHD,South - Commissioned Services,Other Small Contracts,Bluebird Care (South Gloucestershire),3378.39, 26-Feb-2021
559,Revenue,CAHD,North - Community based support,Other Small Contracts,Bluebird Care (South Gloucestershire),5768.13, 26-Feb-2021
560,Revenue,CAHD,Resilience Team,Other Small Contracts,Bluebird Care (South Gloucestershire),135.90, 26-Feb-2021
561,Revenue,CAHD,S28A cases,Permanent Residential,Bradbury House,6505.16, 09-Feb-2021
562,Revenue,CAHD,North - Community based support,Permanent Residential,Bradbury House,10016.24, 09-Feb-2021
563,Revenue,CAHD,Jointly Funded H&SC Packages,Permanent Residential,Bradbury House,8244.08, 09-Feb-2021
564,Revenue,CAHD,North - S117,Permanent Residential,Bradbury House,5969.84, 09-Feb-2021
565,Revenue,CAHD,South - Commissioned Services,Permanent Residential,Bradbury House,10168.08, 09-Feb-2021
566,Revenue,CAHD,CSC - Residential Placements,Permanent Residential,Branas ISAF Ltd,24750.00, 08-Feb-2021
567,Revenue,CAHD,CSC - Residential Placements,Permanent Residential,Branas ISAF Ltd,21214.29, 08-Feb-2021
568,Revenue,CAHD,CSC - Residential Placements,Permanent Residential,Branas ISAF Ltd,19478.57, 12-Feb-2021
569,Revenue,CAHD,CSC - Residential Placements,Permanent Residential,Branas ISAF Ltd,21921.43, 08-Feb-2021
570,Revenue,CAHD,CSC - Residential Placements,Permanent Residential,Branas ISAF Ltd,20127.86, 12-Feb-2021
571,Revenue,CAHD,CSC - Residential Placements,Permanent Residential,Branas ISAF Ltd,21921.43, 12-Feb-2021
572,Revenue,CAHD,CSC - Residential Placements,Permanent Residential,Branas ISAF Ltd,21921.43, 08-Feb-2021
573,Revenue,CAHD,CSC - Child Arrangement Orders (prev RO),Residence Order Allowances,Individual,6073.30, 12-Feb-2021
574,Revenue,CAHD,Social Lettings Agency,Rent,Individual,699.32, 25-Feb-2021
575,Revenue,CAHD,Social Lettings Agency,Fees - General,Individual,20.57, 25-Feb-2021
576,Revenue,CAHD,Social Lettings Agency,Rent,Individual,766.10, 03-Feb-2021
577,Revenue,CAHD,Social Lettings Agency,Fees - General,Individual,8.15, 03-Feb-2021
578,Revenue,CAHD,North - Community based support,Permanent Residential,Bridge House Care Home,2848.00, 09-Feb-2021
579,Revenue,CAHD,North - Community based support,Permanent Residential,Bridge House Care Home,2678.04, 09-Feb-2021
580,Revenue,CAHD,ASC Rapid Testing Fund,Grants to Voluntary Bodies,Bridge House Care Home,4294.30, 05-Feb-2021
581,Revenue,CAHD,North - Community based support,Permanent Residential,Bridgwater Court Care Home,10773.64, 09-Feb-2021
582,Revenue,CAHD,Early Years Inclusion Fund,Other Public Bodies,Bright Sparks Pre-School,2000.00, 01-Feb-2021
583,Revenue,CAHD,Early Years High Needs Support,Other Private Contractors,Bright Sparks Pre-School,1233.00, 23-Feb-2021
584,Revenue,CAHD,Covid 19 -Adult Social Care,Interview Expenses,Brigstowe Media Ltd,2265.00, 02-Feb-2021
585,Revenue,CAHD,Statemented Support Academies,Other Public Bodies,Bristol & South Gloucestershire UTC,1556.28, 23-Feb-2021
586,Revenue,CAHD,Statemented Support Academies,Other Public Bodies,Bristol & South Gloucestershire UTC,907.83, 23-Feb-2021
587,Revenue,CAHD,Statemented Support Payments to OLAs,Other L.A.s - General,Bristol Cathedral Choir School,942.58, 23-Feb-2021
588,Revenue,CAHD,Statemented Support Payments to OLAs,Other L.A.s - General,Bristol Cathedral Choir School,880.08, 23-Feb-2021
589,Revenue,CAHD,Schools Specific Grant Income,Other Public Bodies,Bristol Cathedral Choir School,630.00, 16-Feb-2021
590,Revenue,CAHD,CSC - YOT Pooled Budget,Fees - General,Bristol City Council,4824.00, 12-Feb-2021
591,Revenue,CAHD,Sexual Health,Other Small Contracts,Bristol City Council,235634.00, 05-Feb-2021
592,Revenue,CAHD,Placements OLA Special Schools and RB,Other L.A.s - General,Bristol City Council - Schools,1789.68, 23-Feb-2021
593,Revenue,CAHD,Placements OLA Special Schools and RB,Other L.A.s - General,Bristol City Council - Schools,583.48, 23-Feb-2021
594,Revenue,CAHD,Placements OLA Special Schools and RB,Other L.A.s - General,Bristol City Council - Schools,1145.32, 23-Feb-2021
595,Revenue,CAHD,Statemented Support Payments to OLAs,Other L.A.s - General,Bristol City Council - Schools,1625.17, 23-Feb-2021
596,Revenue,CAHD,Statemented Support Payments to OLAs,Other L.A.s - General,Bristol City Council - Schools,897.42, 23-Feb-2021
597,Revenue,CAHD,Placements OLA Special Schools and RB,Other L.A.s - General,Bristol City Council - Schools,715.72, 23-Feb-2021
598,Revenue,CAHD,Placements OLA Special Schools and RB,Other L.A.s - General,Bristol City Council - Schools,1145.32, 23-Feb-2021
599,Revenue,CAHD,Statemented Support Payments to OLAs,Other L.A.s - General,Bristol City Council - Schools,554.13, 23-Feb-2021
600,Revenue,CAHD,Placements OLA Special Schools and RB,Other L.A.s - General,Bristol City Council - Schools,2506.20, 23-Feb-2021
601,Revenue,CAHD,Placements OLA Special Schools and RB,Other L.A.s - General,Bristol City Council - Schools,583.48, 23-Feb-2021
602,Revenue,CAHD,Placements OLA Special Schools and RB,Other L.A.s - General,Bristol City Council - Schools,2506.20, 23-Feb-2021
603,Revenue,CAHD,Statemented Support Payments to OLAs,Other L.A.s - General,Bristol City Council - Schools,787.54, 23-Feb-2021
604,Revenue,CAHD,Statemented Support Payments to OLAs,Other L.A.s - General,Bristol City Council - Schools,635.33, 23-Feb-2021
605,Revenue,CAHD,Placements OLA Special Schools and RB,Other L.A.s - General,Bristol City Council - Schools,1789.68, 23-Feb-2021
606,Revenue,CAHD,Placements OLA Special Schools and RB,Other L.A.s - General,Bristol City Council - Schools,583.48, 23-Feb-2021
607,Revenue,CAHD,Placements OLA Special Schools and RB,Other L.A.s - General,Bristol City Council - Schools,1145.32, 23-Feb-2021
608,Revenue,CAHD,Placements OLA Special Schools and RB,Other L.A.s - General,Bristol City Council - Schools,1145.32, 23-Feb-2021
609,Revenue,CAHD,Placements OLA Special Schools and RB,Other L.A.s - General,Bristol City Council - Schools,1145.32, 23-Feb-2021
610,Revenue,CAHD,Placements OLA Special Schools and RB,Other L.A.s - General,Bristol City Council - Schools,715.72, 23-Feb-2021
611,Revenue,CAHD,Placements OLA Special Schools and RB,Other L.A.s - General,Bristol City Council - Schools,1789.68, 23-Feb-2021
612,Revenue,CAHD,Schools Specific Grant Income,Other Public Bodies,Bristol City Council - Schools,630.00, 16-Feb-2021
613,Revenue,CAHD,Schools Specific Grant Income,Other Public Bodies,Bristol City Council - Schools,630.00, 16-Feb-2021
614,Revenue,CAHD,Placements OLA Special Schools and RB,Other L.A.s - General,Bristol City Council - Schools,1789.68, 23-Feb-2021
615,Revenue,CAHD,Placements OLA Special Schools and RB,Other L.A.s - General,Bristol City Council - Schools,583.48, 23-Feb-2021
616,Revenue,CAHD,Placements OLA Special Schools and RB,Other L.A.s - General,Bristol City Council - Schools,715.88, 23-Feb-2021
617,Revenue,CAHD,Placements OLA Special Schools and RB,Other L.A.s - General,Bristol City Council - Schools,2506.20, 23-Feb-2021
618,Revenue,CAHD,Placements OLA Special Schools and RB,Other L.A.s - General,Bristol City Council - Schools,1789.68, 23-Feb-2021
619,Revenue,CAHD,Placements OLA Special Schools and RB,Other L.A.s - General,Bristol City Council - Schools,583.48, 23-Feb-2021
620,Revenue,CAHD,Placements OLA Special Schools and RB,Other L.A.s - General,Bristol City Council - Schools,715.72, 23-Feb-2021
621,Revenue,CAHD,Placements OLA Special Schools and RB,Other L.A.s - General,Bristol City Council - Schools,2506.20, 23-Feb-2021
622,Revenue,CAHD,Placements OLA Special Schools and RB,Other L.A.s - General,Bristol City Council - Schools,583.48, 23-Feb-2021
623,Revenue,CAHD,Placements OLA Special Schools and RB,Other L.A.s - General,Bristol City Council - Schools,1431.76, 23-Feb-2021
624,Revenue,CAHD,Placements OLA Special Schools and RB,Other L.A.s - General,Bristol City Council - Schools,1789.68, 23-Feb-2021
625,Revenue,CAHD,Placements OLA Special Schools and RB,Other L.A.s - General,Bristol City Council - Schools,583.48, 23-Feb-2021
626,Revenue,CAHD,Placements OLA Special Schools and RB,Other L.A.s - General,Bristol City Council - Schools,1145.32, 23-Feb-2021
627,Revenue,CAHD,Placements OLA Special Schools and RB,Other L.A.s - General,Bristol City Council - Schools,1145.32, 23-Feb-2021
628,Revenue,CAHD,Schools Specific Grant Income,Other Public Bodies,Bristol City Council - Schools,630.00, 16-Feb-2021
629,Revenue,CAHD,Schools Specific Grant Income,Other Public Bodies,Bristol City Council - Schools,630.00, 16-Feb-2021
630,Revenue,CAHD,Schools Specific Grant Income,Other Public Bodies,Bristol City Council - Schools,630.00, 16-Feb-2021
631,Revenue,CAHD,Placements OLA Special Schools and RB,Other L.A.s - General,Bristol Gateway School,1789.68, 23-Feb-2021
632,Revenue,CAHD,Placements OLA Special Schools and RB,Other L.A.s - General,Bristol Gateway School,1789.68, 23-Feb-2021
633,Revenue,CAHD,Placements OLA Special Schools and RB,Other L.A.s - General,Bristol Gateway School,1722.16, 23-Feb-2021
634,Revenue,CAHD,Placements OLA Special Schools and RB,Other L.A.s - General,Bristol Gateway School,715.72, 23-Feb-2021
635,Revenue,CAHD,Placements OLA Special Schools and RB,Other L.A.s - General,Bristol Gateway School,2506.20, 23-Feb-2021
636,Revenue,CAHD,Training - Adult Services,Training Expenses,Bristol MIND,426.00, 19-Feb-2021
637,Revenue,CAHD,Mental Health and Emotional Wellbeing,Training Expenses,Bristol MIND,1000.00, 19-Feb-2021
638,Revenue,CAHD,NTS Grant - Trainee Social Wor,Training Expenses,Bristol MIND,1560.00, 19-Feb-2021
639,Revenue,CAHD,SEN High Needs - Not at School Base,Other Private Contractors,Bristol Tuition Limited,585.00, 16-Feb-2021
640,Revenue,CAHD,SEN High Needs - Not at School Base,Other Private Contractors,Bristol Tuition Limited,990.00, 04-Feb-2021
641,Revenue,CAHD,SEN High Needs - Not at School Base,Other Private Contractors,Bristol Tuition Limited,1131.50, 04-Feb-2021
642,Revenue,CAHD,SEN High Needs - Not at School Base,Other Private Contractors,Bristol Tuition Limited,580.50, 04-Feb-2021
643,Revenue,CAHD,SEN High Needs - Not at School Base,Other Private Contractors,Bristol Tuition Limited,644.50, 12-Feb-2021
644,Revenue,CAHD,SEN High Needs - Not at School Base,Other Private Contractors,Bristol Tuition Limited,646.00, 16-Feb-2021
645,Revenue,CAHD,SEN High Needs - Not at School Base,Other Private Contractors,Bristol Tuition Limited,608.00, 15-Feb-2021
646,Revenue,CAHD,Schools Specific Grant Income,Educational Materials,Bristol Tuition Limited,5016.00, 19-Feb-2021
647,Revenue,CAHD,Statemented Support Payments to OLAs,Other L.A.s - General,Broadlands Academy,1332.27, 23-Feb-2021
648,Revenue,CAHD,Statemented Support Payments to OLAs,Other L.A.s - General,Broadlands Academy,835.17, 23-Feb-2021
649,Revenue,CAHD,North - Community based support,Permanent Residential,Brockhills Farm,3300.00, 09-Feb-2021
650,Revenue,CAHD,Supporting People Programme,Grants to Voluntary Bodies,Bromford  :  Merlin Housing Society,15637.00, 01-Feb-2021
651,Revenue,CAHD,Supporting People Programme,Grants to Voluntary Bodies,Bromford  :  Merlin Housing Society,2741.00, 01-Feb-2021
652,Revenue,CAHD,Supporting People Programme,Grants to Voluntary Bodies,Bromford  :  Merlin Housing Society,22940.00, 01-Feb-2021
653,Revenue,CAHD,Supporting People Programme,Grants to Voluntary Bodies,Bromford  :  Merlin Housing Society,1113.00, 01-Feb-2021
654,Revenue,CAHD,Discretionary Housing Payment,Other Supplies & Services,Bromford  :  Merlin Housing Society,583.76, 24-Feb-2021
655,Revenue,CAHD,School Improvement and Support,Training Expenses,Brookeside C.P School,500.00, 26-Feb-2021
656,Revenue,CAHD,South Glos Users in South Glos Homes,Permanent Nursing,Brunelcare,814.50, 19-Feb-2021
657,Revenue,CAHD,South Glos Users in South Glos Homes,Permanent Nursing,Brunelcare,814.50, 19-Feb-2021
658,Revenue,CAHD,South Glos Users in South Glos Homes,Permanent Nursing,Brunelcare,814.50, 19-Feb-2021
659,Revenue,CAHD,South Glos Users in South Glos Homes,Permanent Nursing,Brunelcare,814.50, 19-Feb-2021
660,Revenue,CAHD,South Glos Users in South Glos Homes,Permanent Nursing,Brunelcare,814.50, 19-Feb-2021
661,Revenue,CAHD,South Glos Users in South Glos Homes,Permanent Nursing,Brunelcare,814.50, 19-Feb-2021
662,Revenue,CAHD,South Glos Users in South Glos Homes,Permanent Nursing,Brunelcare,814.50, 19-Feb-2021
663,Revenue,CAHD,South Glos Users in South Glos Homes,Permanent Nursing,Brunelcare,814.50, 19-Feb-2021
664,Revenue,CAHD,South Glos Users in South Glos Homes,Permanent Nursing,Brunelcare,814.50, 19-Feb-2021
665,Revenue,CAHD,South Glos Users in South Glos Homes,Permanent Nursing,Brunelcare,814.50, 19-Feb-2021
666,Revenue,CAHD,South Glos Users in South Glos Homes,Permanent Nursing,Brunelcare,814.50, 19-Feb-2021
667,Revenue,CAHD,South Glos Users in South Glos Homes,Permanent Nursing,Brunelcare,814.50, 19-Feb-2021
668,Revenue,CAHD,North - S117,Permanent Nursing,Brunelcare,3742.45, 19-Feb-2021
669,Revenue,CAHD,North - S117,Permanent Nursing,Brunelcare,3742.45, 19-Feb-2021
670,Revenue,CAHD,South - Commissioned Services,Permanent Nursing,Brunelcare,3742.45, 19-Feb-2021
671,Revenue,CAHD,South - Commissioned Services,Permanent Nursing,Brunelcare,2717.59, 19-Feb-2021
672,Revenue,CAHD,South - Commissioned Services,Permanent Nursing,Brunelcare,2889.24, 19-Feb-2021
673,Revenue,CAHD,South - Commissioned Services,Permanent Nursing,Brunelcare,3010.76, 19-Feb-2021
674,Revenue,CAHD,South - Commissioned Services,Permanent Nursing,Brunelcare,4556.96, 19-Feb-2021
675,Revenue,CAHD,South - Commissioned Services,Permanent Nursing,Brunelcare,3117.45, 19-Feb-2021
676,Revenue,CAHD,South - Commissioned Services,Permanent Nursing,Brunelcare,2154.99, 19-Feb-2021
677,Revenue,CAHD,Central - Commissioned Services,Permanent Nursing,Brunelcare,3070.46, 19-Feb-2021
678,Revenue,CAHD,North - Community based support,Permanent Nursing,Brunelcare,3742.45, 19-Feb-2021
679,Revenue,CAHD,North - Community based support,Permanent Nursing,Brunelcare,2994.11, 19-Feb-2021
680,Revenue,CAHD,North - Community based support,Permanent Nursing,Brunelcare,2983.04, 19-Feb-2021
681,Revenue,CAHD,Central - Commissioned Services,Respite Planned - Nursing,Brunelcare,4552.53, 19-Feb-2021
682,Revenue,CAHD,Central - Commissioned Services,Other Small Contracts,Brunelcare,292.80, 10-Feb-2021
683,Revenue,CAHD,South - Commissioned Services,Other Small Contracts,Brunelcare,16621.28, 10-Feb-2021
684,Revenue,CAHD,North - Community based support,Other Small Contracts,Brunelcare,361.12, 10-Feb-2021
685,Revenue,CAHD,Central - Commissioned Services,Other Small Contracts,Brunelcare,297.68, 12-Feb-2021
686,Revenue,CAHD,South - Commissioned Services,Other Small Contracts,Brunelcare,16255.28, 12-Feb-2021
687,Revenue,CAHD,North - Community based support,Other Small Contracts,Brunelcare,366.00, 12-Feb-2021
688,Revenue,CAHD,Central - Commissioned Services,Other Small Contracts,Brunelcare,307.44, 26-Feb-2021
689,Revenue,CAHD,South - Commissioned Services,Other Small Contracts,Brunelcare,15728.24, 26-Feb-2021
690,Revenue,CAHD,North - Community based support,Other Small Contracts,Brunelcare,356.24, 26-Feb-2021
691,Revenue,CAHD,Central - Commissioned Services,Other Small Contracts,Brunelcare,287.92, 26-Feb-2021
692,Revenue,CAHD,South - Commissioned Services,Other Small Contracts,Brunelcare,15523.28, 26-Feb-2021
693,Revenue,CAHD,North - Community based support,Other Small Contracts,Brunelcare,370.88, 26-Feb-2021
694,Revenue,CAHD,Early Years Inclusion Fund,Other Public Bodies,Buckingham Gardens Day Nursery,1550.00, 05-Feb-2021
695,Revenue,CAHD,North - S117,Permanent Residential,Buckland Care,3600.00, 09-Feb-2021
696,Revenue,CAHD,Early Years High Needs Support,Other Private Contractors,Butterflies (Bristol) Limited,616.50, 23-Feb-2021
697,Revenue,CAHD,Training - Adult Services,Training Expenses,BW Training & Coaching Ltd,800.00, 05-Feb-2021
698,Revenue,CAHD,Training - Adult Services,Training Expenses,BW Training & Coaching Ltd,800.00, 05-Feb-2021
699,Revenue,CAHD,Training - Adult Services,Training Expenses,BW Training & Coaching Ltd,600.00, 25-Feb-2021
700,Revenue,CAHD,Training - Adult Services,Training Expenses,BW Training & Coaching Ltd,800.00, 25-Feb-2021
701,Revenue,CAHD,CSC - Vinney Green Secure Unit,R & M by Departments,BWS Standfast Fire & Security Systems,2489.44, 18-Feb-2021
702,Revenue,CAHD,CSC - Vinney Green Secure Unit,R & M by Departments,BWS Standfast Fire & Security Systems,3462.00, 18-Feb-2021
703,Revenue,CAHD,Social Lettings Agency,Rent,Individual,710.96, 26-Feb-2021
704,Revenue,CAHD,Social Lettings Agency,Fees - General,Individual,16.16, 26-Feb-2021
705,Revenue,CAHD,North - Community based support,Permanent Nursing,C31465Clevedon Court Nursing Home,3448.16, 09-Feb-2021
706,Revenue,CAHD,Statemented Support Payments to OLAs,Other L.A.s - General,Cabot Learning Federation,1544.49, 23-Feb-2021
707,Revenue,CAHD,Statemented Support Academies,Other Public Bodies,Cabot Learning Federation,27384.00, 26-Feb-2021
708,Revenue,CAHD,Statemented Support Academies,Other Public Bodies,Cabot Learning Federation,918.71, 23-Feb-2021
709,Revenue,CAHD,Statemented Support Academies,Other Public Bodies,Cabot Learning Federation,1202.39, 23-Feb-2021
710,Revenue,CAHD,Statemented Support Academies,Other Public Bodies,Cabot Learning Federation,908.00, 23-Feb-2021
711,Revenue,CAHD,Statemented Support Academies,Other Public Bodies,Cabot Learning Federation,1666.67, 23-Feb-2021
712,Revenue,CAHD,Statemented Support Academies,Other Public Bodies,Cabot Learning Federation,1103.25, 23-Feb-2021
713,Revenue,CAHD,Statemented Support Academies,Other Public Bodies,Cabot Learning Federation,907.83, 23-Feb-2021
714,Revenue,CAHD,Statemented Support Academies,Other Public Bodies,Cabot Learning Federation,1899.58, 23-Feb-2021
715,Revenue,CAHD,Statemented Support Academies,Other Public Bodies,Cabot Learning Federation,788.22, 23-Feb-2021
716,Revenue,CAHD,Statemented Support Academies,Other Public Bodies,Cabot Learning Federation,957.92, 23-Feb-2021
717,Revenue,CAHD,Statemented Support Academies,Other Public Bodies,Cabot Learning Federation,1654.33, 23-Feb-2021
718,Revenue,CAHD,Statemented Support Academies,Other Public Bodies,Cabot Learning Federation,2206.25, 23-Feb-2021
719,Revenue,CAHD,Schools Specific Grant Income,Other Public Bodies,Cabot Learning Federation,630.00, 16-Feb-2021
720,Revenue,CAHD,Statemented Support Payments to OLAs,Other L.A.s - General,Cabot Learning Federation,1013.94, 23-Feb-2021
721,Revenue,CAHD,Schools Specific Grant Income,Other Public Bodies,Cabot Learning Federation,630.00, 16-Feb-2021
722,Revenue,CAHD,Statemented Support Academies,Other Public Bodies,Cabot Learning Federation,658.75, 23-Feb-2021
723,Revenue,CAHD,Statemented Support Academies,Other Public Bodies,Cabot Learning Federation,1854.42, 23-Feb-2021
724,Revenue,CAHD,Statemented Support Academies,Other Public Bodies,Cabot Learning Federation,632.67, 23-Feb-2021
725,Revenue,CAHD,Statemented Support Academies,Other Public Bodies,Cabot Learning Federation,695.61, 23-Feb-2021
726,Revenue,CAHD,Statemented Support Academies,Other Public Bodies,Cabot Learning Federation,918.75, 23-Feb-2021
727,Revenue,CAHD,Statemented Support Academies,Other Public Bodies,Cabot Learning Federation,975.58, 23-Feb-2021
728,Revenue,CAHD,Statemented Support Academies,Other Public Bodies,Cabot Learning Federation,1052.92, 23-Feb-2021
729,Revenue,CAHD,Academy Resource Base Funding,Other Public Bodies,Cabot Learning Federation,5369.84, 26-Feb-2021
730,Revenue,CAHD,Academy Resource Base Funding,Other Public Bodies,Cabot Learning Federation,1538.16, 26-Feb-2021
731,Revenue,CAHD,Academy Resource Base Funding,Other Public Bodies,Cabot Learning Federation,1062.08, 26-Feb-2021
732,Revenue,CAHD,Academy Resource Base Funding,Other Public Bodies,Cabot Learning Federation,1062.08, 26-Feb-2021
733,Revenue,CAHD,Academy Resource Base Funding,Other Public Bodies,Cabot Learning Federation,1062.08, 26-Feb-2021
734,Revenue,CAHD,Academy Resource Base Funding,Other Public Bodies,Cabot Learning Federation,915.64, 26-Feb-2021
735,Revenue,CAHD,Academy Resource Base Funding,Other Public Bodies,Cabot Learning Federation,1538.16, 26-Feb-2021
736,Revenue,CAHD,Academy Resource Base Funding,Other Public Bodies,Cabot Learning Federation,1062.08, 26-Feb-2021
737,Revenue,CAHD,Academy Resource Base Funding,Other Public Bodies,Cabot Learning Federation,1062.08, 26-Feb-2021
738,Revenue,CAHD,Academy Resource Base Funding,Other Public Bodies,Cabot Learning Federation,585.92, 26-Feb-2021
739,Revenue,CAHD,Academy Resource Base Funding,Other Public Bodies,Cabot Learning Federation,1062.08, 26-Feb-2021
740,Revenue,CAHD,Academy Resource Base Funding,Other Public Bodies,Cabot Learning Federation,1062.08, 26-Feb-2021
741,Revenue,CAHD,Academy Resource Base Funding,Other Public Bodies,Cabot Learning Federation,1538.16, 26-Feb-2021
742,Revenue,CAHD,Academy Resource Base Funding,Other Public Bodies,Cabot Learning Federation,1391.72, 26-Feb-2021
743,Revenue,CAHD,Academy Resource Base Funding,Other Public Bodies,Cabot Learning Federation,585.92, 26-Feb-2021
744,Revenue,CAHD,Academy Resource Base Funding,Other Public Bodies,Cabot Learning Federation,1391.72, 26-Feb-2021
745,Revenue,CAHD,Academy Resource Base Funding,Other Public Bodies,Cabot Learning Federation,1538.16, 26-Feb-2021
746,Revenue,CAHD,Academy Resource Base Funding,Other Public Bodies,Cabot Learning Federation,1062.08, 26-Feb-2021
747,Revenue,CAHD,Academy Resource Base Funding,Other Public Bodies,Cabot Learning Federation,1977.64, 26-Feb-2021
748,Revenue,CAHD,Academy Resource Base Funding,Other Public Bodies,Cabot Learning Federation,1062.08, 26-Feb-2021
749,Revenue,CAHD,Academy Resource Base Funding,Other Public Bodies,Cabot Learning Federation,1391.72, 26-Feb-2021
750,Revenue,CAHD,Statemented Support Payments to OLAs,Other L.A.s - General,Cabot Learning Federation,872.46, 23-Feb-2021
751,Revenue,CAHD,Statemented Support Academies,Other Public Bodies,Cabot Learning Federation,1626.67, 23-Feb-2021
752,Revenue,CAHD,Statemented Support Academies,Other Public Bodies,Cabot Learning Federation,710.58, 23-Feb-2021
753,Revenue,CAHD,Statemented Support Academies,Other Public Bodies,Cabot Learning Federation,804.08, 23-Feb-2021
754,Revenue,CAHD,Statemented Support Academies,Other Public Bodies,Cabot Learning Federation,554.13, 23-Feb-2021
755,Revenue,CAHD,Statemented Support Academies,Other Public Bodies,Cabot Learning Federation,742.77, 23-Feb-2021
756,Revenue,CAHD,Statemented Support Academies,Other Public Bodies,Cabot Learning Federation,778.14, 23-Feb-2021
757,Revenue,CAHD,Statemented Support Academies,Other Public Bodies,Cabot Learning Federation,813.51, 23-Feb-2021
758,Revenue,CAHD,Statemented Support Payments to OLAs,Other L.A.s - General,Cabot Learning Federation,601.29, 23-Feb-2021
759,Revenue,CAHD,Statemented Support Academies,Other Public Bodies,Cabot Learning Federation,1131.84, 23-Feb-2021
760,Revenue,CAHD,Statemented Support Academies,Other Public Bodies,Cabot Learning Federation,589.50, 23-Feb-2021
761,Revenue,CAHD,Statemented Support Academies,Other Public Bodies,Cabot Learning Federation,554.13, 23-Feb-2021
762,Revenue,CAHD,Statemented Support Academies,Other Public Bodies,Cabot Learning Federation,801.72, 23-Feb-2021
763,Revenue,CAHD,Statemented Support Academies,Other Public Bodies,Cabot Learning Federation,1096.47, 23-Feb-2021
764,Revenue,CAHD,Statemented Support Academies,Other Public Bodies,Cabot Learning Federation,730.98, 23-Feb-2021
765,Revenue,CAHD,Statemented Support Academies,Other Public Bodies,Cabot Learning Federation,907.83, 23-Feb-2021
766,Revenue,CAHD,Statemented Support Academies,Other Public Bodies,Cabot Learning Federation,801.92, 23-Feb-2021
767,Revenue,CAHD,Statemented Support Academies,Other Public Bodies,Cabot Learning Federation,530.55, 23-Feb-2021
768,Revenue,CAHD,Statemented Support Academies,Other Public Bodies,Cabot Learning Federation,931.41, 23-Feb-2021
769,Revenue,CAHD,Statemented Support Academies,Other Public Bodies,Cabot Learning Federation,2058.00, 23-Feb-2021
770,Revenue,CAHD,High Risk Group Funding,Schools Funding,Cabot Learning Federation,1000.00, 23-Feb-2021
771,Revenue,CAHD,Schools Specific Grant Income,Other Public Bodies,Cabot Learning Federation,630.00, 16-Feb-2021
772,Revenue,CAHD,Schools Specific Grant Income,Other Public Bodies,Cabot Learning Federation,630.00, 16-Feb-2021
773,Revenue,CAHD,Schools Specific Grant Income,Other Public Bodies,Cabot Learning Federation,630.00, 16-Feb-2021
774,Revenue,CAHD,Schools Specific Grant Income,Other Public Bodies,Cabot Learning Federation,630.00, 16-Feb-2021
775,Revenue,CAHD,Schools Specific Grant Income,Other Public Bodies,Cabot Learning Federation,1440.00, 16-Feb-2021
776,Revenue,CAHD,Schools Specific Grant Income,Other Public Bodies,Cabot Learning Federation,630.00, 16-Feb-2021
777,Revenue,CAHD,Statemented Support Academies,Other Public Bodies,Cabot Learning Federation,577.50, 23-Feb-2021
778,Revenue,CAHD,Statemented Support Academies,Other Public Bodies,Cabot Learning Federation,1297.08, 23-Feb-2021
779,Revenue,CAHD,Statemented Support Academies,Other Public Bodies,Cabot Learning Federation,966.83, 23-Feb-2021
780,Revenue,CAHD,Statemented Support Academies,Other Public Bodies,Cabot Learning Federation,1432.32, 23-Feb-2021
781,Revenue,CAHD,Statemented Support Academies,Other Public Bodies,Cabot Learning Federation,872.46, 23-Feb-2021
782,Revenue,CAHD,Statemented Support Payments to OLAs,Other L.A.s - General,Cabot Learning Federation,665.33, 23-Feb-2021
783,Revenue,CAHD,Schools Specific Grant Income,Other Public Bodies,Cabot Learning Federation,630.00, 16-Feb-2021
784,Revenue,CAHD,Schools Specific Grant Income,Other Public Bodies,Cabot Learning Federation,630.00, 16-Feb-2021
785,Revenue,CAHD,Schools Specific Grant Income,Other Public Bodies,Cabot Learning Federation,630.00, 16-Feb-2021
786,Revenue,CAHD,North - Community based support,Permanent Nursing,Caernarvon House,4710.40, 09-Feb-2021
787,Revenue,CAHD,North - S117,Permanent Nursing,Caernarvon House,3990.24, 09-Feb-2021
788,Revenue,CAHD,South - Commissioned Services,Permanent Nursing,Caernarvon House,4915.20, 09-Feb-2021
789,Revenue,CAHD,South - Commissioned Services,Respite Planned - Nursing,Caernarvon House,8637.35, 09-Feb-2021
790,Revenue,CAHD,South - Commissioned Services,Permanent Nursing,Caernarvon House,4300.80, 09-Feb-2021
791,Revenue,CAHD,South - S117,Permanent Nursing,Caernarvon House,4915.20, 09-Feb-2021
792,Revenue,CAHD,South - Commissioned Services,Permanent Nursing,Caernarvon House,4800.00, 09-Feb-2021
793,Revenue,CAHD,CSC - Residential Placements,Permanent Residential,Cambian Childcare Ltd,7785.70, 01-Feb-2021
794,Revenue,CAHD,CSC - Residential Placements,Permanent Residential,Cambian Childcare Ltd,23357.10, 02-Feb-2021
795,Revenue,CAHD,CSC - Residential Placements,Permanent Residential,Cambian Childcare Ltd,24135.67, 08-Feb-2021
796,Revenue,CAHD,CSC - Residential Placements,Permanent Residential,Cambian Childcare Ltd,19042.99, 08-Feb-2021
797,Revenue,CAHD,CSC - Residential Placements,Permanent Residential,Cambian Childcare Ltd,23250.00, 08-Feb-2021
798,Revenue,CAHD,CSC - Residential Placements,Permanent Residential,Cambian Childcare Ltd,24135.67, 15-Feb-2021
799,Revenue,CAHD,CSC - Residential Placements,Permanent Residential,Cambian Childcare Ltd,17200.12, 23-Feb-2021
800,Revenue,CAHD,CSC - Residential Placements,Permanent Residential,Cambian Childcare Ltd,21000.00, 23-Feb-2021
801,Revenue,CAHD,CSC - Residential Placements,Permanent Residential,Cambian Childcare Ltd,21799.96, 23-Feb-2021
802,Revenue,CAHD,Schools Specific Grant Income,Other Public Bodies,Cambian Childcare Ltd,630.00, 16-Feb-2021
803,Revenue,CAHD,Post 16 High Needs Placements,Other Private Contractors,Cambian Whinfell School Limited,61086.16, 04-Feb-2021
804,Revenue,CAHD,Post 16 High Needs Placements,Other Private Contractors,Cambian Whinfell School Limited,28867.27, 12-Feb-2021
805,Revenue,CAHD,Post 16 High Needs Placements,Other Private Contractors,Cambian Whinfell School Limited,59758.20, 05-Feb-2021
806,Revenue,CAHD,North - Community based support,Day Care / Social Activities,Camphill Communities Thornbury Limited,57.96, 05-Feb-2021
807,Revenue,CAHD,North - Community based support,Supported Living,Camphill Communities Thornbury Limited,690.69, 05-Feb-2021
808,Revenue,CAHD,North - Community based support,Other Small Contracts,Camphill Communities Thornbury Limited,193.20, 05-Feb-2021
809,Revenue,CAHD,North - Community based support,Supported Living,Camphill Communities Thornbury Limited,685.86, 05-Feb-2021
810,Revenue,CAHD,North - Community based support,Day Care / Social Activities,Camphill Communities Thornbury Limited,391.23, 12-Feb-2021
811,Revenue,CAHD,North - Community based support,Other Small Contracts,Camphill Communities Thornbury Limited,1439.34, 12-Feb-2021
812,Revenue,CAHD,North - Community based support,Supported Living,Camphill Communities Thornbury Limited,879.06, 12-Feb-2021
813,Revenue,CAHD,North - Community based support,Day Care / Social Activities,Camphill Communities Thornbury Limited,864.57, 19-Feb-2021
814,Revenue,CAHD,North - Community based support,Other Small Contracts,Camphill Communities Thornbury Limited,1449.00, 19-Feb-2021
815,Revenue,CAHD,North - Community based support,Supported Living,Camphill Communities Thornbury Limited,1019.13, 19-Feb-2021
816,Revenue,CAHD,North - Community based support,Day Care / Social Activities,Camphill Communities Thornbury Limited,869.40, 26-Feb-2021
817,Revenue,CAHD,North - Community based support,Other Small Contracts,Camphill Communities Thornbury Limited,1642.20, 26-Feb-2021
818,Revenue,CAHD,North - Community based support,Supported Living,Camphill Communities Thornbury Limited,1077.09, 26-Feb-2021
819,Revenue,CAHD,CSC - Asylum Seekers - Unaccompanied,Foster Parent Allowances,Capstone Foster Care (South West) Limited,3405.66, 03-Feb-2021
820,Revenue,CAHD,CSC - Agency Fostering,Foster Parent Allowances,Capstone Foster Care (South West) Limited,3498.66, 19-Feb-2021
821,Revenue,CAHD,CSC - Agency Fostering,Foster Parent Allowances,Capstone Foster Care (South West) Limited,3498.66, 10-Feb-2021
822,Revenue,CAHD,CSC - Agency Fostering,Foster Parent Allowances,Capstone Foster Care (South West) Limited,3671.33, 03-Feb-2021
823,Revenue,CAHD,Central - Commissioned Services,Other Small Contracts,Care 1st Homecare,3003.75, 05-Feb-2021
824,Revenue,CAHD,Central - Commissioned Services,Other Small Contracts,Care 1st Homecare,2999.30, 12-Feb-2021
825,Revenue,CAHD,Central - Commissioned Services,Other Small Contracts,Care 1st Homecare,2999.30, 26-Feb-2021
826,Revenue,CAHD,Central - Commissioned Services,Other Small Contracts,Care 1st Homecare,3008.20, 26-Feb-2021
827,Revenue,CAHD,Covid - ASC - Infection Control,Grants to Voluntary Bodies,Care Futures,5076.05, 23-Feb-2021
828,Revenue,CAHD,North - Community based support,Supported Living,Care Horizons,5435.28, 09-Feb-2021
829,Revenue,CAHD,North - Community based support,Supported Living,Care Horizons,5435.28, 09-Feb-2021
830,Revenue,CAHD,Central - Commissioned Services,Other Small Contracts,Care Horizons Limited,1668.84, 10-Feb-2021
831,Revenue,CAHD,South - Commissioned Services,Other Small Contracts,Care Horizons Limited,532.44, 10-Feb-2021
832,Revenue,CAHD,North - Community based support,Day Care / Social Activities,Care Horizons Limited,414.12, 10-Feb-2021
833,Revenue,CAHD,North - Community based support,Other Small Contracts,Care Horizons Limited,428.91, 10-Feb-2021
834,Revenue,CAHD,Younger MH non-res purchasing,Other Small Contracts,Care Horizons Limited,236.64, 10-Feb-2021
835,Revenue,CAHD,Central - Commissioned Services,Other Small Contracts,Care Horizons Limited,1552.95, 10-Feb-2021
836,Revenue,CAHD,South - Commissioned Services,Other Small Contracts,Care Horizons Limited,532.44, 10-Feb-2021
837,Revenue,CAHD,North - Community based support,Day Care / Social Activities,Care Horizons Limited,276.08, 10-Feb-2021
838,Revenue,CAHD,North - Community based support,Other Small Contracts,Care Horizons Limited,433.84, 10-Feb-2021
839,Revenue,CAHD,Younger MH non-res purchasing,Other Small Contracts,Care Horizons Limited,236.64, 10-Feb-2021
840,Revenue,CAHD,Central - Commissioned Services,Other Small Contracts,Care Horizons Limited,1316.31, 15-Feb-2021
841,Revenue,CAHD,South - Commissioned Services,Other Small Contracts,Care Horizons Limited,532.44, 15-Feb-2021
842,Revenue,CAHD,North - Community based support,Day Care / Social Activities,Care Horizons Limited,399.33, 15-Feb-2021
843,Revenue,CAHD,North - Community based support,Other Small Contracts,Care Horizons Limited,512.72, 15-Feb-2021
844,Revenue,CAHD,Younger MH non-res purchasing,Other Small Contracts,Care Horizons Limited,281.01, 15-Feb-2021
845,Revenue,CAHD,Central - Commissioned Services,Other Small Contracts,Care Horizons Limited,1414.91, 26-Feb-2021
846,Revenue,CAHD,South - Commissioned Services,Other Small Contracts,Care Horizons Limited,547.23, 26-Feb-2021
847,Revenue,CAHD,South - Commissioned Services,Mentoring,Care Horizons Limited,78.88, 26-Feb-2021
848,Revenue,CAHD,North - Community based support,Day Care / Social Activities,Care Horizons Limited,354.96, 26-Feb-2021
849,Revenue,CAHD,North - Community based support,Other Small Contracts,Care Horizons Limited,512.72, 26-Feb-2021
850,Revenue,CAHD,Younger MH non-res purchasing,Other Small Contracts,Care Horizons Limited,236.64, 26-Feb-2021
851,Revenue,CAHD,Central - Commissioned Services,Other Small Contracts,Care Horizons Limited,1336.03, 26-Feb-2021
852,Revenue,CAHD,South - Commissioned Services,Other Small Contracts,Care Horizons Limited,907.12, 26-Feb-2021
853,Revenue,CAHD,North - Community based support,Day Care / Social Activities,Care Horizons Limited,414.12, 26-Feb-2021
854,Revenue,CAHD,North - Community based support,Other Small Contracts,Care Horizons Limited,532.44, 26-Feb-2021
855,Revenue,CAHD,Younger MH non-res purchasing,Other Small Contracts,Care Horizons Limited,236.64, 26-Feb-2021
856,Revenue,CAHD,Alexandra Way,Licences,Care Quality Commission,8999.00, 12-Feb-2021
857,Revenue,CAHD,Central - Commissioned Services,Other Small Contracts,Carepride Ltd,665.55, 15-Feb-2021
858,Revenue,CAHD,South - Commissioned Services,Other Small Contracts,Carepride Ltd,83.81, 15-Feb-2021
859,Revenue,CAHD,North - Community based support,Other Small Contracts,Carepride Ltd,211.99, 15-Feb-2021
860,Revenue,CAHD,Central - Commissioned Services,Other Small Contracts,Carepride Ltd,749.36, 08-Feb-2021
861,Revenue,CAHD,South - Commissioned Services,Other Small Contracts,Carepride Ltd,69.02, 08-Feb-2021
862,Revenue,CAHD,North - Community based support,Other Small Contracts,Carepride Ltd,246.50, 08-Feb-2021
863,Revenue,CAHD,Central - Commissioned Services,Other Small Contracts,Carepride Ltd,739.50, 08-Feb-2021
864,Revenue,CAHD,South - Commissioned Services,Other Small Contracts,Carepride Ltd,78.88, 08-Feb-2021
865,Revenue,CAHD,North - Community based support,Other Small Contracts,Carepride Ltd,231.71, 08-Feb-2021
866,Revenue,CAHD,Covid - ASC - Infection Control,Grants to Voluntary Bodies,Carepride Ltd,7686.77, 12-Feb-2021
867,Revenue,CAHD,Supporting People Programme,Grants to Voluntary Bodies,Caring for Communities and People,12849.00, 04-Feb-2021
868,Revenue,CAHD,Social Lettings Agency,Rent,Individual,699.32, 19-Feb-2021
869,Revenue,CAHD,Social Lettings Agency,Fees - General,Individual,20.57, 19-Feb-2021
870,Revenue,CAHD,Schools Specific Grant Income,Other Public Bodies,Castle School Education Trust,630.00, 16-Feb-2021
871,Revenue,CAHD,Schools Specific Grant Income,Other Public Bodies,Castle School Education Trust,630.00, 16-Feb-2021
872,Revenue,CAHD,Schools Specific Grant Income,Other Public Bodies,Castle School Education Trust,630.00, 16-Feb-2021
873,Revenue,CAHD,Statemented Support Academies,Other Public Bodies,Castle School Education Trust,530.55, 23-Feb-2021
874,Revenue,CAHD,Statemented Support Academies,Other Public Bodies,Castle School Education Trust,778.14, 23-Feb-2021
875,Revenue,CAHD,Statemented Support Academies,Other Public Bodies,Castle School Education Trust,821.50, 23-Feb-2021
876,Revenue,CAHD,Statemented Support Academies,Other Public Bodies,Castle School Education Trust,672.03, 23-Feb-2021
877,Revenue,CAHD,Statemented Support Academies,Other Public Bodies,Castle School Education Trust,577.71, 23-Feb-2021
878,Revenue,CAHD,Statemented Support Academies,Other Public Bodies,Castle School Education Trust,505.08, 23-Feb-2021
879,Revenue,CAHD,Statemented Support Academies,Other Public Bodies,Castle School Education Trust,613.08, 23-Feb-2021
880,Revenue,CAHD,Statemented Support Academies,Other Public Bodies,Castle School Education Trust,672.03, 23-Feb-2021
881,Revenue,CAHD,Statemented Support Academies,Other Public Bodies,Castle School Education Trust,1120.05, 23-Feb-2021
882,Revenue,CAHD,Statemented Support Academies,Other Public Bodies,Castle School Education Trust,636.66, 23-Feb-2021
883,Revenue,CAHD,Statemented Support Academies,Other Public Bodies,Castle School Education Trust,589.08, 23-Feb-2021
884,Revenue,CAHD,Statemented Support Academies,Other Public Bodies,Castle School Education Trust,954.99, 23-Feb-2021
885,Revenue,CAHD,Statemented Support Academies,Other Public Bodies,Castle School Education Trust,577.71, 23-Feb-2021
886,Revenue,CAHD,Statemented Support Academies,Other Public Bodies,Castle School Education Trust,624.87, 23-Feb-2021
887,Revenue,CAHD,Statemented Support Academies,Other Public Bodies,Castle School Education Trust,1190.79, 23-Feb-2021
888,Revenue,CAHD,Statemented Support Academies,Other Public Bodies,Castle School Education Trust,841.00, 23-Feb-2021
889,Revenue,CAHD,Statemented Support Academies,Other Public Bodies,Castle School Education Trust,1237.95, 23-Feb-2021
890,Revenue,CAHD,Statemented Support Academies,Other Public Bodies,Castle School Education Trust,1061.10, 23-Feb-2021
891,Revenue,CAHD,Statemented Support Academies,Other Public Bodies,Castle School Education Trust,518.76, 23-Feb-2021
892,Revenue,CAHD,Statemented Support Academies,Other Public Bodies,Castle School Education Trust,577.71, 23-Feb-2021
893,Revenue,CAHD,Statemented Support Academies,Other Public Bodies,Castle School Education Trust,1143.63, 23-Feb-2021
894,Revenue,CAHD,Statemented Support Academies,Other Public Bodies,Castle School Education Trust,754.25, 23-Feb-2021
895,Revenue,CAHD,Statemented Support Academies,Other Public Bodies,Castle School Education Trust,1736.00, 26-Feb-2021
896,Revenue,CAHD,Statemented Support Academies,Other Public Bodies,Castle School Education Trust,1485.54, 23-Feb-2021
897,Revenue,CAHD,Statemented Support Academies,Other Public Bodies,Castle School Education Trust,1177.50, 23-Feb-2021
898,Revenue,CAHD,Statemented Support Academies,Other Public Bodies,Castle School Education Trust,888.75, 23-Feb-2021
899,Revenue,CAHD,Statemented Support Academies,Other Public Bodies,Castle School Education Trust,1261.75, 23-Feb-2021
900,Revenue,CAHD,Statemented Support Academies,Other Public Bodies,Castle School Education Trust,1322.75, 23-Feb-2021
901,Revenue,CAHD,Statemented Support Academies,Other Public Bodies,Castle School Education Trust,801.92, 23-Feb-2021
902,Revenue,CAHD,Statemented Support Academies,Other Public Bodies,Castle School Education Trust,943.17, 23-Feb-2021
903,Revenue,CAHD,Statemented Support Academies,Other Public Bodies,Castle School Education Trust,1267.50, 23-Feb-2021
904,Revenue,CAHD,Academy Resource Base Funding,Other Public Bodies,Castle School Education Trust,3917.80, 26-Feb-2021
905,Revenue,CAHD,Academy Resource Base Funding,Other Public Bodies,Castle School Education Trust,4784.48, 26-Feb-2021
906,Revenue,CAHD,Academy Resource Base Funding,Other Public Bodies,Castle School Education Trust,1538.16, 26-Feb-2021
907,Revenue,CAHD,Academy Resource Base Funding,Other Public Bodies,Castle School Education Trust,1538.16, 26-Feb-2021
908,Revenue,CAHD,Academy Resource Base Funding,Other Public Bodies,Castle School Education Trust,1538.16, 26-Feb-2021
909,Revenue,CAHD,Academy Resource Base Funding,Other Public Bodies,Castle School Education Trust,2270.60, 26-Feb-2021
910,Revenue,CAHD,Academy Resource Base Funding,Other Public Bodies,Castle School Education Trust,2270.60, 26-Feb-2021
911,Revenue,CAHD,Academy Resource Base Funding,Other Public Bodies,Castle School Education Trust,1538.16, 26-Feb-2021
912,Revenue,CAHD,Academy Resource Base Funding,Other Public Bodies,Castle School Education Trust,1538.16, 26-Feb-2021
913,Revenue,CAHD,Academy Resource Base Funding,Other Public Bodies,Castle School Education Trust,1538.16, 26-Feb-2021
914,Revenue,CAHD,Academy Resource Base Funding,Other Public Bodies,Castle School Education Trust,1538.16, 26-Feb-2021
915,Revenue,CAHD,Academy Resource Base Funding,Other Public Bodies,Castle School Education Trust,1538.16, 26-Feb-2021
916,Revenue,CAHD,Academy Resource Base Funding,Other Public Bodies,Castle School Education Trust,1538.16, 26-Feb-2021
917,Revenue,CAHD,Academy Resource Base Funding,Other Public Bodies,Castle School Education Trust,1538.16, 26-Feb-2021
918,Revenue,CAHD,Academy Resource Base Funding,Other Public Bodies,Castle School Education Trust,1977.64, 26-Feb-2021
919,Revenue,CAHD,Statemented Support Academies,Other Public Bodies,Castle School Education Trust,672.03, 23-Feb-2021
920,Revenue,CAHD,Statemented Support Academies,Other Public Bodies,Castle School Education Trust,822.50, 23-Feb-2021
921,Revenue,CAHD,Statemented Support Academies,Other Public Bodies,Castle School Education Trust,872.46, 23-Feb-2021
922,Revenue,CAHD,Statemented Support Academies,Other Public Bodies,Castle School Education Trust,848.88, 23-Feb-2021
923,Revenue,CAHD,Statemented Support Academies,Other Public Bodies,Castle School Education Trust,541.58, 23-Feb-2021
924,Revenue,CAHD,Statemented Support Academies,Other Public Bodies,Castle School Education Trust,1444.17, 23-Feb-2021
925,Revenue,CAHD,Statemented Support Academies,Other Public Bodies,Castle School Education Trust,956.00, 23-Feb-2021
926,Revenue,CAHD,Statemented Support Academies,Other Public Bodies,Castle School Education Trust,1025.73, 23-Feb-2021
927,Revenue,CAHD,Statemented Support Academies,Other Public Bodies,Castle School Education Trust,1628.42, 23-Feb-2021
928,Revenue,CAHD,Statemented Support Academies,Other Public Bodies,Castle School Education Trust,560.17, 23-Feb-2021
929,Revenue,CAHD,Statemented Support Academies,Other Public Bodies,Castle School Education Trust,4312.00, 26-Feb-2021
930,Revenue,CAHD,Schools Specific Grant Income,Other Public Bodies,Castle School Education Trust,630.00, 16-Feb-2021
931,Revenue,CAHD,Schools Specific Grant Income,Other Public Bodies,Castle School Education Trust,630.00, 16-Feb-2021
932,Revenue,CAHD,Schools Specific Grant Income,Other Public Bodies,Castle School Education Trust,630.00, 16-Feb-2021
933,Revenue,CAHD,Statemented Support Academies,Other Public Bodies,Castle School Education Trust,630.58, 23-Feb-2021
934,Revenue,CAHD,Statemented Support Academies,Other Public Bodies,Castle School Education Trust,778.14, 23-Feb-2021
935,Revenue,CAHD,Statemented Support Academies,Other Public Bodies,Castle School Education Trust,941.58, 23-Feb-2021
936,Revenue,CAHD,Statemented Support Academies,Other Public Bodies,Castle School Education Trust,613.08, 23-Feb-2021
937,Revenue,CAHD,Statemented Support Academies,Other Public Bodies,Castle School Education Trust,1848.00, 26-Feb-2021
938,Revenue,CAHD,Schools Specific Grant Income,Other Public Bodies,Castle School Education Trust,630.00, 16-Feb-2021
939,Revenue,CAHD,Schools Specific Grant Income,Other Public Bodies,Castle School Education Trust,630.00, 16-Feb-2021
940,Revenue,CAHD,Schools Specific Grant Income,Other Public Bodies,Castle School Education Trust,630.00, 16-Feb-2021
941,Revenue,CAHD,Schools Specific Grant Income,Other Public Bodies,Castle School Education Trust,630.00, 16-Feb-2021
942,Revenue,CAHD,Schools Specific Grant Income,Other Public Bodies,Castle School Education Trust,630.00, 16-Feb-2021
943,Revenue,CAHD,Schools Specific Grant Income,Other Public Bodies,Castle School Educational Turust,630.00, 16-Feb-2021
944,Revenue,CAHD,Schools Specific Grant Income,Other Public Bodies,Castle School Educational Turust,630.00, 16-Feb-2021
945,Revenue,CAHD,Statemented Support Academies,Other Public Bodies,Castle School Educational Turust,1129.92, 23-Feb-2021
946,Revenue,CAHD,Statemented Support Academies,Other Public Bodies,Castle School Educational Turust,854.00, 23-Feb-2021
947,Revenue,CAHD,Statemented Support Academies,Other Public Bodies,Castle School Educational Turust,790.58, 23-Feb-2021
948,Revenue,CAHD,Statemented Support Academies,Other Public Bodies,Castle School Educational Turust,508.67, 23-Feb-2021
949,Revenue,CAHD,Statemented Support Academies,Other Public Bodies,Castle School Educational Turust,1148.20, 23-Feb-2021
950,Revenue,CAHD,Statemented Support Academies,Other Public Bodies,Castle School Educational Turust,1097.25, 23-Feb-2021
951,Revenue,CAHD,Statemented Support Academies,Other Public Bodies,Castle School Educational Turust,580.67, 23-Feb-2021
952,Revenue,CAHD,Statemented Support Academies,Other Public Bodies,Castle School Educational Turust,925.08, 23-Feb-2021
953,Revenue,CAHD,Schools Specific Grant Income,Other Public Bodies,Castle School Educational Turust,2100.00, 01-Feb-2021
954,Revenue,CAHD,Schools Specific Grant Income,Other Public Bodies,Castle School Educational Turust,630.00, 16-Feb-2021
955,Revenue,CAHD,Social Lettings Agency,Rent,Individual,595.11, 01-Feb-2021
956,Revenue,CAHD,Social Lettings Agency,Fees - General,Individual,10.53, 01-Feb-2021
957,Revenue,CAHD,North - Community based support,Day Care / Social Activities,Causeway House,2176.64, 09-Feb-2021
958,Revenue,CAHD,South - Commissioned Services,Day Care / Social Activities,Causeway House,5358.20, 09-Feb-2021
959,Revenue,CAHD,Central - Commissioned Services,Day Care / Social Activities,Causeway House,1447.08, 09-Feb-2021
960,Revenue,CAHD,18-25 Year Olds,Day Care / Social Activities,Causeway House,4502.92, 09-Feb-2021
961,Revenue,CAHD,Central - Commissioned Services,Day Care / Social Activities,Causeway House,3671.36, 09-Feb-2021
962,Revenue,CAHD,Central - Commissioned Services,Day Care / Social Activities,Causeway House,3969.44, 09-Feb-2021
963,Revenue,CAHD,Central - Commissioned Services,Day Care / Social Activities,Causeway House,2119.20, 09-Feb-2021
964,Revenue,CAHD,North - Community based support,Day Care / Social Activities,Causeway House,3290.72, 09-Feb-2021
965,Revenue,CAHD,North - Community based support,Day Care / Social Activities,Causeway House,4902.56, 09-Feb-2021
966,Revenue,CAHD,Central - Commissioned Services,Day Care / Social Activities,Causeway House,3725.16, 09-Feb-2021
967,Revenue,CAHD,North - Community based support,Day Care / Social Activities,Causeway House,3212.08, 09-Feb-2021
968,Revenue,CAHD,North - Community based support,Day Care / Social Activities,Causeway House,579.68, 09-Feb-2021
969,Revenue,CAHD,South - Commissioned Services,Permanent Residential,Challenge House,2834.44, 09-Feb-2021
970,Revenue,CAHD,South - Commissioned Services,Permanent Residential,Challenge House,2836.00, 09-Feb-2021
971,Revenue,CAHD,North - S117,Permanent Residential,Challenge House,2571.40, 09-Feb-2021
972,Revenue,CAHD,North - Community based support,Permanent Residential,Challenge House,2233.00, 09-Feb-2021
973,Revenue,CAHD,Central - Commissioned Services,Permanent Residential,Challenge House,2365.64, 09-Feb-2021
974,Revenue,CAHD,Central - Commissioned Services,Permanent Residential,Challenge House,2720.00, 09-Feb-2021
975,Revenue,CAHD,North - Community based support,Permanent Residential,Challenge House,2834.40, 09-Feb-2021
976,Revenue,CAHD,North - Community based support,Permanent Nursing,Challenge House,3205.48, 09-Feb-2021
977,Revenue,CAHD,North - S117,Permanent Nursing,Challenge House,2453.28, 09-Feb-2021
978,Revenue,CAHD,North - Community based support,Permanent Nursing,Challenge House,2453.28, 09-Feb-2021
979,Revenue,CAHD,North - Community based support,Permanent Nursing,Challenge House,3205.48, 09-Feb-2021
980,Revenue,CAHD,South Glos Users in South Glos Homes,Permanent Nursing,Challenge House,2101.94, 09-Feb-2021
981,Revenue,CAHD,South Glos Users in South Glos Homes,Permanent Nursing,Challenge House,735.68, 09-Feb-2021
982,Revenue,CAHD,Covid 19- Spend on behalf of NHS,Respite Planned - Nursing,Challenge House,6504.00, 09-Feb-2021
983,Revenue,CAHD,Covid 19- Spend on behalf of NHS,Respite Planned - Nursing,Challenge House,6039.43, 09-Feb-2021
984,Revenue,CAHD,Covid 19- Spend on behalf of NHS,Respite Planned - Residential,Challenge House,3214.29, 09-Feb-2021
985,Revenue,CAHD,South Glos Users in South Glos Homes,Permanent Nursing,Challenge House,735.68, 09-Feb-2021
986,Revenue,CAHD,North - Community based support,Permanent Nursing,Challenge House,3400.00, 09-Feb-2021
987,Revenue,CAHD,South Glos Users in South Glos Homes,Permanent Nursing,Challenge House,735.68, 09-Feb-2021
988,Revenue,CAHD,South Glos Users in South Glos Homes,Permanent Nursing,Challenge House,735.68, 09-Feb-2021
989,Revenue,CAHD,South - Commissioned Services,Permanent Nursing,Challenge House,2941.88, 09-Feb-2021
990,Revenue,CAHD,South Glos Users in South Glos Homes,Permanent Nursing,Challenge House,735.68, 09-Feb-2021
991,Revenue,CAHD,Covid 19- Spend on behalf of NHS,Respite Planned - Residential,Challenge House,3085.71, 09-Feb-2021
992,Revenue,CAHD,North - Community based support,Permanent Nursing,Challenge House,3272.64, 09-Feb-2021
993,Revenue,CAHD,South Glos Users in South Glos Homes,Permanent Nursing,Challenge House,735.68, 09-Feb-2021
994,Revenue,CAHD,South - Commissioned Services,Respite Planned - Residential,Challenge House,3400.00, 09-Feb-2021
995,Revenue,CAHD,Central - Commissioned Services,Respite Planned - Nursing,Challenge House,850.00, 09-Feb-2021
996,Revenue,CAHD,South Glos Users in South Glos Homes,Permanent Nursing,Challenge House,735.68, 09-Feb-2021
997,Revenue,CAHD,South - Commissioned Services,Permanent Residential,Challenge House,3060.00, 09-Feb-2021
998,Revenue,CAHD,South Glos Users in South Glos Homes,Permanent Nursing,Challenge House,735.68, 09-Feb-2021
999,Revenue,CAHD,South Glos Users in South Glos Homes,Permanent Nursing,Challenge House,735.68, 09-Feb-2021
1000,Revenue,CAHD,South Glos Users in South Glos Homes,Permanent Nursing,Challenge House,735.68, 09-Feb-2021
1001,Revenue,CAHD,South Glos Users in South Glos Homes,Permanent Nursing,Challenge House,735.68, 09-Feb-2021
1002,Revenue,CAHD,Covid 19- Spend on behalf of NHS,Respite Planned - Nursing,Challenge House,4336.00, 09-Feb-2021
1003,Revenue,CAHD,Covid 19- Spend on behalf of NHS,Respite Planned - Nursing,Challenge House,2013.14, 09-Feb-2021
1004,Revenue,CAHD,South Glos Users in South Glos Homes,Permanent Nursing,Challenge House,735.68, 09-Feb-2021
1005,Revenue,CAHD,South Glos Users in South Glos Homes,Permanent Nursing,Challenge House,735.68, 09-Feb-2021
1006,Revenue,CAHD,Covid 19- Spend on behalf of NHS,Respite Planned - Residential,Challenge House,5400.00, 09-Feb-2021
1007,Revenue,CAHD,Covid 19- Spend on behalf of NHS,Respite Planned - Residential,Challenge House,5400.00, 09-Feb-2021
1008,Revenue,CAHD,South Glos Users in South Glos Homes,Permanent Nursing,Challenge House,735.68, 09-Feb-2021
1009,Revenue,CAHD,South Glos Users in South Glos Homes,Permanent Nursing,Challenge House,735.68, 09-Feb-2021
1010,Revenue,CAHD,Covid 19- Spend on behalf of NHS,Respite Planned - Residential,Challenge House,6814.29, 09-Feb-2021
1011,Revenue,CAHD,North - Community based support,Permanent Nursing,Challenge House,2884.08, 09-Feb-2021
1012,Revenue,CAHD,South Glos Users in South Glos Homes,Permanent Nursing,Challenge House,735.68, 09-Feb-2021
1013,Revenue,CAHD,North - Community based support,Permanent Nursing,Challenge House,3243.60, 09-Feb-2021
1014,Revenue,CAHD,South Glos Users in South Glos Homes,Permanent Nursing,Challenge House,735.68, 09-Feb-2021
1015,Revenue,CAHD,North - Community based support,Permanent Nursing,Challenge House,3405.60, 09-Feb-2021
1016,Revenue,CAHD,South Glos Users in South Glos Homes,Permanent Nursing,Challenge House,735.68, 09-Feb-2021
1017,Revenue,CAHD,North - Community based support,Permanent Residential,Challenge House,3121.20, 09-Feb-2021
1018,Revenue,CAHD,South Glos Users in South Glos Homes,Permanent Nursing,Challenge House,735.68, 09-Feb-2021
1019,Revenue,CAHD,North - Community based support,Permanent Nursing,Challenge House,2884.08, 09-Feb-2021
1020,Revenue,CAHD,South Glos Users in South Glos Homes,Permanent Nursing,Challenge House,735.68, 09-Feb-2021
1021,Revenue,CAHD,South Glos Users in South Glos Homes,Permanent Nursing,Challenge House,735.68, 09-Feb-2021
1022,Revenue,CAHD,ASC Rapid Testing Fund,Grants to Voluntary Bodies,Challenge House,10735.76, 11-Feb-2021
1023,Revenue,CAHD,Central - Commissioned Services,Permanent Nursing,Challenge House,2401.84, 09-Feb-2021
1024,Revenue,CAHD,North - Community based support,Permanent Residential,Challenge House,2174.20, 09-Feb-2021
1025,Revenue,CAHD,Alexandra Way,"Provisions (Food, etc)",Charles Saunders Limited,663.02, 03-Feb-2021
1026,Revenue,CAHD,Mental Capacity Act / DOLS,Legal Fees,Individual,750.00, 16-Feb-2021
1027,Revenue,CAHD,Training - Adult Services,Training Expenses,Individual,1200.00, 02-Feb-2021
1028,Revenue,CAHD,Statemented Support Academies,Other Public Bodies,Charlton Wood Primary Academy,702.17, 23-Feb-2021
1029,Revenue,CAHD,Hospital Tuition,Other Private Contractors,Cheadle Royal School Priory,2392.00, 25-Feb-2021
1030,Revenue,CAHD,Hospital Tuition,Other Private Contractors,Cheadle Royal School Priory,3496.00, 25-Feb-2021
1031,Revenue,CAHD,Hospital Tuition,Other Private Contractors,Cheadle Royal School Priory,3128.00, 25-Feb-2021
1032,Revenue,CAHD,Central - Commissioned Services,Other Small Contracts,Cherish Able Care Limited,2463.30, 02-Feb-2021
1033,Revenue,CAHD,South - Commissioned Services,Other Small Contracts,Cherish Able Care Limited,6145.61, 02-Feb-2021
1034,Revenue,CAHD,North - Community based support,Other Small Contracts,Cherish Able Care Limited,531.30, 02-Feb-2021
1035,Revenue,CAHD,Central - Commissioned Services,Other Small Contracts,Cherish Able Care Limited,2429.49, 05-Feb-2021
1036,Revenue,CAHD,South - Commissioned Services,Other Small Contracts,Cherish Able Care Limited,7563.19, 05-Feb-2021
1037,Revenue,CAHD,North - Community based support,Other Small Contracts,Cherish Able Care Limited,531.30, 05-Feb-2021
1038,Revenue,CAHD,Central - Commissioned Services,Other Small Contracts,Cherish Able Care Limited,2472.96, 10-Feb-2021
1039,Revenue,CAHD,South - Commissioned Services,Other Small Contracts,Cherish Able Care Limited,7597.00, 10-Feb-2021
1040,Revenue,CAHD,North - Community based support,Other Small Contracts,Cherish Able Care Limited,536.13, 10-Feb-2021
1041,Revenue,CAHD,Central - Commissioned Services,Other Small Contracts,Cherish Able Care Limited,1603.56, 15-Feb-2021
1042,Revenue,CAHD,South - Commissioned Services,Other Small Contracts,Cherish Able Care Limited,7527.58, 15-Feb-2021
1043,Revenue,CAHD,North - Community based support,Other Small Contracts,Cherish Able Care Limited,531.30, 15-Feb-2021
1044,Revenue,CAHD,Central - Commissioned Services,Other Small Contracts,Cherish Able Care Limited,2173.50, 26-Feb-2021
1045,Revenue,CAHD,South - Commissioned Services,Other Small Contracts,Cherish Able Care Limited,7553.53, 26-Feb-2021
1046,Revenue,CAHD,North - Community based support,Other Small Contracts,Cherish Able Care Limited,1352.40, 26-Feb-2021
1047,Revenue,CAHD,18-25 Year Olds,Other Small Contracts,Cherry Orchards,1555.26, 02-Feb-2021
1048,Revenue,CAHD,18-25 Year Olds,Other Small Contracts,Cherry Orchards,1603.56, 25-Feb-2021
1049,Revenue,CAHD,South - Commissioned Services,Other Small Contracts,Cherry Orchards,6356.28, 10-Feb-2021
1050,Revenue,CAHD,Central - Commissioned Services,Other Small Contracts,Cherry Orchards,1391.04, 25-Feb-2021
1051,Revenue,CAHD,18-25 Year Olds,Supported Living,Cherry Orchards,2030.52, 09-Feb-2021
1052,Revenue,CAHD,North - Community based support,Supported Living,Cherry Orchards,1042.96, 09-Feb-2021
1053,Revenue,CAHD,S28A cases,Permanent Residential,Chescombe Trust Ltd,9959.72, 09-Feb-2021
1054,Revenue,CAHD,ASC Rapid Testing Fund,Grants to Voluntary Bodies,Chescombe Trust Ltd,5099.49, 11-Feb-2021
1055,Revenue,CAHD,Childrens - Safeguarding Board,Training Expenses,Child Trauma Intervention Services,1700.00, 05-Feb-2021
1056,Revenue,CAHD,CSC - Emergency Duty Team,Children - Family Support,Childrens Contact Services Ltd,1810.15, 15-Feb-2021
1057,Revenue,CAHD,Early Years Inclusion Fund,Other Public Bodies,Christchurch Pre School,1650.00, 01-Feb-2021
1058,Revenue,CAHD,Early Years Inclusion Fund,Other Public Bodies,Christchurch Pre School,1800.00, 12-Feb-2021
1059,Revenue,CAHD,CSC - Special Guardianship Orders,Special Payments,Individual,3818.00, 19-Feb-2021
1060,Revenue,CAHD,18-25 Year Olds,Other Small Contracts,Cintre,896.40, 12-Feb-2021
1061,Revenue,CAHD,Central - Commissioned Services,Other Small Contracts,Cintre,318.72, 12-Feb-2021
1062,Revenue,CAHD,South - Commissioned Services,Other Small Contracts,Cintre,1235.04, 12-Feb-2021
1063,Revenue,CAHD,18-25 Year Olds,Other Small Contracts,Cintre,896.40, 26-Feb-2021
1064,Revenue,CAHD,Central - Commissioned Services,Other Small Contracts,Cintre,159.36, 26-Feb-2021
1065,Revenue,CAHD,South - Commissioned Services,Other Small Contracts,Cintre,1175.28, 26-Feb-2021
1066,Revenue,CAHD,18-25 Year Olds,Other Small Contracts,Cintre,896.40, 26-Feb-2021
1067,Revenue,CAHD,Central - Commissioned Services,Other Small Contracts,Cintre,268.92, 26-Feb-2021
1068,Revenue,CAHD,South - Commissioned Services,Other Small Contracts,Cintre,1274.88, 26-Feb-2021
1069,Revenue,CAHD,Post 16 High Needs Placements,Other Private Contractors,City of Bristol College,297064.00, 05-Feb-2021
1070,Revenue,CAHD,Hospital Tuition,Other Private Contractors,Clay Hill School- CAMHS Priory,2760.00, 25-Feb-2021
1071,Revenue,CAHD,South - Commissioned Services,Permanent Residential,Cleeve Lodge,3760.12, 09-Feb-2021
1072,Revenue,CAHD,South - Commissioned Services,Permanent Residential,Cleeve Lodge,3760.12, 09-Feb-2021
1073,Revenue,CAHD,South - Commissioned Services,Permanent Residential,Cleeve Lodge,1334.60, 09-Feb-2021
1074,Revenue,CAHD,North - S117,Permanent Residential,Cleeve Lodge,3200.00, 09-Feb-2021
1075,Revenue,CAHD,Covid 19- Spend on behalf of NHS,Respite Planned - Residential,Cleeve Lodge,2785.71, 09-Feb-2021
1076,Revenue,CAHD,Central - Commissioned Services,Permanent Residential,Cleeve Lodge,3885.71, 09-Feb-2021
1077,Revenue,CAHD,Central - Commissioned Services,Permanent Residential,Cleeve Lodge,3200.00, 09-Feb-2021
1078,Revenue,CAHD,South - Commissioned Services,Permanent Residential,Cleeve Lodge,4400.00, 09-Feb-2021
1079,Revenue,CAHD,North - Community based support,Permanent Residential,Cleeve Lodge,4400.00, 09-Feb-2021
1080,Revenue,CAHD,South - Commissioned Services,Permanent Residential,Cleeve Lodge,4000.00, 09-Feb-2021
1081,Revenue,CAHD,South - Commissioned Services,Respite Planned - Residential,Cleeve Lodge,3085.71, 09-Feb-2021
1082,Revenue,CAHD,South - Commissioned Services,Permanent Residential,Cleeve Lodge,2950.88, 09-Feb-2021
1083,Revenue,CAHD,Covid 19- Spend on behalf of NHS,Respite Planned - Residential,Cleeve Lodge,4928.57, 09-Feb-2021
1084,Revenue,CAHD,South - Commissioned Services,Permanent Residential,Cleeve Lodge,16971.43, 09-Feb-2021
1085,Revenue,CAHD,South - Commissioned Services,Permanent Residential,Cleeve Lodge,4800.00, 09-Feb-2021
1086,Revenue,CAHD,ASC Rapid Testing Fund,Grants to Voluntary Bodies,Cleeve Lodge,8857.00, 11-Feb-2021
1087,Revenue,CAHD,CSC - Vinney Green Secure Unit,Operational Equipment,Climbing Wall Solutions,6435.75, 23-Feb-2021
1088,Revenue,CAHD,CSC - Vinney Green Secure Unit,Operational Equipment,Climbing Wall Solutions,6435.75, 23-Feb-2021
1089,Revenue,CAHD,Central - Commissioned Services,Other Small Contracts,Clover Health and Home Care Ltd,764.64, 19-Feb-2021
1090,Revenue,CAHD,CSC - Vinney Green Secure Unit,Service Contracts (Premises),Clover Technical Services,3150.00, 26-Feb-2021
1091,Revenue,CAHD,North - Community based support,Permanent Residential,Collingwood Care Home,3000.00, 09-Feb-2021
1092,Revenue,CAHD,Covid - ASC - Infection Control,Grants to Voluntary Bodies,Collingwood Care Home,9059.17, 12-Feb-2021
1093,Revenue,CAHD,ASC Rapid Testing Fund,Grants to Voluntary Bodies,Collingwood Care Home,6978.25, 05-Feb-2021
1094,Revenue,CAHD,South - Commissioned Services,Permanent Residential,Community Theraputic Services,7893.40, 09-Feb-2021
1095,Revenue,CAHD,Jointly Funded H&SC Packages,Permanent Residential,Community Theraputic Services,4875.84, 09-Feb-2021
1096,Revenue,CAHD,North - Community based support,Permanent Residential,Community Theraputic Services,8119.76, 09-Feb-2021
1097,Revenue,CAHD,Jointly Funded H&SC Packages,Permanent Residential,Community Theraputic Services,2027.52, 09-Feb-2021
1098,Revenue,CAHD,Statemented Support Equipment,Educational Supplies & Equipment,Connevans Limited,1577.25, 24-Feb-2021
1099,Revenue,CAHD,Covid 19 - Housing,Other Supplies & Services,Connolly & Callaghan Limited,420.00, 03-Feb-2021
1100,Revenue,CAHD,Bed and Breakfast,Bed & Breakfast,Connolly & Callaghan Limited,448.00, 03-Feb-2021
1101,Revenue,CAHD,Bed and Breakfast,Bed & Breakfast,Connolly & Callaghan Limited,679.00, 03-Feb-2021
1102,Revenue,CAHD,Bed and Breakfast,Bed & Breakfast,Connolly & Callaghan Limited,515.90, 03-Feb-2021
1103,Revenue,CAHD,Covid 19 - Housing,Other Supplies & Services,Connolly & Callaghan Limited,420.00, 11-Feb-2021
1104,Revenue,CAHD,Bed and Breakfast,Bed & Breakfast,Connolly & Callaghan Limited,679.00, 11-Feb-2021
1105,Revenue,CAHD,Bed and Breakfast,Bed & Breakfast,Connolly & Callaghan Limited,525.00, 16-Feb-2021
1106,Revenue,CAHD,Covid 19 - Housing,Bed & Breakfast,Connolly & Callaghan Limited,420.00, 22-Feb-2021
1107,Revenue,CAHD,Bed and Breakfast,Bed & Breakfast,Connolly & Callaghan Limited,422.80, 16-Feb-2021
1108,Revenue,CAHD,Bed and Breakfast,Bed & Breakfast,Connolly & Callaghan Limited,679.00, 15-Feb-2021
1109,Revenue,CAHD,Bed and Breakfast,Bed & Breakfast,Connolly & Callaghan Limited,735.00, 22-Feb-2021
1110,Revenue,CAHD,Covid 19 - Housing,Bed & Breakfast,Connolly & Callaghan Limited,420.00, 24-Feb-2021
1111,Revenue,CAHD,Bed and Breakfast,Bed & Breakfast,Connolly & Callaghan Limited,422.80, 24-Feb-2021
1112,Revenue,CAHD,Bed and Breakfast,Bed & Breakfast,Connolly & Callaghan Limited,679.00, 26-Feb-2021
1113,Revenue,CAHD,Bed and Breakfast,Bed & Breakfast,Connolly & Callaghan Limited,508.20, 24-Feb-2021
1114,Revenue,CAHD,Central - Commissioned Services,Permanent Nursing,Cotswold House Care Home,19661.52, 09-Feb-2021
1115,Revenue,CAHD,Central - Commissioned Services,Permanent Nursing,Cotswold House Care Home,3484.32, 09-Feb-2021
1116,Revenue,CAHD,Alexandra Way,Cleaning & Domestic Services,Countrywide Healthcare Supplies Ltd,690.67, 03-Feb-2021
1117,Revenue,CAHD,Alexandra Way,Cleaning & Domestic Services,Countrywide Healthcare Supplies Ltd,897.08, 03-Feb-2021
1118,Revenue,CAHD,Alexandra Way,Cleaning & Domestic Services,Countrywide Healthcare Supplies Ltd,453.73, 09-Feb-2021
1119,Revenue,CAHD,Alexandra Way,Cleaning & Domestic Services,Countrywide Healthcare Supplies Ltd,678.99, 09-Feb-2021
1120,Revenue,CAHD,North - Community based support,Permanent Residential,Court House Residential C.H.,3400.00, 09-Feb-2021
1121,Revenue,CAHD,Covid - ASC - Infection Control,Grants to Voluntary Bodies,Courtfield Healthcare Ltd,1885.43, 26-Feb-2021
1122,Revenue,CAHD,S28A cases,Permanent Residential,Creedy Court,10597.96, 09-Feb-2021
1123,Revenue,CAHD,S28A cases,Permanent Residential,Creedy Court,8904.92, 09-Feb-2021
1124,Revenue,CAHD,North - Community based support,Permanent Residential,Creedy Court,14054.00, 09-Feb-2021
1125,Revenue,CAHD,Training Budget - Children`s Social Serv,Training Expenses,Cruidin Training and Consultancy Ltd,4000.00, 19-Feb-2021
1126,Revenue,CAHD,Central - Commissioned Services,Supported Living,Cygnet Healthcare Limited,3304.00, 09-Feb-2021
1127,Revenue,CAHD,CSC - Vinney Green Secure Unit,Mechanical & Electrical Maintenance,Dale Power Solutions Ltd,1363.12, 22-Feb-2021
1128,Revenue,CAHD,CSC - Vinney Green Secure Unit,Mechanical & Electrical Maintenance,Dale Power Solutions Ltd,2607.14, 03-Feb-2021
1129,Revenue,CAHD,South - Commissioned Services,Permanent Residential,Daneswood,12759.56, 09-Feb-2021
1130,Revenue,CAHD,South - Commissioned Services,Day Care / Social Activities,Daneswood,1441.60, 09-Feb-2021
1131,Revenue,CAHD,North - Community based support,Permanent Residential,Daneswood,13579.68, 09-Feb-2021
1132,Revenue,CAHD,South - S117,Permanent Nursing,Danshell Healthcare Group,11437.64, 09-Feb-2021
1133,Revenue,CAHD,Jointly Funded H&SC Packages,Permanent Nursing,Danshell Healthcare Group,1697.16, 09-Feb-2021
1134,Revenue,CAHD,Learning Difficulties PSL,Rent,Individual,2400.00, 22-Feb-2021
1135,Revenue,CAHD,CSC - Vinney Green Secure Unit,R & M by Departments,Dart Valley Systems Limited,626.00, 26-Feb-2021
1136,Revenue,CAHD,South - Commissioned Services,Permanent Nursing,Debt Recovery,6437.72, 09-Feb-2021
1137,Revenue,CAHD,South Glos Users in South Glos Homes,Permanent Nursing,Deerhurst Nursing Home,735.68, 09-Feb-2021
1138,Revenue,CAHD,South - Commissioned Services,Permanent Nursing,Deerhurst Nursing Home,3881.40, 09-Feb-2021
1139,Revenue,CAHD,South Glos Users in South Glos Homes,Permanent Nursing,Deerhurst Nursing Home,735.68, 09-Feb-2021
1140,Revenue,CAHD,South - Commissioned Services,Permanent Nursing,Deerhurst Nursing Home,4160.00, 09-Feb-2021
1141,Revenue,CAHD,South - Commissioned Services,Permanent Nursing,Deerhurst Nursing Home,8424.00, 09-Feb-2021
1142,Revenue,CAHD,South - Commissioned Services,Permanent Nursing,Deerhurst Nursing Home,4536.00, 09-Feb-2021
1143,Revenue,CAHD,South - Commissioned Services,Permanent Nursing,Deerhurst Nursing Home,4400.00, 09-Feb-2021
1144,Revenue,CAHD,South Glos Users in South Glos Homes,Permanent Nursing,Deerhurst Nursing Home,735.68, 09-Feb-2021
1145,Revenue,CAHD,South - Commissioned Services,Fees & Charges Income - General,Deerhurst Nursing Home,859.00, 09-Feb-2021
1146,Revenue,CAHD,South - Commissioned Services,Day Care / Social Activities,Deerhurst Nursing Home,568.16, 09-Feb-2021
1147,Revenue,CAHD,South Glos Users in South Glos Homes,Permanent Nursing,Deerhurst Nursing Home,735.68, 09-Feb-2021
1148,Revenue,CAHD,South Glos Users in South Glos Homes,Permanent Nursing,Deerhurst Nursing Home,735.68, 09-Feb-2021
1149,Revenue,CAHD,South - Commissioned Services,Permanent Nursing,Deerhurst Nursing Home,4006.00, 09-Feb-2021
1150,Revenue,CAHD,South Glos Users in South Glos Homes,Permanent Nursing,Deerhurst Nursing Home,735.68, 09-Feb-2021
1151,Revenue,CAHD,North - Community based support,Permanent Nursing,Deerhurst Nursing Home,3891.20, 09-Feb-2021
1152,Revenue,CAHD,South - Commissioned Services,Permanent Nursing,Deerhurst Nursing Home,3965.12, 09-Feb-2021
1153,Revenue,CAHD,South Glos Users in South Glos Homes,Permanent Nursing,Deerhurst Nursing Home,735.68, 09-Feb-2021
1154,Revenue,CAHD,North - Community based support,Permanent Nursing,Deerhurst Nursing Home,4140.00, 09-Feb-2021
1155,Revenue,CAHD,South - Commissioned Services,Permanent Nursing,Deerhurst Nursing Home,4129.40, 09-Feb-2021
1156,Revenue,CAHD,South - Commissioned Services,Permanent Nursing,Deerhurst Nursing Home,4088.08, 09-Feb-2021
1157,Revenue,CAHD,South Glos Users in South Glos Homes,Permanent Nursing,Deerhurst Nursing Home,735.68, 09-Feb-2021
1158,Revenue,CAHD,South - bed purchasing and direct  payments,Permanent Nursing,Deerhurst Nursing Home,1021.02, 09-Feb-2021
1159,Revenue,CAHD,South Glos Users in South Glos Homes,Permanent Nursing,Deerhurst Nursing Home,735.68, 09-Feb-2021
1160,Revenue,CAHD,South Glos Users in South Glos Homes,Permanent Nursing,Deerhurst Nursing Home,735.68, 09-Feb-2021
1161,Revenue,CAHD,North - Community based support,Permanent Nursing,Deerhurst Nursing Home,4088.08, 09-Feb-2021
1162,Revenue,CAHD,South Glos Users in South Glos Homes,Permanent Nursing,Deerhurst Nursing Home,735.68, 09-Feb-2021
1163,Revenue,CAHD,South - Commissioned Services,Permanent Nursing,Deerhurst Nursing Home,4086.08, 09-Feb-2021
1164,Revenue,CAHD,South Glos Users in South Glos Homes,Permanent Nursing,Deerhurst Nursing Home,735.68, 09-Feb-2021
1165,Revenue,CAHD,South Glos Users in South Glos Homes,Permanent Nursing,Deerhurst Nursing Home,735.68, 09-Feb-2021
1166,Revenue,CAHD,South - Commissioned Services,Permanent Nursing,Deerhurst Nursing Home,3969.04, 09-Feb-2021
1167,Revenue,CAHD,South Glos Users in South Glos Homes,Permanent Nursing,Deerhurst Nursing Home,735.68, 09-Feb-2021
1168,Revenue,CAHD,South - Commissioned Services,Permanent Nursing,Deerhurst Nursing Home,4535.08, 09-Feb-2021
1169,Revenue,CAHD,South Glos Users in South Glos Homes,Permanent Nursing,Deerhurst Nursing Home,735.68, 09-Feb-2021
1170,Revenue,CAHD,South - Commissioned Services,Permanent Nursing,Deerhurst Nursing Home,4132.00, 09-Feb-2021
1171,Revenue,CAHD,South Glos Users in South Glos Homes,Permanent Nursing,Deerhurst Nursing Home,735.68, 09-Feb-2021
1172,Revenue,CAHD,South Glos Users in South Glos Homes,Permanent Nursing,Deerhurst Nursing Home,735.68, 09-Feb-2021
1173,Revenue,CAHD,South Glos Users in South Glos Homes,Permanent Nursing,Deerhurst Nursing Home,735.68, 09-Feb-2021
1174,Revenue,CAHD,South Glos Users in South Glos Homes,Permanent Nursing,Deerhurst Nursing Home,735.68, 09-Feb-2021
1175,Revenue,CAHD,North - Community based support,Permanent Nursing,Deerhurst Nursing Home,4006.00, 09-Feb-2021
1176,Revenue,CAHD,South Glos Users in South Glos Homes,Permanent Nursing,Deerhurst Nursing Home,735.68, 09-Feb-2021
1177,Revenue,CAHD,South - Commissioned Services,Permanent Nursing,Deerhurst Nursing Home,4085.36, 09-Feb-2021
1178,Revenue,CAHD,South Glos Users in South Glos Homes,Permanent Nursing,Deerhurst Nursing Home,735.68, 09-Feb-2021
1179,Revenue,CAHD,South Glos Users in South Glos Homes,Permanent Nursing,Deerhurst Nursing Home,735.68, 09-Feb-2021
1180,Revenue,CAHD,South Glos Users in South Glos Homes,Permanent Nursing,Deerhurst Nursing Home,735.68, 09-Feb-2021
1181,Revenue,CAHD,South - Commissioned Services,Permanent Nursing,Deerhurst Nursing Home,4006.00, 09-Feb-2021
1182,Revenue,CAHD,South - Commissioned Services,Permanent Residential,Deerhurst Nursing Home,4129.00, 09-Feb-2021
1183,Revenue,CAHD,South Glos Users in South Glos Homes,Permanent Nursing,Deerhurst Nursing Home,735.68, 09-Feb-2021
1184,Revenue,CAHD,South Glos Users in South Glos Homes,Permanent Nursing,Deerhurst Nursing Home,735.68, 09-Feb-2021
1185,Revenue,CAHD,South - Commissioned Services,Permanent Nursing,Deerhurst Nursing Home,4006.00, 09-Feb-2021
1186,Revenue,CAHD,South - Commissioned Services,Fees & Charges Income - General,Deerhurst Nursing Home,5136.71, 09-Feb-2021
1187,Revenue,CAHD,South - Commissioned Services,Permanent Residential,Deerhurst Nursing Home,3891.20, 09-Feb-2021
1188,Revenue,CAHD,South Glos Users in South Glos Homes,Permanent Nursing,Deerhurst Nursing Home,735.68, 09-Feb-2021
1189,Revenue,CAHD,North - Community based support,Permanent Nursing,Deerhurst Nursing Home,3094.88, 09-Feb-2021
1190,Revenue,CAHD,South Glos Users in South Glos Homes,Permanent Nursing,Deerhurst Nursing Home,735.68, 09-Feb-2021
1191,Revenue,CAHD,South Glos Users in South Glos Homes,Permanent Nursing,Deerhurst Nursing Home,735.68, 09-Feb-2021
1192,Revenue,CAHD,South Glos Users in South Glos Homes,Permanent Nursing,Deerhurst Nursing Home,735.68, 09-Feb-2021
1193,Revenue,CAHD,South Glos Users in South Glos Homes,Permanent Nursing,Deerhurst Nursing Home,735.68, 09-Feb-2021
1194,Revenue,CAHD,South - Commissioned Services,Permanent Nursing,Deerhurst Nursing Home,1652.12, 09-Feb-2021
1195,Revenue,CAHD,South Glos Users in South Glos Homes,Permanent Nursing,Deerhurst Nursing Home,735.68, 09-Feb-2021
1196,Revenue,CAHD,ASC Rapid Testing Fund,Grants to Voluntary Bodies,Deerhurst Nursing Home,17714.01, 05-Feb-2021
1197,Revenue,CAHD,Schools Specific Grant Income,Other Public Bodies,Dene Magna School,630.00, 16-Feb-2021
1198,Revenue,CAHD,South - Commissioned Services,Supported Living,Design House,2714.44, 09-Feb-2021
1199,Revenue,CAHD,South - Commissioned Services,Other Small Contracts,Design House,3124.28, 09-Feb-2021
1200,Revenue,CAHD,South - Commissioned Services,Supported Living,Design House,3195.40, 09-Feb-2021
1201,Revenue,CAHD,South - Commissioned Services,Supported Living,Design House,3053.16, 09-Feb-2021
1202,Revenue,CAHD,South - Commissioned Services,Day Care / Social Activities,Design House,526.72, 09-Feb-2021
1203,Revenue,CAHD,18-25 Year Olds,Supported Living,Design House,3013.92, 09-Feb-2021
1204,Revenue,CAHD,Central - Commissioned Services,Day Care / Social Activities,Design House,2991.44, 09-Feb-2021
1205,Revenue,CAHD,South - Commissioned Services,Day Care / Social Activities,Design House,1317.04, 09-Feb-2021
1206,Revenue,CAHD,South - Commissioned Services,Supported Living,Design House,2691.36, 09-Feb-2021
1207,Revenue,CAHD,South - Commissioned Services,Supported Living,Design House,2691.36, 09-Feb-2021
1208,Revenue,CAHD,South - Commissioned Services,Other Small Contracts,Design House,2192.32, 09-Feb-2021
1209,Revenue,CAHD,South - Commissioned Services,Supported Living,Design House,1934.44, 09-Feb-2021
1210,Revenue,CAHD,South - Commissioned Services,Day Care / Social Activities,Design House,526.72, 09-Feb-2021
1211,Revenue,CAHD,South - Commissioned Services,Other Small Contracts,Design House,2566.92, 09-Feb-2021
1212,Revenue,CAHD,South - Commissioned Services,Supported Living,Design House,4393.28, 09-Feb-2021
1213,Revenue,CAHD,North - Community based support,Supported Living,Design House,3115.32, 09-Feb-2021
1214,Revenue,CAHD,South - Commissioned Services,Day Care / Social Activities,Design House,1536.08, 09-Feb-2021
1215,Revenue,CAHD,South - Commissioned Services,Supported Living,Design House,2983.16, 09-Feb-2021
1216,Revenue,CAHD,South - Commissioned Services,Supported Living,Design House,2593.64, 09-Feb-2021
1217,Revenue,CAHD,South - Commissioned Services,Supported Living,Design House,2302.64, 09-Feb-2021
1218,Revenue,CAHD,South - Commissioned Services,Supported Living,Design House,2302.64, 09-Feb-2021
1219,Revenue,CAHD,Bed and Breakfast,Bed & Breakfast,Designz Ltd,518.00, 01-Feb-2021
1220,Revenue,CAHD,Bed and Breakfast,Bed & Breakfast,Designz Ltd,518.00, 08-Feb-2021
1221,Revenue,CAHD,Bed and Breakfast,Bed & Breakfast,Designz Ltd,518.00, 19-Feb-2021
1222,Revenue,CAHD,Bed and Breakfast,Bed & Breakfast,Designz Ltd,518.00, 19-Feb-2021
1223,Revenue,CAHD,Central - Commissioned Services,Other Small Contracts,Dhek Bhal,264.32, 10-Feb-2021
1224,Revenue,CAHD,South - Commissioned Services,Other Small Contracts,Dhek Bhal,252.96, 10-Feb-2021
1225,Revenue,CAHD,Central - Commissioned Services,Other Small Contracts,Dhek Bhal,247.66, 10-Feb-2021
1226,Revenue,CAHD,South - Commissioned Services,Other Small Contracts,Dhek Bhal,252.96, 10-Feb-2021
1227,Revenue,CAHD,Community Support - North,Preventative Assistance,Direct Healthcare Group,1364.00, 18-Feb-2021
1228,Revenue,CAHD,CSC - Legal Assessments,Interpreting & Translation,DNA Legal,783.00, 05-Feb-2021
1229,Revenue,CAHD,ADPH Sector Led Improvements,Other L.A.s - General,Dorset County Council,25000.00, 18-Feb-2021
1230,Revenue,CAHD,Statemented Support Academies,Other Public Bodies,Downend School,978.57, 23-Feb-2021
1231,Revenue,CAHD,Statemented Support Academies,Other Public Bodies,Downend School,660.24, 23-Feb-2021
1232,Revenue,CAHD,Statemented Support Academies,Other Public Bodies,Downend School,1025.73, 23-Feb-2021
1233,Revenue,CAHD,Statemented Support Academies,Other Public Bodies,Downend School,1013.94, 23-Feb-2021
1234,Revenue,CAHD,Statemented Support Academies,Other Public Bodies,Downend School,801.72, 23-Feb-2021
1235,Revenue,CAHD,Statemented Support Academies,Other Public Bodies,Downend School,530.67, 23-Feb-2021
1236,Revenue,CAHD,Statemented Support Academies,Other Public Bodies,Downend School,1108.26, 23-Feb-2021
1237,Revenue,CAHD,Statemented Support Academies,Other Public Bodies,Downend School,554.13, 23-Feb-2021
1238,Revenue,CAHD,Statemented Support Academies,Other Public Bodies,Downend School,666.00, 23-Feb-2021
1239,Revenue,CAHD,Statemented Support Academies,Other Public Bodies,Downend School,6478.02, 23-Feb-2021
1240,Revenue,CAHD,Statemented Support Academies,Other Public Bodies,Downend School,1438.38, 23-Feb-2021
1241,Revenue,CAHD,Statemented Support Academies,Other Public Bodies,Downend School,1709.55, 23-Feb-2021
1242,Revenue,CAHD,Statemented Support Academies,Other Public Bodies,Downend School,1192.50, 23-Feb-2021
1243,Revenue,CAHD,Statemented Support Academies,Other Public Bodies,Downend School,1544.49, 23-Feb-2021
1244,Revenue,CAHD,Social Lettings Agency,Rent,Individual,743.75, 22-Feb-2021
1245,Revenue,CAHD,Social Lettings Agency,Fees - General,Individual,13.16, 22-Feb-2021
1246,Revenue,CAHD,CSC - Care Leavers Support Costs,Leaving Care,Durham County Council,32705.00, 04-Feb-2021
1247,Revenue,CAHD,Schools Specific Grant Income,Other Public Bodies,Durham School,630.00, 16-Feb-2021
1248,Revenue,CAHD,CSC - Therapeutic Foster Care Programm,Special Fostering Scheme,Individual,573.00, 05-Feb-2021
1249,Revenue,CAHD,CSC - Therapeutic Foster Care Programm,Special Fostering Scheme,Individual,573.00, 12-Feb-2021
1250,Revenue,CAHD,CSC - Therapeutic Foster Care Programm,Special Fostering Scheme,Individual,573.00, 19-Feb-2021
1251,Revenue,CAHD,CSC - Therapeutic Foster Care Programm,Special Fostering Scheme,Individual,573.00, 26-Feb-2021
1252,Revenue,CAHD,North - Community based support,Permanent Residential,East Court,2763.56, 09-Feb-2021
1253,Revenue,CAHD,CSC - LAC Placements,Client Transport,East Sussex County Council,100.00, 12-Feb-2021
1254,Revenue,CAHD,CSC - Residential Placements,Permanent Residential,East Sussex County Council,33480.00, 12-Feb-2021
1255,Revenue,CAHD,Minor Adaptations Service,Operational Equipment,Eastman & Co (Timber) Limited,1439.34, 19-Feb-2021
1256,Revenue,CAHD,Central - Commissioned Services,Permanent Residential,Edendale Lodge,3000.00, 09-Feb-2021
1257,Revenue,CAHD,CSC - Emergency Duty Team,Long Service Awards,Edenred (UK Group) Limited,740.00, 26-Feb-2021
1258,Revenue,CAHD,South - Commissioned Services,Permanent Residential,Edgemont House Ltd,3200.00, 09-Feb-2021
1259,Revenue,CAHD,South - bed purchasing and direct  payments,Permanent Residential,Edgemont House Ltd,3264.00, 09-Feb-2021
1260,Revenue,CAHD,South - Commissioned Services,Permanent Residential,Edgemont House Ltd,6666.43, 09-Feb-2021
1261,Revenue,CAHD,South - Commissioned Services,Permanent Residential,Edgemont House Ltd,3060.00, 09-Feb-2021
1262,Revenue,CAHD,ASC Rapid Testing Fund,Grants to Voluntary Bodies,Edgemont House Ltd,3757.52, 05-Feb-2021
1263,Revenue,CAHD,South - Commissioned Services,Permanent Nursing,Edgemont View Ltd,21875.00, 09-Feb-2021
1264,Revenue,CAHD,South - Commissioned Services,Permanent Nursing,Edgemont View Ltd,21875.00, 09-Feb-2021
1265,Revenue,CAHD,South - Commissioned Services,Permanent Nursing,Edgemont View Ltd,3500.00, 09-Feb-2021
1266,Revenue,CAHD,South Glos Users in South Glos Homes,Permanent Nursing,Edgemont View Ltd,735.68, 09-Feb-2021
1267,Revenue,CAHD,South - Commissioned Services,Permanent Nursing,Edgemont View Ltd,3500.00, 09-Feb-2021
1268,Revenue,CAHD,South Glos Users in South Glos Homes,Permanent Nursing,Edgemont View Ltd,735.68, 09-Feb-2021
1269,Revenue,CAHD,South Glos Users in South Glos Homes,Permanent Nursing,Edgemont View Ltd,735.68, 09-Feb-2021
1270,Revenue,CAHD,South Glos Users in South Glos Homes,Permanent Nursing,Edgemont View Ltd,735.68, 09-Feb-2021
1271,Revenue,CAHD,South - Commissioned Services,Permanent Nursing,Edgemont View Ltd,9714.29, 09-Feb-2021
1272,Revenue,CAHD,South - Commissioned Services,Permanent Nursing,Edgemont View Ltd,3400.00, 09-Feb-2021
1273,Revenue,CAHD,South Glos Users in South Glos Homes,Permanent Nursing,Edgemont View Ltd,735.68, 09-Feb-2021
1274,Revenue,CAHD,Covid 19- Spend on behalf of NHS,Respite Planned - Nursing,Edgemont View Ltd,3278.57, 09-Feb-2021
1275,Revenue,CAHD,South Glos Users in South Glos Homes,Permanent Nursing,Edgemont View Ltd,735.68, 09-Feb-2021
1276,Revenue,CAHD,South - Commissioned Services,Permanent Nursing,Edgemont View Ltd,3600.00, 09-Feb-2021
1277,Revenue,CAHD,South Glos Users in South Glos Homes,Permanent Nursing,Edgemont View Ltd,735.68, 09-Feb-2021
1278,Revenue,CAHD,South - Commissioned Services,Permanent Nursing,Edgemont View Ltd,3500.00, 09-Feb-2021
1279,Revenue,CAHD,Covid 19- Spend on behalf of NHS,Respite Planned - Nursing,Edgemont View Ltd,2428.57, 09-Feb-2021
1280,Revenue,CAHD,Covid 19- Spend on behalf of NHS,Respite Planned - Nursing,Edgemont View Ltd,5100.00, 09-Feb-2021
1281,Revenue,CAHD,South Glos Users in South Glos Homes,Permanent Nursing,Edgemont View Ltd,735.68, 09-Feb-2021
1282,Revenue,CAHD,South Glos Users in South Glos Homes,Permanent Nursing,Edgemont View Ltd,735.68, 09-Feb-2021
1283,Revenue,CAHD,South Glos Users in South Glos Homes,Permanent Nursing,Edgemont View Ltd,735.68, 09-Feb-2021
1284,Revenue,CAHD,Covid 19- Spend on behalf of NHS,Respite Planned - Nursing,Edgemont View Ltd,4007.14, 09-Feb-2021
1285,Revenue,CAHD,South Glos Users in South Glos Homes,Permanent Nursing,Edgemont View Ltd,735.68, 09-Feb-2021
1286,Revenue,CAHD,South - Commissioned Services,Permanent Nursing,Edgemont View Ltd,3655.68, 09-Feb-2021
1287,Revenue,CAHD,South Glos Users in South Glos Homes,Permanent Nursing,Edgemont View Ltd,735.68, 09-Feb-2021
1288,Revenue,CAHD,ASC Rapid Testing Fund,Grants to Voluntary Bodies,Edgemont View Ltd,5636.28, 05-Feb-2021
1289,Revenue,CAHD,Planning and Partnerships Procurement,Other Supplies & Services,Eldercare,450.00, 02-Feb-2021
1290,Revenue,CAHD,Flexible Homelessness Support Grant,Other Supplies & Services,Elim Housing Association Limited,40350.00, 19-Feb-2021
1291,Revenue,CAHD,Supporting People Programme,Grants to Voluntary Bodies,Elim Housing Association Limited,5362.00, 01-Feb-2021
1292,Revenue,CAHD,Community Support - North,Preventative Assistance,Elite Hygiene Services Limited,1175.00, 10-Feb-2021
1293,Revenue,CAHD,Social Lettings Agency,Rent,Individual,1401.09, 05-Feb-2021
1294,Revenue,CAHD,Social Lettings Agency,Fees - General,Individual,24.81, 05-Feb-2021
1295,Revenue,CAHD,CSC - Legal Fees,Legal Fees,Individual,675.00, 12-Feb-2021
1296,Revenue,CAHD,Hospital Tuition,Other Private Contractors,Elysium Healthcare Ltd,3200.00, 17-Feb-2021
1297,Revenue,CAHD,CSC - Legal Fees,Legal Fees,Individual,500.00, 17-Feb-2021
1298,Revenue,CAHD,Special ISB,Other Public Bodies,Enable Trust,6904.08, 26-Feb-2021
1299,Revenue,CAHD,Special ISB,Other Public Bodies,Enable Trust,1062.08, 26-Feb-2021
1300,Revenue,CAHD,Special ISB,Other Public Bodies,Enable Trust,1062.08, 26-Feb-2021
1301,Revenue,CAHD,Special ISB,Other Public Bodies,Enable Trust,1391.72, 26-Feb-2021
1302,Revenue,CAHD,Special ISB,Other Public Bodies,Enable Trust,1062.08, 26-Feb-2021
1303,Revenue,CAHD,Special ISB,Other Public Bodies,Enable Trust,805.72, 26-Feb-2021
1304,Revenue,CAHD,Special ISB,Other Public Bodies,Enable Trust,805.72, 26-Feb-2021
1305,Revenue,CAHD,Special ISB,Other Public Bodies,Enable Trust,1062.08, 26-Feb-2021
1306,Revenue,CAHD,Special ISB,Other Public Bodies,Enable Trust,1062.08, 26-Feb-2021
1307,Revenue,CAHD,Special ISB,Other Public Bodies,Enable Trust,805.72, 26-Feb-2021
1308,Revenue,CAHD,Special ISB,Other Public Bodies,Enable Trust,1538.16, 26-Feb-2021
1309,Revenue,CAHD,Special ISB,Other Public Bodies,Enable Trust,1391.72, 26-Feb-2021
1310,Revenue,CAHD,Special ISB,Other Public Bodies,Enable Trust,1062.08, 26-Feb-2021
1311,Revenue,CAHD,Special ISB,Other Public Bodies,Enable Trust,1062.08, 26-Feb-2021
1312,Revenue,CAHD,Special ISB,Other Public Bodies,Enable Trust,1391.72, 26-Feb-2021
1313,Revenue,CAHD,Special ISB,Other Public Bodies,Enable Trust,1391.72, 26-Feb-2021
1314,Revenue,CAHD,Special ISB,Other Public Bodies,Enable Trust,1391.72, 26-Feb-2021
1315,Revenue,CAHD,Special ISB,Other Public Bodies,Enable Trust,1391.72, 26-Feb-2021
1316,Revenue,CAHD,Special ISB,Other Public Bodies,Enable Trust,1062.08, 26-Feb-2021
1317,Revenue,CAHD,Special ISB,Other Public Bodies,Enable Trust,1062.08, 26-Feb-2021
1318,Revenue,CAHD,Special ISB,Other Public Bodies,Enable Trust,1062.08, 26-Feb-2021
1319,Revenue,CAHD,Special ISB,Other Public Bodies,Enable Trust,1062.08, 26-Feb-2021
1320,Revenue,CAHD,Special ISB,Other Public Bodies,Enable Trust,585.92, 26-Feb-2021
1321,Revenue,CAHD,Special ISB,Other Public Bodies,Enable Trust,805.72, 26-Feb-2021
1322,Revenue,CAHD,Special ISB,Other Public Bodies,Enable Trust,1062.08, 26-Feb-2021
1323,Revenue,CAHD,Special ISB,Other Public Bodies,Enable Trust,1977.64, 26-Feb-2021
1324,Revenue,CAHD,Special ISB,Other Public Bodies,Enable Trust,1977.64, 26-Feb-2021
1325,Revenue,CAHD,Special ISB,Other Public Bodies,Enable Trust,1062.08, 26-Feb-2021
1326,Revenue,CAHD,Special ISB,Other Public Bodies,Enable Trust,1062.08, 26-Feb-2021
1327,Revenue,CAHD,Special ISB,Other Public Bodies,Enable Trust,1062.08, 26-Feb-2021
1328,Revenue,CAHD,Special ISB,Other Public Bodies,Enable Trust,1062.08, 26-Feb-2021
1329,Revenue,CAHD,Special ISB,Other Public Bodies,Enable Trust,1062.08, 26-Feb-2021
1330,Revenue,CAHD,Special ISB,Other Public Bodies,Enable Trust,1391.72, 26-Feb-2021
1331,Revenue,CAHD,Special ISB,Other Public Bodies,Enable Trust,1062.08, 26-Feb-2021
1332,Revenue,CAHD,Special ISB,Other Public Bodies,Enable Trust,1391.72, 26-Feb-2021
1333,Revenue,CAHD,Special ISB,Other Public Bodies,Enable Trust,1391.72, 26-Feb-2021
1334,Revenue,CAHD,Special ISB,Other Public Bodies,Enable Trust,1062.08, 26-Feb-2021
1335,Revenue,CAHD,Special ISB,Other Public Bodies,Enable Trust,1062.08, 26-Feb-2021
1336,Revenue,CAHD,Special ISB,Other Public Bodies,Enable Trust,1977.64, 26-Feb-2021
1337,Revenue,CAHD,Special ISB,Other Public Bodies,Enable Trust,1977.64, 26-Feb-2021
1338,Revenue,CAHD,Special ISB,Other Public Bodies,Enable Trust,1977.64, 26-Feb-2021
1339,Revenue,CAHD,Special ISB,Other Public Bodies,Enable Trust,1062.08, 26-Feb-2021
1340,Revenue,CAHD,Special ISB,Other Public Bodies,Enable Trust,1062.08, 26-Feb-2021
1341,Revenue,CAHD,Special ISB,Other Public Bodies,Enable Trust,1062.08, 26-Feb-2021
1342,Revenue,CAHD,Special ISB,Other Public Bodies,Enable Trust,805.72, 26-Feb-2021
1343,Revenue,CAHD,Special ISB,Other Public Bodies,Enable Trust,585.92, 26-Feb-2021
1344,Revenue,CAHD,Special ISB,Other Public Bodies,Enable Trust,1977.64, 26-Feb-2021
1345,Revenue,CAHD,Special ISB,Other Public Bodies,Enable Trust,1391.72, 26-Feb-2021
1346,Revenue,CAHD,Special ISB,Other Public Bodies,Enable Trust,1062.08, 26-Feb-2021
1347,Revenue,CAHD,Special ISB,Other Public Bodies,Enable Trust,805.72, 26-Feb-2021
1348,Revenue,CAHD,Special ISB,Other Public Bodies,Enable Trust,1062.08, 26-Feb-2021
1349,Revenue,CAHD,Special ISB,Other Public Bodies,Enable Trust,1977.64, 26-Feb-2021
1350,Revenue,CAHD,Special ISB,Other Public Bodies,Enable Trust,1062.08, 26-Feb-2021
1351,Revenue,CAHD,Special ISB,Other Public Bodies,Enable Trust,1062.08, 26-Feb-2021
1352,Revenue,CAHD,Special ISB,Other Public Bodies,Enable Trust,1391.72, 26-Feb-2021
1353,Revenue,CAHD,Special ISB,Other Public Bodies,Enable Trust,805.72, 26-Feb-2021
1354,Revenue,CAHD,Special ISB,Other Public Bodies,Enable Trust,1391.72, 26-Feb-2021
1355,Revenue,CAHD,Special ISB,Other Public Bodies,Enable Trust,1391.72, 26-Feb-2021
1356,Revenue,CAHD,Special ISB,Other Public Bodies,Enable Trust,1538.16, 26-Feb-2021
1357,Revenue,CAHD,Special ISB,Other Public Bodies,Enable Trust,1391.72, 26-Feb-2021
1358,Revenue,CAHD,Special ISB,Other Public Bodies,Enable Trust,805.72, 26-Feb-2021
1359,Revenue,CAHD,Special ISB,Other Public Bodies,Enable Trust,1391.72, 26-Feb-2021
1360,Revenue,CAHD,Special ISB,Other Public Bodies,Enable Trust,805.72, 26-Feb-2021
1361,Revenue,CAHD,Special ISB,Other Public Bodies,Enable Trust,1062.08, 26-Feb-2021
1362,Revenue,CAHD,Special ISB,Other Public Bodies,Enable Trust,1062.08, 26-Feb-2021
1363,Revenue,CAHD,Special ISB,Other Public Bodies,Enable Trust,1062.08, 26-Feb-2021
1364,Revenue,CAHD,Special ISB,Other Public Bodies,Enable Trust,805.72, 26-Feb-2021
1365,Revenue,CAHD,Special ISB,Other Public Bodies,Enable Trust,805.72, 26-Feb-2021
1366,Revenue,CAHD,Special ISB,Other Public Bodies,Enable Trust,585.92, 26-Feb-2021
1367,Revenue,CAHD,Special ISB,Other Public Bodies,Enable Trust,1062.08, 26-Feb-2021
1368,Revenue,CAHD,Special ISB,Other Public Bodies,Enable Trust,1391.72, 26-Feb-2021
1369,Revenue,CAHD,Special ISB,Other Public Bodies,Enable Trust,1977.64, 26-Feb-2021
1370,Revenue,CAHD,Special ISB,Other Public Bodies,Enable Trust,1391.72, 26-Feb-2021
1371,Revenue,CAHD,Special ISB,Other Public Bodies,Enable Trust,805.72, 26-Feb-2021
1372,Revenue,CAHD,Special ISB,Other Public Bodies,Enable Trust,1062.08, 26-Feb-2021
1373,Revenue,CAHD,Special ISB,Other Public Bodies,Enable Trust,1062.08, 26-Feb-2021
1374,Revenue,CAHD,Special ISB,Other Public Bodies,Enable Trust,1062.08, 26-Feb-2021
1375,Revenue,CAHD,Special ISB,Other Public Bodies,Enable Trust,1062.08, 26-Feb-2021
1376,Revenue,CAHD,Special ISB,Other Public Bodies,Enable Trust,1391.72, 26-Feb-2021
1377,Revenue,CAHD,Special ISB,Other Public Bodies,Enable Trust,1062.08, 26-Feb-2021
1378,Revenue,CAHD,Special ISB,Other Public Bodies,Enable Trust,5246.33, 26-Feb-2021
1379,Revenue,CAHD,Special ISB,Other Public Bodies,Enable Trust,1391.72, 26-Feb-2021
1380,Revenue,CAHD,Schools Specific Grant Income,Other Public Bodies,Enable Trust,630.00, 16-Feb-2021
1381,Revenue,CAHD,Schools Specific Grant Income,Other Public Bodies,Enable Trust,630.00, 16-Feb-2021
1382,Revenue,CAHD,Schools Specific Grant Income,Other Public Bodies,Enable Trust,630.00, 16-Feb-2021
1383,Revenue,CAHD,Special ISB,Other Public Bodies,Enable Trust,1062.08, 26-Feb-2021
1384,Revenue,CAHD,Special ISB,Other Public Bodies,Enable Trust,1062.08, 26-Feb-2021
1385,Revenue,CAHD,Special ISB,Other Public Bodies,Enable Trust,805.72, 26-Feb-2021
1386,Revenue,CAHD,Special ISB,Other Public Bodies,Enable Trust,805.72, 26-Feb-2021
1387,Revenue,CAHD,Special ISB,Other Public Bodies,Enable Trust,1062.08, 26-Feb-2021
1388,Revenue,CAHD,Special ISB,Other Public Bodies,Enable Trust,1391.72, 26-Feb-2021
1389,Revenue,CAHD,Special ISB,Other Public Bodies,Enable Trust,1977.64, 26-Feb-2021
1390,Revenue,CAHD,Special ISB,Other Public Bodies,Enable Trust,1062.08, 26-Feb-2021
1391,Revenue,CAHD,Special ISB,Other Public Bodies,Enable Trust,585.92, 26-Feb-2021
1392,Revenue,CAHD,Special ISB,Other Public Bodies,Enable Trust,1062.08, 26-Feb-2021
1393,Revenue,CAHD,Special ISB,Other Public Bodies,Enable Trust,1538.16, 26-Feb-2021
1394,Revenue,CAHD,Special ISB,Other Public Bodies,Enable Trust,1538.16, 26-Feb-2021
1395,Revenue,CAHD,Special ISB,Other Public Bodies,Enable Trust,1538.16, 26-Feb-2021
1396,Revenue,CAHD,Special ISB,Other Public Bodies,Enable Trust,1062.08, 26-Feb-2021
1397,Revenue,CAHD,Special ISB,Other Public Bodies,Enable Trust,1538.16, 26-Feb-2021
1398,Revenue,CAHD,Special ISB,Other Public Bodies,Enable Trust,2270.60, 26-Feb-2021
1399,Revenue,CAHD,Special ISB,Other Public Bodies,Enable Trust,1538.16, 26-Feb-2021
1400,Revenue,CAHD,Special ISB,Other Public Bodies,Enable Trust,1538.16, 26-Feb-2021
1401,Revenue,CAHD,Special ISB,Other Public Bodies,Enable Trust,1062.08, 26-Feb-2021
1402,Revenue,CAHD,Special ISB,Other Public Bodies,Enable Trust,1062.08, 26-Feb-2021
1403,Revenue,CAHD,Special ISB,Other Public Bodies,Enable Trust,1977.64, 26-Feb-2021
1404,Revenue,CAHD,Special ISB,Other Public Bodies,Enable Trust,1538.16, 26-Feb-2021
1405,Revenue,CAHD,Special ISB,Other Public Bodies,Enable Trust,1977.64, 26-Feb-2021
1406,Revenue,CAHD,Special ISB,Other Public Bodies,Enable Trust,1977.64, 26-Feb-2021
1407,Revenue,CAHD,Special ISB,Other Public Bodies,Enable Trust,1977.64, 26-Feb-2021
1408,Revenue,CAHD,Special ISB,Other Public Bodies,Enable Trust,805.72, 26-Feb-2021
1409,Revenue,CAHD,Special ISB,Other Public Bodies,Enable Trust,1062.08, 26-Feb-2021
1410,Revenue,CAHD,Special ISB,Other Public Bodies,Enable Trust,805.72, 26-Feb-2021
1411,Revenue,CAHD,Special ISB,Other Public Bodies,Enable Trust,805.72, 26-Feb-2021
1412,Revenue,CAHD,Special ISB,Other Public Bodies,Enable Trust,1538.16, 26-Feb-2021
1413,Revenue,CAHD,Special ISB,Other Public Bodies,Enable Trust,805.72, 26-Feb-2021
1414,Revenue,CAHD,Special ISB,Other Public Bodies,Enable Trust,805.72, 26-Feb-2021
1415,Revenue,CAHD,Special ISB,Other Public Bodies,Enable Trust,922.88, 26-Feb-2021
1416,Revenue,CAHD,Special ISB,Other Public Bodies,Enable Trust,1062.08, 26-Feb-2021
1417,Revenue,CAHD,Special ISB,Other Public Bodies,Enable Trust,805.72, 26-Feb-2021
1418,Revenue,CAHD,Special ISB,Other Public Bodies,Enable Trust,1062.08, 26-Feb-2021
1419,Revenue,CAHD,Special ISB,Other Public Bodies,Enable Trust,1062.08, 26-Feb-2021
1420,Revenue,CAHD,Special ISB,Other Public Bodies,Enable Trust,805.72, 26-Feb-2021
1421,Revenue,CAHD,Special ISB,Other Public Bodies,Enable Trust,1538.16, 26-Feb-2021
1422,Revenue,CAHD,Special ISB,Other Public Bodies,Enable Trust,2270.60, 26-Feb-2021
1423,Revenue,CAHD,Special ISB,Other Public Bodies,Enable Trust,1538.16, 26-Feb-2021
1424,Revenue,CAHD,Special ISB,Other Public Bodies,Enable Trust,805.72, 26-Feb-2021
1425,Revenue,CAHD,Special ISB,Other Public Bodies,Enable Trust,1062.08, 26-Feb-2021
1426,Revenue,CAHD,Special ISB,Other Public Bodies,Enable Trust,1062.08, 26-Feb-2021
1427,Revenue,CAHD,Special ISB,Other Public Bodies,Enable Trust,1062.08, 26-Feb-2021
1428,Revenue,CAHD,Special ISB,Other Public Bodies,Enable Trust,805.72, 26-Feb-2021
1429,Revenue,CAHD,Special ISB,Other Public Bodies,Enable Trust,1538.16, 26-Feb-2021
1430,Revenue,CAHD,Special ISB,Other Public Bodies,Enable Trust,1362.36, 26-Feb-2021
1431,Revenue,CAHD,Special ISB,Other Public Bodies,Enable Trust,2270.60, 26-Feb-2021
1432,Revenue,CAHD,Special ISB,Other Public Bodies,Enable Trust,1062.08, 26-Feb-2021
1433,Revenue,CAHD,Special ISB,Other Public Bodies,Enable Trust,1062.08, 26-Feb-2021
1434,Revenue,CAHD,Special ISB,Other Public Bodies,Enable Trust,1062.08, 26-Feb-2021
1435,Revenue,CAHD,Special ISB,Other Public Bodies,Enable Trust,805.72, 26-Feb-2021
1436,Revenue,CAHD,Special ISB,Other Public Bodies,Enable Trust,1062.08, 26-Feb-2021
1437,Revenue,CAHD,Special ISB,Other Public Bodies,Enable Trust,1538.16, 26-Feb-2021
1438,Revenue,CAHD,Special ISB,Other Public Bodies,Enable Trust,585.92, 26-Feb-2021
1439,Revenue,CAHD,Special ISB,Other Public Bodies,Enable Trust,1062.08, 26-Feb-2021
1440,Revenue,CAHD,Special ISB,Other Public Bodies,Enable Trust,1538.16, 26-Feb-2021
1441,Revenue,CAHD,Special ISB,Other Public Bodies,Enable Trust,1062.08, 26-Feb-2021
1442,Revenue,CAHD,Special ISB,Other Public Bodies,Enable Trust,1062.08, 26-Feb-2021
1443,Revenue,CAHD,Special ISB,Other Public Bodies,Enable Trust,805.72, 26-Feb-2021
1444,Revenue,CAHD,Special ISB,Other Public Bodies,Enable Trust,1538.16, 26-Feb-2021
1445,Revenue,CAHD,Special ISB,Other Public Bodies,Enable Trust,1977.64, 26-Feb-2021
1446,Revenue,CAHD,Special ISB,Other Public Bodies,Enable Trust,1391.72, 26-Feb-2021
1447,Revenue,CAHD,Special ISB,Other Public Bodies,Enable Trust,1062.08, 26-Feb-2021
1448,Revenue,CAHD,Special ISB,Other Public Bodies,Enable Trust,1538.16, 26-Feb-2021
1449,Revenue,CAHD,Special ISB,Other Public Bodies,Enable Trust,1538.16, 26-Feb-2021
1450,Revenue,CAHD,Special ISB,Other Public Bodies,Enable Trust,805.72, 26-Feb-2021
1451,Revenue,CAHD,Special ISB,Other Public Bodies,Enable Trust,1062.08, 26-Feb-2021
1452,Revenue,CAHD,Special ISB,Other Public Bodies,Enable Trust,1062.08, 26-Feb-2021
1453,Revenue,CAHD,Special ISB,Other Public Bodies,Enable Trust,1977.64, 26-Feb-2021
1454,Revenue,CAHD,Special ISB,Other Public Bodies,Enable Trust,805.72, 26-Feb-2021
1455,Revenue,CAHD,Special ISB,Other Public Bodies,Enable Trust,1977.64, 26-Feb-2021
1456,Revenue,CAHD,Special ISB,Other Public Bodies,Enable Trust,805.72, 26-Feb-2021
1457,Revenue,CAHD,Special ISB,Other Public Bodies,Enable Trust,1062.08, 26-Feb-2021
1458,Revenue,CAHD,Special ISB,Other Public Bodies,Enable Trust,1538.16, 26-Feb-2021
1459,Revenue,CAHD,Special ISB,Other Public Bodies,Enable Trust,1538.16, 26-Feb-2021
1460,Revenue,CAHD,Special ISB,Other Public Bodies,Enable Trust,1062.08, 26-Feb-2021
1461,Revenue,CAHD,Special ISB,Other Public Bodies,Enable Trust,2270.60, 26-Feb-2021
1462,Revenue,CAHD,Special ISB,Other Public Bodies,Enable Trust,1538.16, 26-Feb-2021
1463,Revenue,CAHD,Special ISB,Other Public Bodies,Enable Trust,805.72, 26-Feb-2021
1464,Revenue,CAHD,Special ISB,Other Public Bodies,Enable Trust,1062.08, 26-Feb-2021
1465,Revenue,CAHD,Special ISB,Other Public Bodies,Enable Trust,805.72, 26-Feb-2021
1466,Revenue,CAHD,Special ISB,Other Public Bodies,Enable Trust,1538.16, 26-Feb-2021
1467,Revenue,CAHD,Special ISB,Other Public Bodies,Enable Trust,1062.08, 26-Feb-2021
1468,Revenue,CAHD,Special ISB,Other Public Bodies,Enable Trust,1062.08, 26-Feb-2021
1469,Revenue,CAHD,Special ISB,Other Public Bodies,Enable Trust,1062.08, 26-Feb-2021
1470,Revenue,CAHD,Special ISB,Other Public Bodies,Enable Trust,805.72, 26-Feb-2021
1471,Revenue,CAHD,Special ISB,Other Public Bodies,Enable Trust,1977.64, 26-Feb-2021
1472,Revenue,CAHD,Special ISB,Other Public Bodies,Enable Trust,1538.16, 26-Feb-2021
1473,Revenue,CAHD,Special ISB,Other Public Bodies,Enable Trust,1062.08, 26-Feb-2021
1474,Revenue,CAHD,Special ISB,Other Public Bodies,Enable Trust,1186.60, 26-Feb-2021
1475,Revenue,CAHD,School Grants - Special,Other Public Bodies,Enable Trust,38190.00, 01-Feb-2021
1476,Revenue,CAHD,School Grants - Special,Other Public Bodies,Enable Trust,8126.00, 01-Feb-2021
1477,Revenue,CAHD,School Grants - Special,Other Public Bodies,Enable Trust,33947.00, 01-Feb-2021
1478,Revenue,CAHD,School Grants - Special,Other Public Bodies,Enable Trust,7224.00, 01-Feb-2021
1479,Revenue,CAHD,Schools Specific Grant Income,Other Public Bodies,Endeavour Academy Trust,630.00, 16-Feb-2021
1480,Revenue,CAHD,North - Community based support,Other Small Contracts,Epiphany In Care,4118.40, 24-Feb-2021
1481,Revenue,CAHD,North - Community based support,Other Small Contracts,Epiphany In Care,2310.00, 12-Feb-2021
1482,Revenue,CAHD,North - Community based support,Other Small Contracts,Epiphany In Care,4118.40, 24-Feb-2021
1483,Revenue,CAHD,North - Community based support,Other Small Contracts,Epiphany In Care,4118.40, 24-Feb-2021
1484,Revenue,CAHD,North - Community based support,Other Small Contracts,Epiphany In Care,514.80, 01-Feb-2021
1485,Revenue,CAHD,Central - Commissioned Services,Other Small Contracts,Epiphany In Care,1244.22, 02-Feb-2021
1486,Revenue,CAHD,Central - Commissioned Services,Other Small Contracts,Epiphany In Care,900.90, 26-Feb-2021
1487,Revenue,CAHD,North - S117,Permanent Residential,Evolve House,3276.80, 09-Feb-2021
1488,Revenue,CAHD,Placements OLA Special Schools and RB,Other L.A.s - General,Excalibur Academies Trust T/A,2022.12, 23-Feb-2021
1489,Revenue,CAHD,Schools Specific Grant Income,Other Public Bodies,Excalibur Academies Trust T/A,630.00, 16-Feb-2021
1490,Revenue,CAHD,Social Lettings Agency,Prop.Serv. General Repairs,Express Property Services Limited,39.00, 16-Feb-2021
1491,Revenue,CAHD,Social Lettings Agency,Prop.Serv. General Repairs,Express Property Services Limited,112.00, 16-Feb-2021
1492,Revenue,CAHD,Social Lettings Agency,Prop.Serv. General Repairs,Express Property Services Limited,60.00, 16-Feb-2021
1493,Revenue,CAHD,Social Lettings Agency,Prop.Serv. General Repairs,Express Property Services Limited,180.00, 16-Feb-2021
1494,Revenue,CAHD,Social Lettings Agency,Prop.Serv. General Repairs,Express Property Services Limited,60.00, 16-Feb-2021
1495,Revenue,CAHD,Social Lettings Agency,Prop.Serv. General Repairs,Express Property Services Limited,60.00, 16-Feb-2021
1496,Revenue,CAHD,Social Lettings Agency,Prop.Serv. General Repairs,Express Property Services Limited,135.00, 16-Feb-2021
1497,Revenue,CAHD,Social Lettings Agency,Prop.Serv. General Repairs,Express Property Services Limited,450.00, 16-Feb-2021
1498,Revenue,CAHD,Social Lettings Agency,Prop.Serv. General Repairs,Express Property Services Limited,60.00, 16-Feb-2021
1499,Revenue,CAHD,Social Lettings Agency,Prop.Serv. General Repairs,Express Property Services Limited,60.00, 16-Feb-2021
1500,Revenue,CAHD,Learning Difficulties PSL,Prop.Serv. General Repairs,Express Property Services Limited,48.00, 16-Feb-2021
1501,Revenue,CAHD,Homeless - Private Sector Leasing,Prop.Serv. General Repairs,Express Property Services Limited,219.00, 16-Feb-2021
1502,Revenue,CAHD,Homeless - Private Sector Leasing,Prop.Serv. General Repairs,Express Property Services Limited,756.06, 16-Feb-2021
1503,Revenue,CAHD,Homeless - Private Sector Leasing,Prop.Serv. General Repairs,Express Property Services Limited,60.00, 16-Feb-2021
1504,Revenue,CAHD,Homeless - Private Sector Leasing,Prop.Serv. General Repairs,Express Property Services Limited,108.00, 16-Feb-2021
1505,Revenue,CAHD,Homeless - Private Sector Leasing,Prop.Serv. General Repairs,Express Property Services Limited,60.00, 16-Feb-2021
1506,Revenue,CAHD,Social Lettings Agency,Prop.Serv. General Repairs,Express Property Services Limited,39.00, 08-Feb-2021
1507,Revenue,CAHD,Social Lettings Agency,Prop.Serv. General Repairs,Express Property Services Limited,112.00, 08-Feb-2021
1508,Revenue,CAHD,Social Lettings Agency,Prop.Serv. General Repairs,Express Property Services Limited,72.32, 08-Feb-2021
1509,Revenue,CAHD,Social Lettings Agency,Prop.Serv. General Repairs,Express Property Services Limited,183.50, 08-Feb-2021
1510,Revenue,CAHD,Social Lettings Agency,Prop.Serv. General Repairs,Express Property Services Limited,112.00, 08-Feb-2021
1511,Revenue,CAHD,Social Lettings Agency,Prop.Serv. General Repairs,Express Property Services Limited,460.00, 08-Feb-2021
1512,Revenue,CAHD,Social Lettings Agency,Prop.Serv. General Repairs,Express Property Services Limited,172.00, 08-Feb-2021
1513,Revenue,CAHD,Social Lettings Agency,Prop.Serv. General Repairs,Express Property Services Limited,390.15, 08-Feb-2021
1514,Revenue,CAHD,Social Lettings Agency,Prop.Serv. General Repairs,Express Property Services Limited,180.00, 08-Feb-2021
1515,Revenue,CAHD,Social Lettings Agency,Prop.Serv. General Repairs,Express Property Services Limited,172.00, 08-Feb-2021
1516,Revenue,CAHD,Social Lettings Agency,Prop.Serv. General Repairs,Express Property Services Limited,112.00, 08-Feb-2021
1517,Revenue,CAHD,Social Lettings Agency,Prop.Serv. General Repairs,Express Property Services Limited,58.64, 08-Feb-2021
1518,Revenue,CAHD,Social Lettings Agency,Prop.Serv. General Repairs,Express Property Services Limited,71.50, 08-Feb-2021
1519,Revenue,CAHD,Learning Difficulties PSL,Prop.Serv. General Repairs,Express Property Services Limited,271.00, 08-Feb-2021
1520,Revenue,CAHD,Homeless - Private Sector Leasing,Prop.Serv. General Repairs,Express Property Services Limited,121.00, 08-Feb-2021
1521,Revenue,CAHD,Homeless - Private Sector Leasing,Prop.Serv. General Repairs,Express Property Services Limited,245.00, 08-Feb-2021
1522,Revenue,CAHD,Homeless - Private Sector Leasing,Prop.Serv. General Repairs,Express Property Services Limited,225.00, 08-Feb-2021
1523,Revenue,CAHD,Homeless - Private Sector Leasing,Prop.Serv. General Repairs,Express Property Services Limited,1692.00, 08-Feb-2021
1524,Revenue,CAHD,Extra Care Housing,Private & Voluntary Home Care,Extra Care Charitable Trust,27505.67, 12-Feb-2021
1525,Revenue,CAHD,North - Community based support,Permanent Residential,Eyre Court,1250.00, 09-Feb-2021
1526,Revenue,CAHD,ASC Rapid Testing Fund,Grants to Voluntary Bodies,Eyre Court,13688.10, 11-Feb-2021
1527,Revenue,CAHD,North - Community based support,Permanent Residential,Eyre Court,22371.43, 09-Feb-2021
1528,Revenue,CAHD,North - Community based support,Permanent Residential,Eyre Court,5400.00, 09-Feb-2021
1529,Revenue,CAHD,Post 16 High Needs Placements,Other Private Contractors,Fairfield Farm Trust,12494.66, 04-Feb-2021
1530,Revenue,CAHD,South - Commissioned Services,Permanent Nursing,Fairview Court,3886.76, 09-Feb-2021
1531,Revenue,CAHD,South Glos Users in South Glos Homes,Permanent Nursing,Fairview Court,735.68, 09-Feb-2021
1532,Revenue,CAHD,South Glos Users in South Glos Homes,Permanent Nursing,Fairview Court,735.68, 09-Feb-2021
1533,Revenue,CAHD,South Glos Users in South Glos Homes,Permanent Nursing,Fairview Court,735.68, 09-Feb-2021
1534,Revenue,CAHD,South - Commissioned Services,Permanent Nursing,Fairview Court,4137.76, 09-Feb-2021
1535,Revenue,CAHD,South Glos Users in South Glos Homes,Permanent Nursing,Fairview Court,735.68, 09-Feb-2021
1536,Revenue,CAHD,South Glos Users in South Glos Homes,Permanent Nursing,Fairview Court,735.68, 09-Feb-2021
1537,Revenue,CAHD,South Glos Users in South Glos Homes,Permanent Nursing,Fairview Court,735.68, 09-Feb-2021
1538,Revenue,CAHD,South - Commissioned Services,Permanent Nursing,Fairview Court,4800.00, 09-Feb-2021
1539,Revenue,CAHD,South Glos Users in South Glos Homes,Permanent Nursing,Fairview Court,735.68, 09-Feb-2021
1540,Revenue,CAHD,South - Commissioned Services,Permanent Nursing,Fairview Court,3618.72, 09-Feb-2021
1541,Revenue,CAHD,South Glos Users in South Glos Homes,Permanent Nursing,Fairview Court,735.68, 09-Feb-2021
1542,Revenue,CAHD,South Glos Users in South Glos Homes,Permanent Nursing,Fairview Court,735.68, 09-Feb-2021
1543,Revenue,CAHD,South - Commissioned Services,Respite Planned - Nursing,Fairview Court,9428.57, 09-Feb-2021
1544,Revenue,CAHD,South - Commissioned Services,Permanent Nursing,Fairview Court,4800.00, 09-Feb-2021
1545,Revenue,CAHD,South Glos Users in South Glos Homes,Permanent Nursing,Fairview Court,735.68, 09-Feb-2021
1546,Revenue,CAHD,South - S117,Permanent Nursing,Fairview Court,4257.32, 09-Feb-2021
1547,Revenue,CAHD,South Glos Users in South Glos Homes,Permanent Nursing,Fairview Court,735.68, 09-Feb-2021
1548,Revenue,CAHD,South Glos Users in South Glos Homes,Permanent Nursing,Fairview Court,735.68, 09-Feb-2021
1549,Revenue,CAHD,South - bed purchasing and direct  payments,Permanent Nursing,Fairview Court,4078.24, 09-Feb-2021
1550,Revenue,CAHD,South Glos Users in South Glos Homes,Permanent Nursing,Fairview Court,735.68, 09-Feb-2021
1551,Revenue,CAHD,South Glos Users in South Glos Homes,Permanent Nursing,Fairview Court,735.68, 09-Feb-2021
1552,Revenue,CAHD,South Glos Users in South Glos Homes,Permanent Nursing,Fairview Court,735.68, 09-Feb-2021
1553,Revenue,CAHD,South Glos Users in South Glos Homes,Permanent Nursing,Fairview Court,735.68, 09-Feb-2021
1554,Revenue,CAHD,South - Commissioned Services,Permanent Nursing,Fairview Court,4800.00, 09-Feb-2021
1555,Revenue,CAHD,South Glos Users in South Glos Homes,Permanent Nursing,Fairview Court,735.68, 09-Feb-2021
1556,Revenue,CAHD,South Glos Users in South Glos Homes,Permanent Nursing,Fairview Court,735.68, 09-Feb-2021
1557,Revenue,CAHD,South Glos Users in South Glos Homes,Permanent Nursing,Fairview Court,735.68, 09-Feb-2021
1558,Revenue,CAHD,South Glos Users in South Glos Homes,Permanent Nursing,Fairview Court,735.68, 09-Feb-2021
1559,Revenue,CAHD,South - Commissioned Services,Permanent Residential,Fairview Court,4048.64, 09-Feb-2021
1560,Revenue,CAHD,South Glos Users in South Glos Homes,Permanent Nursing,Fairview Court,735.68, 09-Feb-2021
1561,Revenue,CAHD,South Glos Users in South Glos Homes,Permanent Nursing,Fairview Court,735.68, 09-Feb-2021
1562,Revenue,CAHD,South - Commissioned Services,Permanent Nursing,Fairview Court,3720.00, 09-Feb-2021
1563,Revenue,CAHD,South - Commissioned Services,Permanent Nursing,Fairview Court,685.71, 09-Feb-2021
1564,Revenue,CAHD,South - Commissioned Services,Permanent Nursing,Fairview Court,514.29, 09-Feb-2021
1565,Revenue,CAHD,South - Commissioned Services,Permanent Nursing,Fairview Court,10450.00, 09-Feb-2021
1566,Revenue,CAHD,South - Commissioned Services,Permanent Nursing,Fairview Court,3800.00, 09-Feb-2021
1567,Revenue,CAHD,South Glos Users in South Glos Homes,Permanent Nursing,Fairview Court,735.68, 09-Feb-2021
1568,Revenue,CAHD,South Glos Users in South Glos Homes,Permanent Nursing,Fairview Court,735.68, 09-Feb-2021
1569,Revenue,CAHD,North - Community based support,Permanent Residential,Fairview Court,3321.44, 09-Feb-2021
1570,Revenue,CAHD,South - bed purchasing and direct  payments,Permanent Nursing,Fairview Court,4137.76, 09-Feb-2021
1571,Revenue,CAHD,South Glos Users in South Glos Homes,Permanent Nursing,Fairview Court,735.68, 09-Feb-2021
1572,Revenue,CAHD,South Glos Users in South Glos Homes,Permanent Nursing,Fairview Court,735.68, 09-Feb-2021
1573,Revenue,CAHD,South - Commissioned Services,Permanent Nursing,Fairview Court,4800.00, 09-Feb-2021
1574,Revenue,CAHD,South Glos Users in South Glos Homes,Permanent Nursing,Fairview Court,735.68, 09-Feb-2021
1575,Revenue,CAHD,South Glos Users in South Glos Homes,Permanent Nursing,Fairview Court,735.68, 09-Feb-2021
1576,Revenue,CAHD,South Glos Users in South Glos Homes,Permanent Nursing,Fairview Court,735.68, 09-Feb-2021
1577,Revenue,CAHD,South - Commissioned Services,Permanent Nursing,Fairview Court,3553.36, 09-Feb-2021
1578,Revenue,CAHD,South Glos Users in South Glos Homes,Permanent Nursing,Fairview Court,735.68, 09-Feb-2021
1579,Revenue,CAHD,North - Community based support,Permanent Nursing,Fairview Court,3886.76, 09-Feb-2021
1580,Revenue,CAHD,South Glos Users in South Glos Homes,Permanent Nursing,Fairview Court,735.68, 09-Feb-2021
1581,Revenue,CAHD,South - Commissioned Services,Permanent Nursing,Fairview Court,3192.96, 09-Feb-2021
1582,Revenue,CAHD,South Glos Users in South Glos Homes,Permanent Nursing,Fairview Court,735.68, 09-Feb-2021
1583,Revenue,CAHD,South - Commissioned Services,Permanent Nursing,Fairview Court,3618.72, 09-Feb-2021
1584,Revenue,CAHD,South Glos Users in South Glos Homes,Permanent Nursing,Fairview Court,735.68, 09-Feb-2021
1585,Revenue,CAHD,South - Commissioned Services,Permanent Nursing,Fairview Court,4028.00, 09-Feb-2021
1586,Revenue,CAHD,South Glos Users in South Glos Homes,Permanent Nursing,Fairview Court,735.68, 09-Feb-2021
1587,Revenue,CAHD,South - Commissioned Services,Permanent Nursing,Fairview Court,4137.76, 09-Feb-2021
1588,Revenue,CAHD,South Glos Users in South Glos Homes,Permanent Nursing,Fairview Court,735.68, 09-Feb-2021
1589,Revenue,CAHD,ASC Rapid Testing Fund,Grants to Voluntary Bodies,Fairview Court,13151.31, 05-Feb-2021
1590,Revenue,CAHD,South - Commissioned Services,Permanent Residential,Fairview House,2349.60, 09-Feb-2021
1591,Revenue,CAHD,South - Commissioned Services,Permanent Residential,Fairview House,3400.00, 09-Feb-2021
1592,Revenue,CAHD,South - Commissioned Services,Permanent Residential,Fairview House,3400.00, 09-Feb-2021
1593,Revenue,CAHD,South Glos Users in South Glos Homes,Permanent Nursing,Fairview House,735.68, 09-Feb-2021
1594,Revenue,CAHD,South - Commissioned Services,Permanent Residential,Fairview House,3600.00, 09-Feb-2021
1595,Revenue,CAHD,South - Commissioned Services,Permanent Residential,Fairview House,3468.00, 09-Feb-2021
1596,Revenue,CAHD,South - Commissioned Services,Permanent Residential,Fairview House,3800.00, 09-Feb-2021
1597,Revenue,CAHD,South - Commissioned Services,Permanent Residential,Fairview House,8821.43, 09-Feb-2021
1598,Revenue,CAHD,South - Commissioned Services,Permanent Residential,Fairview House,3800.00, 09-Feb-2021
1599,Revenue,CAHD,Covid 19- Spend on behalf of NHS,Respite Planned - Residential,Fairview House,2714.29, 09-Feb-2021
1600,Revenue,CAHD,ASC Rapid Testing Fund,Grants to Voluntary Bodies,Fairview House,6441.46, 05-Feb-2021
1601,Revenue,CAHD,North - Community based support,Permanent Residential,Faith House,2861.88, 09-Feb-2021
1602,Revenue,CAHD,Central - Commissioned Services,Permanent Residential,Faith House,3128.00, 09-Feb-2021
1603,Revenue,CAHD,North - Community based support,Permanent Residential,Faith House,3039.60, 09-Feb-2021
1604,Revenue,CAHD,North - Community based support,Permanent Residential,Faith House,3473.83, 09-Feb-2021
1605,Revenue,CAHD,North - Community based support,Permanent Residential,Faith House,3039.60, 09-Feb-2021
1606,Revenue,CAHD,North - Community based support,Fees & Charges Income - General,Faith House,3155.74, 09-Feb-2021
1607,Revenue,CAHD,South - Commissioned Services,Permanent Residential,Faith House,2958.00, 09-Feb-2021
1608,Revenue,CAHD,ASC Rapid Testing Fund,Grants to Voluntary Bodies,Faith House,2683.94, 05-Feb-2021
1609,Revenue,CAHD,CSC - Parent & Child Assessments,Foster Parent Allowances,Families First (SW) Ltd,2059.89, 24-Feb-2021
1610,Revenue,CAHD,CSC - Fostering Carer Support,Care Mgt/Asesmnt Staff Pay,Individual,2000.00, 01-Feb-2021
1611,Revenue,CAHD,North - Community based support,Permanent Nursing,Field House Care Home,3522.56, 09-Feb-2021
1612,Revenue,CAHD,North - Community based support,Permanent Nursing,Field House Care Home,3403.60, 09-Feb-2021
1613,Revenue,CAHD,North - Community based support,Permanent Nursing,Field House Care Home,3589.48, 09-Feb-2021
1614,Revenue,CAHD,Central - Commissioned Services,Permanent Nursing,Field House Care Home,3760.00, 09-Feb-2021
1615,Revenue,CAHD,Central - Commissioned Services,Permanent Nursing,Field House Care Home,3740.00, 09-Feb-2021
1616,Revenue,CAHD,North - Community based support,Permanent Nursing,Field House Care Home,2271.72, 09-Feb-2021
1617,Revenue,CAHD,Central - Commissioned Services,Permanent Nursing,Field House Care Home,3740.00, 09-Feb-2021
1618,Revenue,CAHD,North - Community based support,Permanent Nursing,Field House Care Home,2271.72, 09-Feb-2021
1619,Revenue,CAHD,North - Community based support,Permanent Residential,Field House Care Home,2359.04, 09-Feb-2021
1620,Revenue,CAHD,North - Community based support,Permanent Nursing,Field House Care Home,3506.00, 09-Feb-2021
1621,Revenue,CAHD,Statemented Support Payments to OLAs,Other L.A.s - General,Filton Avenue Primary School,1131.84, 23-Feb-2021
1622,Revenue,CAHD,Statemented Support Payments to OLAs,Other L.A.s - General,Filton Avenue Primary School,1332.27, 23-Feb-2021
1623,Revenue,CAHD,Covid 19- Spend on behalf of NHS,Respite Planned - Nursing,First Floor  Lingfield House,15500.29, 09-Feb-2021
1624,Revenue,CAHD,South - Commissioned Services,Permanent Nursing,First Floor  Lingfield House,14665.71, 09-Feb-2021
1625,Revenue,CAHD,South - Commissioned Services,Permanent Nursing,First Floor  Lingfield House,3480.00, 09-Feb-2021
1626,Revenue,CAHD,Covid 19- Spend on behalf of NHS,Respite Planned - Residential,First Floor  Lingfield House,3600.00, 09-Feb-2021
1627,Revenue,CAHD,Covid 19- Spend on behalf of NHS,Respite Planned - Residential,First Floor  Lingfield House,3600.00, 09-Feb-2021
1628,Revenue,CAHD,Covid 19- Spend on behalf of NHS,Respite Planned - Nursing,First Floor  Lingfield House,2442.86, 09-Feb-2021
1629,Revenue,CAHD,South - Commissioned Services,Permanent Nursing,First Floor  Lingfield House,2554.36, 09-Feb-2021
1630,Revenue,CAHD,South Glos Users in South Glos Homes,Permanent Nursing,First Floor  Lingfield House,735.68, 09-Feb-2021
1631,Revenue,CAHD,Covid 19- Spend on behalf of NHS,Respite Planned - Residential,First Floor  Lingfield House,5564.29, 09-Feb-2021
1632,Revenue,CAHD,Covid 19- Spend on behalf of NHS,Respite Planned - Nursing,First Floor  Lingfield House,4614.29, 09-Feb-2021
1633,Revenue,CAHD,South - Commissioned Services,Permanent Residential,First Floor  Lingfield House,3160.00, 09-Feb-2021
1634,Revenue,CAHD,Covid 19- Spend on behalf of NHS,Respite Planned - Nursing,First Floor  Lingfield House,5835.71, 09-Feb-2021
1635,Revenue,CAHD,Covid 19- Spend on behalf of NHS,Respite Planned - Nursing,First Floor  Lingfield House,15064.29, 09-Feb-2021
1636,Revenue,CAHD,South - Commissioned Services,Permanent Residential,First Floor  Lingfield House,3360.00, 09-Feb-2021
1637,Revenue,CAHD,South - Commissioned Services,Permanent Residential,First Floor  Lingfield House,26845.71, 09-Feb-2021
1638,Revenue,CAHD,South - Commissioned Services,Permanent Residential,First Floor  Lingfield House,3480.00, 09-Feb-2021
1639,Revenue,CAHD,ASC Rapid Testing Fund,Grants to Voluntary Bodies,First Floor  Lingfield House,6441.46, 05-Feb-2021
1640,Revenue,CAHD,Central - Commissioned Services,Permanent Residential,First Floor  Lingfield House,2664.48, 09-Feb-2021
1641,Revenue,CAHD,Central - Commissioned Services,Permanent Residential,First Floor  Lingfield House,1232.53, 09-Feb-2021
1642,Revenue,CAHD,Central - Commissioned Services,Fees & Charges Income - General,First Floor  Lingfield House,1315.52, 09-Feb-2021
1643,Revenue,CAHD,North - Community based support,Permanent Residential,First Floor  Q4  The Square,8810.20, 09-Feb-2021
1644,Revenue,CAHD,Jointly Funded H&SC Packages,Permanent Residential,First Floor  Q4  The Square,5594.24, 09-Feb-2021
1645,Revenue,CAHD,North - Community based support,Permanent Residential,First Floor  Q4  The Square,8531.24, 09-Feb-2021
1646,Revenue,CAHD,Jointly Funded H&SC Packages,Permanent Residential,First Floor  Q4  The Square,2577.68, 09-Feb-2021
1647,Revenue,CAHD,Early Years High Needs Support,Other Private Contractors,First Steps Day Nursery,1732.07, 23-Feb-2021
1648,Revenue,CAHD,CSC - Agency Fostering,Foster Parent Allowances,Five Rivers Child Care Limited,3627.00, 08-Feb-2021
1649,Revenue,CAHD,CSC - Agency Fostering,Foster Parent Allowances,Five Rivers Child Care Limited,3627.00, 05-Feb-2021
1650,Revenue,CAHD,CSC - Agency Fostering,Foster Parent Allowances,Five Rivers Child Care Limited,2223.76, 05-Feb-2021
1651,Revenue,CAHD,CSC - Agency Fostering,Foster Parent Allowances,Five Rivers Child Care Limited,3627.00, 05-Feb-2021
1652,Revenue,CAHD,CSC - Agency Fostering,Foster Parent Allowances,Five Rivers Child Care Limited,3447.82, 05-Feb-2021
1653,Revenue,CAHD,CSC - Agency Fostering,Foster Parent Allowances,Five Rivers Child Care Limited,3447.82, 05-Feb-2021
1654,Revenue,CAHD,CSC - Agency Fostering,Foster Parent Allowances,Five Rivers Child Care Limited,3627.00, 04-Feb-2021
1655,Revenue,CAHD,CSC - Agency Fostering,Foster Parent Allowances,Five Rivers Child Care Limited,3627.00, 08-Feb-2021
1656,Revenue,CAHD,CSC - Agency Fostering,Foster Parent Allowances,Five Rivers Child Care Limited,2223.76, 08-Feb-2021
1657,Revenue,CAHD,CSC - Agency Fostering,Foster Parent Allowances,Five Rivers Child Care Limited,3627.00, 08-Feb-2021
1658,Revenue,CAHD,CSC - Agency Fostering,Foster Parent Allowances,Five Rivers Child Care Limited,3447.82, 08-Feb-2021
1659,Revenue,CAHD,CSC - Agency Fostering,Foster Parent Allowances,Foster Care Associates Limited,3484.88, 24-Feb-2021
1660,Revenue,CAHD,CSC - Parent & Child Assessments,Foster Parent Allowances,Foster Care Associates Limited,1332.00, 12-Feb-2021
1661,Revenue,CAHD,CSC - Agency Fostering,Foster Parent Allowances,Foster Care Associates Limited,3769.91, 12-Feb-2021
1662,Revenue,CAHD,CSC - Agency Fostering,Foster Parent Allowances,Foster Care Associates Limited,3937.00, 12-Feb-2021
1663,Revenue,CAHD,CSC - Agency Fostering,Foster Parent Allowances,Foster Care Associates Limited,6682.36, 12-Feb-2021
1664,Revenue,CAHD,CSC - Agency Fostering,Foster Parent Allowances,Fostering Matters Ltd,3520.67, 12-Feb-2021
1665,Revenue,CAHD,CSC - Agency Fostering,Foster Parent Allowances,Fostering Matters Ltd,3520.67, 12-Feb-2021
1666,Revenue,CAHD,CSC - Parent & Child Assessments,Foster Parent Allowances,Fostering Solutions Limited,5810.84, 02-Feb-2021
1667,Revenue,CAHD,Covid 19 -Adult Social Care,Other Small Contracts,Fourways Care Limited,39.84, 05-Feb-2021
1668,Revenue,CAHD,Central - Commissioned Services,Other Small Contracts,Fourways Care Limited,180.00, 05-Feb-2021
1669,Revenue,CAHD,South - Commissioned Services,Other Small Contracts,Fourways Care Limited,828.06, 05-Feb-2021
1670,Revenue,CAHD,North - Community based support,Other Small Contracts,Fourways Care Limited,9717.44, 05-Feb-2021
1671,Revenue,CAHD,Resilience Team,Other Small Contracts,Fourways Care Limited,29.88, 05-Feb-2021
1672,Revenue,CAHD,Covid 19 -Adult Social Care,Other Small Contracts,Fourways Care Limited,39.84, 10-Feb-2021
1673,Revenue,CAHD,Central - Commissioned Services,Other Small Contracts,Fourways Care Limited,174.00, 10-Feb-2021
1674,Revenue,CAHD,South - Commissioned Services,Other Small Contracts,Fourways Care Limited,818.10, 10-Feb-2021
1675,Revenue,CAHD,North - Community based support,Other Small Contracts,Fourways Care Limited,9808.32, 10-Feb-2021
1676,Revenue,CAHD,Covid 19 -Adult Social Care,Other Small Contracts,Fourways Care Limited,39.84, 26-Feb-2021
1677,Revenue,CAHD,Central - Commissioned Services,Other Small Contracts,Fourways Care Limited,168.00, 26-Feb-2021
1678,Revenue,CAHD,South - Commissioned Services,Other Small Contracts,Fourways Care Limited,813.12, 26-Feb-2021
1679,Revenue,CAHD,North - Community based support,Other Small Contracts,Fourways Care Limited,9508.56, 26-Feb-2021
1680,Revenue,CAHD,Covid 19 -Adult Social Care,Other Small Contracts,Fourways Care Limited,39.84, 26-Feb-2021
1681,Revenue,CAHD,Central - Commissioned Services,Other Small Contracts,Fourways Care Limited,168.00, 26-Feb-2021
1682,Revenue,CAHD,South - Commissioned Services,Other Small Contracts,Fourways Care Limited,479.46, 26-Feb-2021
1683,Revenue,CAHD,North - Community based support,Other Small Contracts,Fourways Care Limited,8864.66, 26-Feb-2021
1684,Revenue,CAHD,Resilience Team,Other Small Contracts,Fourways Care Limited,159.36, 26-Feb-2021
1685,Revenue,CAHD,Supporting People Programme,Grants to Voluntary Bodies,Freeways Trust Limited,1067.00, 01-Feb-2021
1686,Revenue,CAHD,South - Commissioned Services,Day Care / Social Activities,Freeways Trust Limited,1021.28, 12-Feb-2021
1687,Revenue,CAHD,North - Community based support,Other Small Contracts,Freeways Trust Limited,864.16, 11-Feb-2021
1688,Revenue,CAHD,Central - Commissioned Services,Permanent Residential,Freeways Trust Ltd,3968.00, 09-Feb-2021
1689,Revenue,CAHD,Central - Commissioned Services,Permanent Residential,Freeways Trust Ltd,4006.56, 09-Feb-2021
1690,Revenue,CAHD,Central - Commissioned Services,Permanent Residential,Freeways Trust Ltd,4462.28, 09-Feb-2021
1691,Revenue,CAHD,Central - Commissioned Services,Permanent Residential,Freeways Trust Ltd,5152.32, 09-Feb-2021
1692,Revenue,CAHD,North - Community based support,Permanent Residential,Freeways Trust Ltd,4009.36, 09-Feb-2021
1693,Revenue,CAHD,Central - Commissioned Services,Permanent Residential,Freeways Trust Ltd,4197.36, 09-Feb-2021
1694,Revenue,CAHD,South - Commissioned Services,Permanent Residential,Freeways Trust Ltd,4431.96, 09-Feb-2021
1695,Revenue,CAHD,Central - Commissioned Services,Permanent Residential,Freeways Trust Ltd,4006.56, 09-Feb-2021
1696,Revenue,CAHD,Central - Commissioned Services,Permanent Residential,Freeways Trust Ltd,4006.56, 09-Feb-2021
1697,Revenue,CAHD,North - Community based support,Permanent Residential,Freeways Trust Ltd,4009.36, 09-Feb-2021
1698,Revenue,CAHD,Central - Commissioned Services,Permanent Residential,Freeways Trust Ltd,5991.92, 09-Feb-2021
1699,Revenue,CAHD,ASC Rapid Testing Fund,Grants to Voluntary Bodies,Freeways Trust Ltd,4294.30, 05-Feb-2021
1700,Revenue,CAHD,North - Community based support,Supported Living,Freeways Trust Ltd,862.44, 09-Feb-2021
1701,Revenue,CAHD,S28A cases,Permanent Residential,Freeways Trust Ltd,5071.92, 09-Feb-2021
1702,Revenue,CAHD,North - Community based support,Permanent Residential,Freeways Trust Ltd,3853.72, 09-Feb-2021
1703,Revenue,CAHD,North - Community based support,Permanent Residential,Freeways Trust Ltd,3380.28, 09-Feb-2021
1704,Revenue,CAHD,North - Community based support,Permanent Residential,Freeways Trust Ltd,3792.12, 09-Feb-2021
1705,Revenue,CAHD,North - Community based support,Permanent Residential,Freeways Trust Ltd,3768.80, 09-Feb-2021
1706,Revenue,CAHD,Section 117 Placements MH Younger,Permanent Residential,Freeways Trust Ltd,3419.16, 09-Feb-2021
1707,Revenue,CAHD,Central - Commissioned Services,Day Care / Social Activities,Frenchay Beckspool Building,1933.52, 09-Feb-2021
1708,Revenue,CAHD,South - Commissioned Services,Day Care / Social Activities,Frenchay Beckspool Building,920.44, 09-Feb-2021
1709,Revenue,CAHD,South - Commissioned Services,Day Care / Social Activities,Frenchay Beckspool Building,652.88, 09-Feb-2021
1710,Revenue,CAHD,North - Community based support,Permanent Nursing,Frenchay Park Nursing Home,3400.00, 09-Feb-2021
1711,Revenue,CAHD,Early Years High Needs Support,Other Private Contractors,Frenchay Pre School Playgroup,575.40, 23-Feb-2021
1712,Revenue,CAHD,CSC - Social Work Team - CENTRAL,Agency Staff (Admin/Support Staff) Pay,Frontline Staffing Ltd,1418.10, 01-Feb-2021
1713,Revenue,CAHD,CSC - Through & Leaving Care Team,Agency Staff (Admin/Support Staff) Pay,Frontline Staffing Ltd,1766.32, 03-Feb-2021
1714,Revenue,CAHD,CSC - Social Work Team - CENTRAL,Agency Staff (Admin/Support Staff) Pay,Frontline Staffing Ltd,1743.83, 09-Feb-2021
1715,Revenue,CAHD,CSC - Through & Leaving Care Team,Agency Staff (Admin/Support Staff) Pay,Frontline Staffing Ltd,1871.60, 10-Feb-2021
1716,Revenue,CAHD,CSC - Social Work Team - CENTRAL,Agency Staff (Admin/Support Staff) Pay,Frontline Staffing Ltd,1738.43, 16-Feb-2021
1717,Revenue,CAHD,CSC - Through & Leaving Care Team,Agency Staff (Admin/Support Staff) Pay,Frontline Staffing Ltd,1871.60, 17-Feb-2021
1718,Revenue,CAHD,CSC - Agency Fostering,Foster Parent Allowances,Fusion Fostering Ltd,3264.00, 24-Feb-2021
1719,Revenue,CAHD,CSC - Agency Fostering,Foster Parent Allowances,Fusion Fostering Ltd,3801.72, 24-Feb-2021
1720,Revenue,CAHD,CSC - Asylum Seekers - Unaccompanied,Foster Parent Allowances,Fusion Fostering Ltd,3076.00, 24-Feb-2021
1721,Revenue,CAHD,CSC - Professional Fees Foster Carers,Children - Family Support,Individual,521.71, 26-Feb-2021
1722,Revenue,CAHD,North - Community based support,Supported Living,Gladstone House,3237.64, 09-Feb-2021
1723,Revenue,CAHD,18-25 Year Olds,Supported Living,Gladstone House,3237.64, 09-Feb-2021
1724,Revenue,CAHD,South - Commissioned Services,Permanent Residential,Gladstone House,5999.84, 09-Feb-2021
1725,Revenue,CAHD,MH Purchasing - Younger,Permanent Residential,Gladstone House,3135.90, 09-Feb-2021
1726,Revenue,CAHD,Jointly Funded H&SC Packages,Permanent Residential,Gladstone House,783.98, 09-Feb-2021
1727,Revenue,CAHD,North - Community based support,Permanent Residential,Glan Y Felin,6803.40, 09-Feb-2021
1728,Revenue,CAHD,South - Commissioned Services,Permanent Residential,Glasallt Fawr,5550.16, 09-Feb-2021
1729,Revenue,CAHD,North - Community based support,Permanent Nursing,Glebe House Nursing Home,3737.44, 09-Feb-2021
1730,Revenue,CAHD,South Glos Users in South Glos Homes,Permanent Nursing,Glebe House Nursing Home,735.68, 09-Feb-2021
1731,Revenue,CAHD,North - Community based support,Permanent Nursing,Glebe House Nursing Home,4052.60, 09-Feb-2021
1732,Revenue,CAHD,South Glos Users in South Glos Homes,Permanent Nursing,Glebe House Nursing Home,735.68, 09-Feb-2021
1733,Revenue,CAHD,South Glos Users in South Glos Homes,Permanent Nursing,Glebe House Nursing Home,735.68, 09-Feb-2021
1734,Revenue,CAHD,South Glos Users in South Glos Homes,Permanent Nursing,Glebe House Nursing Home,735.68, 09-Feb-2021
1735,Revenue,CAHD,North - Community based support,Permanent Nursing,Glebe House Nursing Home,3998.40, 09-Feb-2021
1736,Revenue,CAHD,South Glos Users in South Glos Homes,Permanent Nursing,Glebe House Nursing Home,735.68, 09-Feb-2021
1737,Revenue,CAHD,North - Community based support,Permanent Residential,Glebe House Nursing Home,3910.52, 09-Feb-2021
1738,Revenue,CAHD,South Glos Users in South Glos Homes,Permanent Nursing,Glebe House Nursing Home,735.68, 09-Feb-2021
1739,Revenue,CAHD,North - Community based support,Permanent Nursing,Glebe House Nursing Home,4048.60, 09-Feb-2021
1740,Revenue,CAHD,South Glos Users in South Glos Homes,Permanent Nursing,Glebe House Nursing Home,735.68, 09-Feb-2021
1741,Revenue,CAHD,Central - Commissioned Services,Permanent Residential,Glebe House Nursing Home,3980.00, 09-Feb-2021
1742,Revenue,CAHD,South Glos Users in South Glos Homes,Permanent Nursing,Glebe House Nursing Home,735.68, 09-Feb-2021
1743,Revenue,CAHD,Central - Commissioned Services,Permanent Nursing,Glebe House Nursing Home,4120.00, 09-Feb-2021
1744,Revenue,CAHD,North - Community based support,Permanent Nursing,Glebe House Nursing Home,4080.00, 09-Feb-2021
1745,Revenue,CAHD,South Glos Users in South Glos Homes,Permanent Nursing,Glebe House Nursing Home,735.68, 09-Feb-2021
1746,Revenue,CAHD,South Glos Users in South Glos Homes,Permanent Nursing,Glebe House Nursing Home,735.68, 09-Feb-2021
1747,Revenue,CAHD,North - Community based support,Permanent Nursing,Glebe House Nursing Home,4039.36, 09-Feb-2021
1748,Revenue,CAHD,South Glos Users in South Glos Homes,Permanent Nursing,Glebe House Nursing Home,735.68, 09-Feb-2021
1749,Revenue,CAHD,North - Community based support,Permanent Nursing,Glebe House Nursing Home,4080.00, 09-Feb-2021
1750,Revenue,CAHD,South Glos Users in South Glos Homes,Permanent Nursing,Glebe House Nursing Home,735.68, 09-Feb-2021
1751,Revenue,CAHD,North - Community based support,Permanent Residential,Glebe House Nursing Home,5051.24, 09-Feb-2021
1752,Revenue,CAHD,South Glos Users in South Glos Homes,Permanent Nursing,Glebe House Nursing Home,735.68, 09-Feb-2021
1753,Revenue,CAHD,South Glos Users in South Glos Homes,Permanent Nursing,Glebe House Nursing Home,735.68, 09-Feb-2021
1754,Revenue,CAHD,South Glos Users in South Glos Homes,Permanent Nursing,Glebe House Nursing Home,735.68, 09-Feb-2021
1755,Revenue,CAHD,North - Community based support,Permanent Residential,Glebe House Nursing Home,4360.00, 09-Feb-2021
1756,Revenue,CAHD,South Glos Users in South Glos Homes,Permanent Nursing,Glebe House Nursing Home,735.68, 09-Feb-2021
1757,Revenue,CAHD,South Glos Users in South Glos Homes,Permanent Nursing,Glebe House Nursing Home,735.68, 09-Feb-2021
1758,Revenue,CAHD,ASC Rapid Testing Fund,Grants to Voluntary Bodies,Glebe House Nursing Home,14224.88, 05-Feb-2021
1759,Revenue,CAHD,Central - Commissioned Services,Permanent Nursing,Glenview Care Home,3224.00, 09-Feb-2021
1760,Revenue,CAHD,South - Commissioned Services,Permanent Nursing,Glenview Care Home,3220.00, 09-Feb-2021
1761,Revenue,CAHD,Covid 19- Spend on behalf of NHS,Respite Planned - Nursing,Glenview Care Home,3516.86, 09-Feb-2021
1762,Revenue,CAHD,North - Community based support,Permanent Nursing,Glenview Care Home,8100.00, 09-Feb-2021
1763,Revenue,CAHD,North - Community based support,Permanent Nursing,Glenview Care Home,3600.00, 09-Feb-2021
1764,Revenue,CAHD,North - Community based support,Fees & Charges Income - General,Glenview Care Home,1630.35, 09-Feb-2021
1765,Revenue,CAHD,Covid 19- Spend on behalf of NHS,Respite Planned - Nursing,Glenview Care Home,3623.43, 09-Feb-2021
1766,Revenue,CAHD,Parent Partnership,Fees - General,Global Mediation Limited,5250.00, 16-Feb-2021
1767,Revenue,CAHD,South - Commissioned Services,Permanent Residential,Gordena Care Home,4018.92, 09-Feb-2021
1768,Revenue,CAHD,South - Commissioned Services,Permanent Residential,Gordena Care Home,2790.84, 09-Feb-2021
1769,Revenue,CAHD,South - Commissioned Services,Permanent Residential,Gordena Care Home,3973.32, 09-Feb-2021
1770,Revenue,CAHD,South - Commissioned Services,Permanent Residential,Gordena Care Home,3985.44, 09-Feb-2021
1771,Revenue,CAHD,ASC Rapid Testing Fund,Grants to Voluntary Bodies,Gordena Care Home,2415.55, 05-Feb-2021
1772,Revenue,CAHD,CSC - Legal Fees,Legal Fees,Individual,800.00, 09-Feb-2021
1773,Revenue,CAHD,CSC - Legal Fees,Legal Fees,Individual,800.00, 12-Feb-2021
1774,Revenue,CAHD,CSC - Legal Fees,Legal Fees,Individual,800.00, 09-Feb-2021
1775,Revenue,CAHD,18-25 Year Olds,Supported Living,Granville House,1940.60, 09-Feb-2021
1776,Revenue,CAHD,South - Commissioned Services,Supported Living,Granville House,1941.20, 09-Feb-2021
1777,Revenue,CAHD,South - Commissioned Services,Supported Living,Granville House,1940.32, 09-Feb-2021
1778,Revenue,CAHD,North - S117,Permanent Nursing,Grasmere Rest Home,3800.00, 09-Feb-2021
1779,Revenue,CAHD,CSC - Residential Placements,Permanent Residential,Greenfields Adolecent Development Limited,21921.43, 23-Feb-2021
1780,Revenue,CAHD,CSC - Residential Placements,Permanent Residential,Greenfields Adolecent Development Limited,26527.14, 23-Feb-2021
1781,Revenue,CAHD,Statemented Support Academies,Other Public Bodies,Greenshaw Learning Trust T/A Woodlands Primary,554.13, 23-Feb-2021
1782,Revenue,CAHD,Statemented Support Academies,Other Public Bodies,Greenshaw Learning Trust T/A Woodlands Primary,1072.89, 23-Feb-2021
1783,Revenue,CAHD,Statemented Support Academies,Other Public Bodies,Greenshaw Learning Trust T/A Woodlands Primary,577.71, 23-Feb-2021
1784,Revenue,CAHD,Statemented Support Academies,Other Public Bodies,Greenshaw Learning Trust T/A Woodlands Primary,932.17, 23-Feb-2021
1785,Revenue,CAHD,Statemented Support Academies,Other Public Bodies,Greenshaw Learning Trust T/A Woodlands Primary,837.09, 23-Feb-2021
1786,Revenue,CAHD,Statemented Support Academies,Other Public Bodies,Greenshaw Learning Trust T/A Woodlands Primary,742.77, 23-Feb-2021
1787,Revenue,CAHD,Statemented Support Academies,Other Public Bodies,Greenshaw Learning Trust T/A Woodlands Primary,778.14, 23-Feb-2021
1788,Revenue,CAHD,Statemented Support Academies,Other Public Bodies,Greenshaw Learning Trust T/A Woodlands Primary,860.67, 23-Feb-2021
1789,Revenue,CAHD,Academy Resource Base Funding,Other Public Bodies,Greenshaw Learning Trust T/A Woodlands Primary,1062.08, 26-Feb-2021
1790,Revenue,CAHD,Academy Resource Base Funding,Other Public Bodies,Greenshaw Learning Trust T/A Woodlands Primary,585.92, 26-Feb-2021
1791,Revenue,CAHD,Statemented Support Academies,Other Public Bodies,Greenshaw Learning Trust T/A Yate Academy,589.50, 23-Feb-2021
1792,Revenue,CAHD,Statemented Support Academies,Other Public Bodies,Greenshaw Learning Trust T/A Yate Academy,707.40, 23-Feb-2021
1793,Revenue,CAHD,Statemented Support Academies,Other Public Bodies,Greenshaw Learning Trust T/A Yate Academy,1320.48, 23-Feb-2021
1794,Revenue,CAHD,Statemented Support Academies,Other Public Bodies,Greenshaw Learning Trust T/A Yate Academy,1320.48, 23-Feb-2021
1795,Revenue,CAHD,Statemented Support Academies,Other Public Bodies,Greenshaw Learning Trust T/A Yate Academy,1209.92, 23-Feb-2021
